Body,Body Name,Date Paid,Transaction Number,Amount,Supplier Name,Supplier ID,Supplier post code (first 4 digits),Directorate,Service Area,General Ledger code Description,BVACOP class,Revenue/ Capital Spend
http://statistics.data.gov.uk/id/local-authority/00HY,Wiltshire Council,13/02/2014,5106437440,277.70,3663,113090,L40 ,Children & Education,PDCMelksham,Vending costs,Supplies and Services,REVENUE
http://statistics.data.gov.uk/id/local-authority/00HY,Wiltshire Council,27/02/2014,5106440268,349.25,3663,113090,L40 ,Children & Education,PDCMelksham,Vending costs,Supplies and Services,REVENUE
http://statistics.data.gov.uk/id/local-authority/00HY,Wiltshire Council,10/02/2014,1901213728,1367.74,1st Choice Cabs ,101285,SP4 ,Community Services,CTPLD County CIC U65,Transport Contracts,Third Party Payments,REVENUE
http://statistics.data.gov.uk/id/local-authority/00HY,Wiltshire Council,10/02/2014,1901213734,1518.44,1st Choice Cabs ,101285,SP4 ,Community Services,CTPLD County CIC U65,Transport Contracts,Third Party Payments,REVENUE
http://statistics.data.gov.uk/id/local-authority/00HY,Wiltshire Council,10/02/2014,1901213735,826.00,1st Choice Cabs ,101285,SP4 ,Neighbourhood & Planning,Mainstream Primary,Transport Contracts,Third Party Payments,REVENUE
http://statistics.data.gov.uk/id/local-authority/00HY,Wiltshire Council,10/02/2014,1901213736,2709.97,1st Choice Cabs ,101285,SP4 ,Children & Education,SENTransport,Transport Contracts,Third Party Payments,REVENUE
http://statistics.data.gov.uk/id/local-authority/00HY,Wiltshire Council,10/02/2014,1901213739,1540.00,1st Choice Cabs ,101285,SP4 ,Children & Education,SENTransport,Transport Contracts,Third Party Payments,REVENUE
http://statistics.data.gov.uk/id/local-authority/00HY,Wiltshire Council,06/02/2014,1901212788,1025.00,1st Choice Stairlifts ,113095,SN11,Wiltshire Council,Wiltshire Council,Payments to Contractors - Other,Third Party Payments,CAPITAL
http://statistics.data.gov.uk/id/local-authority/00HY,Wiltshire Council,11/02/2014,1901213954,4799.00,1st Choice Stairlifts ,113095,SN11,Wiltshire Council,Wiltshire Council,Payments to Contractors - Other,Third Party Payments,CAPITAL
http://statistics.data.gov.uk/id/local-authority/00HY,Wiltshire Council,18/02/2014,1901217004,950.00,1st Choice Stairlifts ,113095,SN11,Wiltshire Council,Wiltshire Council,Payments to Contractors - Other,Third Party Payments,CAPITAL
http://statistics.data.gov.uk/id/local-authority/00HY,Wiltshire Council,12/02/2014,5106441353,1191.80,2 Care UK Ltd ,110002,BH7 ,Community Services,MH OP North Locality,Adult Residential Placements - Spot Purchase,Third Party Payments,REVENUE
http://statistics.data.gov.uk/id/local-authority/00HY,Wiltshire Council,12/02/2014,5106441354,1191.80,2 Care UK Ltd ,110002,BH7 ,Community Services,Section 117-PCT Clnt,Adult Residential Placements - Spot Purchase,Third Party Payments,REVENUE
http://statistics.data.gov.uk/id/local-authority/00HY,Wiltshire Council,12/02/2014,5106441516,2328.68,2 Care UK Ltd ,110002,BH7 ,Community Services,MH AOWA South,Adult Residential Placements - Spot Purchase,Third Party Payments,REVENUE
http://statistics.data.gov.uk/id/local-authority/00HY,Wiltshire Council,12/02/2014,5106441307,5552.16,22 Wingfield ,129621,BA14,Community Services,MH AOWA North,Adult Residential Placements - Spot Purchase,Third Party Payments,REVENUE
http://statistics.data.gov.uk/id/local-authority/00HY,Wiltshire Council,12/02/2014,5106443262,6096.68,22 Wingfield ,129621,BA14,Community Services,CTPLD County CIC U65,Adult Residential Placements - Spot Purchase,Third Party Payments,REVENUE
http://statistics.data.gov.uk/id/local-authority/00HY,Wiltshire Council,12/02/2014,5106443444,4947.00,22 Wingfield ,129621,BA14,Community Services,PI West Locality,Adult Residential Placements - Spot Purchase,Third Party Payments,REVENUE
http://statistics.data.gov.uk/id/local-authority/00HY,Wiltshire Council,12/02/2014,5106443562,7250.72,22 Wingfield ,129621,BA14,Community Services,CTPLD County CIC U65,Adult Residential Placements - Spot Purchase,Third Party Payments,REVENUE
http://statistics.data.gov.uk/id/local-authority/00HY,Wiltshire Council,28/02/2014,1901228296,2500.00,2385 (Melksham) Air Cadets ,139047,SN12,Wiltshire Council,Wiltshire Council,Area Board Grants,Supplies and Services,CAPITAL
http://statistics.data.gov.uk/id/local-authority/00HY,Wiltshire Council,05/02/2014,1901212538,1520.00,24-7 Taxis ,101087,BA12,Children & Education,SENTransport,Transport Contracts,Third Party Payments,REVENUE
http://statistics.data.gov.uk/id/local-authority/00HY,Wiltshire Council,13/02/2014,1901215348,390.00,2get2 Taxi Services Ltd ,101102,SP1 ,Children & Education,SENTransport,Transport Contracts,Third Party Payments,REVENUE
http://statistics.data.gov.uk/id/local-authority/00HY,Wiltshire Council,13/02/2014,1901215348,780.00,2get2 Taxi Services Ltd ,101102,SP1 ,Neighbourhood & Planning,Mainstream Secondary,Transport Contracts,Third Party Payments,REVENUE
http://statistics.data.gov.uk/id/local-authority/00HY,Wiltshire Council,25/02/2014,1901226834,425.00,3rd Melksham Brownies ,138996,SN12,Community Services,Area Boards Revenue,Area Board Grants,Supplies and Services,REVENUE
http://statistics.data.gov.uk/id/local-authority/00HY,Wiltshire Council,13/02/2014,1901215113,1400.00,5th Wiltshire B-P Scout Group ,138890,SN8 ,Community Services,Area Boards Revenue,Area Board Grants,Supplies and Services,REVENUE
http://statistics.data.gov.uk/id/local-authority/00HY,Wiltshire Council,14/02/2014,1901216462,1030.00,A  and  S Private Hire ,101115,SN15,Children & Education,SENTransport,Transport Contracts,Third Party Payments,REVENUE
http://statistics.data.gov.uk/id/local-authority/00HY,Wiltshire Council,21/02/2014,1901226403,360.00,A B Taxis Ltd ,100945,SN12,Community Services,CTPLD County CIC U65,Transport Contracts,Third Party Payments,REVENUE
http://statistics.data.gov.uk/id/local-authority/00HY,Wiltshire Council,21/02/2014,1901226413,268.32,A B Taxis Ltd ,100945,SN12,Children & Education,Safeguarding Ass Wst,Transport Contracts,Third Party Payments,REVENUE
http://statistics.data.gov.uk/id/local-authority/00HY,Wiltshire Council,03/02/2014,1901210856,420.55,A C E Supplies ,126284,BA15,Resources,WTP Office,Preventative Property Maintenance,Premises Related,REVENUE
http://statistics.data.gov.uk/id/local-authority/00HY,Wiltshire Council,28/02/2014,1901212730,497.49,A C E Supplies ,126284,BA15,Resources,WTP Office,Preventative Property Maintenance,Premises Related,REVENUE
http://statistics.data.gov.uk/id/local-authority/00HY,Wiltshire Council,05/02/2014,1901212731,445.56,A C E Supplies ,126284,BA15,Resources,WTP Office,Preventative Property Maintenance,Premises Related,REVENUE
http://statistics.data.gov.uk/id/local-authority/00HY,Wiltshire Council,25/02/2014,5106450139,1615.00,A E Smith   Son ,110014,SN3 ,Resources,CoronerGeneral,Body Removals,Supplies and Services,REVENUE
http://statistics.data.gov.uk/id/local-authority/00HY,Wiltshire Council,10/02/2014,1901213731,448.77,A G Minibuses ,100878,BA12,Neighbourhood & Planning,Mainstream Primary,Transport Contracts,Third Party Payments,REVENUE
http://statistics.data.gov.uk/id/local-authority/00HY,Wiltshire Council,10/02/2014,1901213731,714.66,A G Minibuses ,100878,BA12,Neighbourhood & Planning,Public Transport,Transport Contracts,Third Party Payments,REVENUE
http://statistics.data.gov.uk/id/local-authority/00HY,Wiltshire Council,10/02/2014,1901213737,13491.89,A G Minibuses ,100878,BA12,Neighbourhood & Planning,Connect 2 Wiltshire,Transport Contracts,Third Party Payments,REVENUE
http://statistics.data.gov.uk/id/local-authority/00HY,Wiltshire Council,18/02/2014,1901216972,927.50,A G Minibuses ,100878,BA12,Neighbourhood & Planning,Mainstream Secondary,Transport Contracts,Third Party Payments,REVENUE
http://statistics.data.gov.uk/id/local-authority/00HY,Wiltshire Council,18/02/2014,1901216972,1405.00,A G Minibuses ,100878,BA12,Children & Education,SENTransport,Transport Contracts,Third Party Payments,REVENUE
http://statistics.data.gov.uk/id/local-authority/00HY,Wiltshire Council,18/02/2014,1901216973,2427.20,A G Minibuses ,100878,BA12,Children & Education,SENTransport,Transport Contracts,Third Party Payments,REVENUE
http://statistics.data.gov.uk/id/local-authority/00HY,Wiltshire Council,18/02/2014,1901216974,1788.47,A G Minibuses ,100878,BA12,Neighbourhood & Planning,Mainstream Primary,Transport Contracts,Third Party Payments,REVENUE
http://statistics.data.gov.uk/id/local-authority/00HY,Wiltshire Council,18/02/2014,1901216975,1830.40,A G Minibuses ,100878,BA12,Neighbourhood & Planning,Mainstream Primary,Transport Contracts,Third Party Payments,REVENUE
http://statistics.data.gov.uk/id/local-authority/00HY,Wiltshire Council,18/02/2014,1901216977,1111.46,A G Minibuses ,100878,BA12,Neighbourhood & Planning,Mainstream Secondary,Transport Contracts,Third Party Payments,REVENUE
http://statistics.data.gov.uk/id/local-authority/00HY,Wiltshire Council,18/02/2014,1901216978,369.00,A G Minibuses ,100878,BA12,Neighbourhood & Planning,Mainstream Primary,Transport Contracts,Third Party Payments,REVENUE
http://statistics.data.gov.uk/id/local-authority/00HY,Wiltshire Council,18/02/2014,1901216978,369.00,A G Minibuses ,100878,BA12,Neighbourhood & Planning,SEN Rechargable Exp,Transport Contracts,Third Party Payments,REVENUE
http://statistics.data.gov.uk/id/local-authority/00HY,Wiltshire Council,18/02/2014,1901216978,1107.00,A G Minibuses ,100878,BA12,Children & Education,SENTransport,Transport Contracts,Third Party Payments,REVENUE
http://statistics.data.gov.uk/id/local-authority/00HY,Wiltshire Council,18/02/2014,1901216979,3247.00,A G Minibuses ,100878,BA12,Children & Education,SENTransport,Transport Contracts,Third Party Payments,REVENUE
http://statistics.data.gov.uk/id/local-authority/00HY,Wiltshire Council,18/02/2014,1901216980,1672.19,A G Minibuses ,100878,BA12,Children & Education,SENTransport,Transport Contracts,Third Party Payments,REVENUE
http://statistics.data.gov.uk/id/local-authority/00HY,Wiltshire Council,18/02/2014,1901216981,854.05,A G Minibuses ,100878,BA12,Children & Education,SENTransport,Transport Contracts,Third Party Payments,REVENUE
http://statistics.data.gov.uk/id/local-authority/00HY,Wiltshire Council,18/02/2014,1901216982,1234.00,A G Minibuses ,100878,BA12,Neighbourhood & Planning,Mainstream Secondary,Transport Contracts,Third Party Payments,REVENUE
http://statistics.data.gov.uk/id/local-authority/00HY,Wiltshire Council,18/02/2014,1901216983,1334.00,A G Minibuses ,100878,BA12,Neighbourhood & Planning,Mainstream Primary,Transport Contracts,Third Party Payments,REVENUE
http://statistics.data.gov.uk/id/local-authority/00HY,Wiltshire Council,18/02/2014,1901216986,510.00,A G Minibuses ,100878,BA12,Neighbourhood & Planning,Mainstream 16+ FE,Transport Contracts,Third Party Payments,REVENUE
http://statistics.data.gov.uk/id/local-authority/00HY,Wiltshire Council,21/02/2014,1901226368,997.50,A G Minibuses ,100878,BA12,Neighbourhood & Planning,Mainstream Primary,Transport Contracts,Third Party Payments,REVENUE
http://statistics.data.gov.uk/id/local-authority/00HY,Wiltshire Council,21/02/2014,1901226368,1395.32,A G Minibuses ,100878,BA12,Neighbourhood & Planning,Connect 2 Wiltshire,Transport Contracts,Third Party Payments,REVENUE
http://statistics.data.gov.uk/id/local-authority/00HY,Wiltshire Council,21/02/2014,1901226368,1588.52,A G Minibuses ,100878,BA12,Neighbourhood & Planning,Public Transport,Transport Contracts,Third Party Payments,REVENUE
http://statistics.data.gov.uk/id/local-authority/00HY,Wiltshire Council,21/02/2014,1901226369,1583.33,A G Minibuses ,100878,BA12,Neighbourhood & Planning,Mainstream Secondary,Transport Contracts,Third Party Payments,REVENUE
http://statistics.data.gov.uk/id/local-authority/00HY,Wiltshire Council,21/02/2014,1901226369,3723.50,A G Minibuses ,100878,BA12,Neighbourhood & Planning,Connect 2 Wiltshire,Transport Contracts,Third Party Payments,REVENUE
http://statistics.data.gov.uk/id/local-authority/00HY,Wiltshire Council,21/02/2014,1901226371,527.79,A G Minibuses ,100878,BA12,Community Services,CTPLD County CIC U65,Transport Contracts,Third Party Payments,REVENUE
http://statistics.data.gov.uk/id/local-authority/00HY,Wiltshire Council,21/02/2014,1901226371,1024.53,A G Minibuses ,100878,BA12,Community Services,PI East Locality,Transport Contracts,Third Party Payments,REVENUE
http://statistics.data.gov.uk/id/local-authority/00HY,Wiltshire Council,21/02/2014,1901226372,473.25,A G Minibuses ,100878,BA12,Community Services,PI East Locality,Transport Contracts,Third Party Payments,REVENUE
http://statistics.data.gov.uk/id/local-authority/00HY,Wiltshire Council,21/02/2014,1901226373,2387.39,A G Minibuses ,100878,BA12,Community Services,CTPLD County CIC U65,Transport Contracts,Third Party Payments,REVENUE
http://statistics.data.gov.uk/id/local-authority/00HY,Wiltshire Council,21/02/2014,1901226376,675.75,A G Minibuses ,100878,BA12,Children & Education,WestChildrenw/Dis,Transport Contracts,Third Party Payments,REVENUE
http://statistics.data.gov.uk/id/local-authority/00HY,Wiltshire Council,21/02/2014,1901226376,2703.00,A G Minibuses ,100878,BA12,Children & Education,SENTransport,Transport Contracts,Third Party Payments,REVENUE
http://statistics.data.gov.uk/id/local-authority/00HY,Wiltshire Council,21/02/2014,1901226378,1548.80,A G Minibuses ,100878,BA12,Community Services,CTPLD County CIC U65,Transport Contracts,Third Party Payments,REVENUE
http://statistics.data.gov.uk/id/local-authority/00HY,Wiltshire Council,21/02/2014,1901226384,920.40,A G Minibuses ,100878,BA12,Children & Education,WestChildrenw/Dis,Transport Contracts,Third Party Payments,REVENUE
http://statistics.data.gov.uk/id/local-authority/00HY,Wiltshire Council,21/02/2014,1901226384,2761.20,A G Minibuses ,100878,BA12,Children & Education,SENTransport,Transport Contracts,Third Party Payments,REVENUE
http://statistics.data.gov.uk/id/local-authority/00HY,Wiltshire Council,26/02/2014,1901227393,849.89,A G Minibuses ,100878,BA12,Community Services,MH OP East Locality,Transport Contracts,Third Party Payments,REVENUE
http://statistics.data.gov.uk/id/local-authority/00HY,Wiltshire Council,26/02/2014,1901227393,1227.63,A G Minibuses ,100878,BA12,Community Services,OP East Locality,Transport Contracts,Third Party Payments,REVENUE
http://statistics.data.gov.uk/id/local-authority/00HY,Wiltshire Council,07/02/2014,1901213390,8679.88,A J K Services ,100944,SP9 ,Wiltshire Council,Wiltshire Council,Buildings Minor Alterations,Premises Related,CAPITAL
http://statistics.data.gov.uk/id/local-authority/00HY,Wiltshire Council,04/02/2014,1901211278,1159.00,A M S Taxis ,100839,BA14,Children & Education,SENTransport,Transport Contracts,Third Party Payments,REVENUE
http://statistics.data.gov.uk/id/local-authority/00HY,Wiltshire Council,05/02/2014,1901212520,528.70,A P Taxis ,100628,SN12,Children & Education,SENTransport,Transport Contracts,Third Party Payments,REVENUE
http://statistics.data.gov.uk/id/local-authority/00HY,Wiltshire Council,05/02/2014,1901212525,1044.16,A P Taxis ,100628,SN12,Children & Education,SENTransport,Transport Contracts,Third Party Payments,REVENUE
http://statistics.data.gov.uk/id/local-authority/00HY,Wiltshire Council,05/02/2014,1901212527,1496.00,A P Taxis ,100628,SN12,Children & Education,SENTransport,Transport Contracts,Third Party Payments,REVENUE
http://statistics.data.gov.uk/id/local-authority/00HY,Wiltshire Council,05/02/2014,1901212528,284.81,A P Taxis ,100628,SN12,Neighbourhood & Planning,Mainstream Secondary,Transport Contracts,Third Party Payments,REVENUE
http://statistics.data.gov.uk/id/local-authority/00HY,Wiltshire Council,05/02/2014,1901212529,1138.00,A P Taxis ,100628,SN12,Children & Education,SENTransport,Transport Contracts,Third Party Payments,REVENUE
http://statistics.data.gov.uk/id/local-authority/00HY,Wiltshire Council,05/02/2014,5106440312,4166.00,A S A Awards Scheme ,110020,LE11,Neighbourhood & Planning,Five Rivers,Traded Goods Expenses,Supplies and Services,REVENUE
http://statistics.data.gov.uk/id/local-authority/00HY,Wiltshire Council,07/02/2014,1901213508,1415.50,A1 Cab Company ,101233,SP4 ,Children & Education,SENTransport,Transport Contracts,Third Party Payments,REVENUE
http://statistics.data.gov.uk/id/local-authority/00HY,Wiltshire Council,07/02/2014,1901213515,748.00,A1 Cab Company ,101233,SP4 ,Community Services,CTPLD County CIC U65,Transport Contracts,Third Party Payments,REVENUE
http://statistics.data.gov.uk/id/local-authority/00HY,Wiltshire Council,07/02/2014,1901213516,940.50,A1 Cab Company ,101233,SP4 ,Neighbourhood & Planning,Mainstream Secondary,Transport Contracts,Third Party Payments,REVENUE
http://statistics.data.gov.uk/id/local-authority/00HY,Wiltshire Council,07/02/2014,1901213517,1350.00,A1 Cab Company ,101233,SP4 ,Neighbourhood & Planning,Mainstream Primary,Transport Contracts,Third Party Payments,REVENUE
http://statistics.data.gov.uk/id/local-authority/00HY,Wiltshire Council,07/02/2014,1901213520,874.00,A1 Cab Company ,101233,SP4 ,Neighbourhood & Planning,Mainstream Secondary,Transport Contracts,Third Party Payments,REVENUE
http://statistics.data.gov.uk/id/local-authority/00HY,Wiltshire Council,10/02/2014,1901213767,2500.00,A1 Cab Company ,101233,SP4 ,Children & Education,SENTransport,Transport Contracts,Third Party Payments,REVENUE
http://statistics.data.gov.uk/id/local-authority/00HY,Wiltshire Council,12/02/2014,1901214112,10916.16,A2 Winchester Ltd ,101167,SO23,Neighbourhood & Planning,HousingStrategy,Payments to Contractors - Other,Third Party Payments,REVENUE
http://statistics.data.gov.uk/id/local-authority/00HY,Wiltshire Council,07/02/2014,5106440639,36047.00,Aareon Uk Ltd ,113252,CV8 ,Community Services,HRA System Supp Perf,ICT - Support arrangements,Supplies and Services,REVENUE
http://statistics.data.gov.uk/id/local-authority/00HY,Wiltshire Council,28/02/2014,5106444936,975.00,Aareon Uk Ltd ,113252,CV8 ,Community Services,HRA System Supp Perf,ICT - Support arrangements,Supplies and Services,REVENUE
http://statistics.data.gov.uk/id/local-authority/00HY,Wiltshire Council,28/02/2014,5106444937,2850.00,Aareon Uk Ltd ,113252,CV8 ,Wiltshire Council,Wiltshire Council,ICT - Support arrangements,Supplies and Services,CAPITAL
http://statistics.data.gov.uk/id/local-authority/00HY,Wiltshire Council,03/02/2014,1901210921,1311.23,Abbey Taxis (Swindon) Ltd ,100920,SN2 ,Children & Education,SENTransport,Transport Contracts,Third Party Payments,REVENUE
http://statistics.data.gov.uk/id/local-authority/00HY,Wiltshire Council,03/02/2014,1901210943,1652.00,Abbey Taxis (Swindon) Ltd ,100920,SN2 ,Children & Education,SENTransport,Transport Contracts,Third Party Payments,REVENUE
http://statistics.data.gov.uk/id/local-authority/00HY,Wiltshire Council,12/02/2014,1901214452,1808.60,Abbey Taxis (Swindon) Ltd ,100920,SN2 ,Children & Education,SENTransport,Transport Contracts,Third Party Payments,REVENUE
http://statistics.data.gov.uk/id/local-authority/00HY,Wiltshire Council,12/02/2014,1901214453,869.31,Abbey Taxis (Swindon) Ltd ,100920,SN2 ,Neighbourhood & Planning,Mainstream Secondary,Transport Contracts,Third Party Payments,REVENUE
http://statistics.data.gov.uk/id/local-authority/00HY,Wiltshire Council,12/02/2014,1901214468,1963.20,Abbey Taxis (Swindon) Ltd ,100920,SN2 ,Children & Education,SENTransport,Transport Contracts,Third Party Payments,REVENUE
http://statistics.data.gov.uk/id/local-authority/00HY,Wiltshire Council,12/02/2014,1901214475,368.80,Abbey Taxis (Swindon) Ltd ,100920,SN2 ,Children & Education,SENTransport,Transport Contracts,Third Party Payments,REVENUE
http://statistics.data.gov.uk/id/local-authority/00HY,Wiltshire Council,12/02/2014,1901214484,879.13,Abbey Taxis (Swindon) Ltd ,100920,SN2 ,Neighbourhood & Planning,Mainstream Primary,Transport Contracts,Third Party Payments,REVENUE
http://statistics.data.gov.uk/id/local-authority/00HY,Wiltshire Council,12/02/2014,1901214493,2339.18,Abbey Taxis (Swindon) Ltd ,100920,SN2 ,Children & Education,Safeguarding Ass Wst,Transport Contracts,Third Party Payments,REVENUE
http://statistics.data.gov.uk/id/local-authority/00HY,Wiltshire Council,13/02/2014,1901215353,1140.00,Abbey Taxis (Swindon) Ltd ,100920,SN2 ,Neighbourhood & Planning,Mainstream Primary,Transport Contracts,Third Party Payments,REVENUE
http://statistics.data.gov.uk/id/local-authority/00HY,Wiltshire Council,17/02/2014,1901216637,392.00,Abbey Taxis (Swindon) Ltd ,100920,SN2 ,Children & Education,SENTransport,Transport Contracts,Third Party Payments,REVENUE
http://statistics.data.gov.uk/id/local-authority/00HY,Wiltshire Council,18/02/2014,1901216961,1326.80,Abbey Taxis (Swindon) Ltd ,100920,SN2 ,Children & Education,SENTransport,Transport Contracts,Third Party Payments,REVENUE
http://statistics.data.gov.uk/id/local-authority/00HY,Wiltshire Council,19/02/2014,1901225315,530.00,Abbey Taxis (Swindon) Ltd ,100920,SN2 ,Children & Education,SENTransport,Transport Contracts,Third Party Payments,REVENUE
http://statistics.data.gov.uk/id/local-authority/00HY,Wiltshire Council,19/02/2014,1901225315,540.00,Abbey Taxis (Swindon) Ltd ,100920,SN2 ,Children & Education,LAC & 16+ Team 2,Transport Contracts,Third Party Payments,REVENUE
http://statistics.data.gov.uk/id/local-authority/00HY,Wiltshire Council,19/02/2014,1901225315,900.00,Abbey Taxis (Swindon) Ltd ,100920,SN2 ,Neighbourhood & Planning,Mainstream Primary,Transport Contracts,Third Party Payments,REVENUE
http://statistics.data.gov.uk/id/local-authority/00HY,Wiltshire Council,20/02/2014,1901226068,1239.00,Abbey Taxis (Swindon) Ltd ,100920,SN2 ,Children & Education,SENTransport,Transport Contracts,Third Party Payments,REVENUE
http://statistics.data.gov.uk/id/local-authority/00HY,Wiltshire Council,20/02/2014,1901226069,550.80,Abbey Taxis (Swindon) Ltd ,100920,SN2 ,Neighbourhood & Planning,Mainstream 16+ FE,Transport Contracts,Third Party Payments,REVENUE
http://statistics.data.gov.uk/id/local-authority/00HY,Wiltshire Council,20/02/2014,1901226070,795.60,Abbey Taxis (Swindon) Ltd ,100920,SN2 ,Neighbourhood & Planning,Mainstream 16+ FE,Transport Contracts,Third Party Payments,REVENUE
http://statistics.data.gov.uk/id/local-authority/00HY,Wiltshire Council,21/02/2014,1901226365,1652.00,Abbey Taxis (Swindon) Ltd ,100920,SN2 ,Children & Education,SENTransport,Transport Contracts,Third Party Payments,REVENUE
http://statistics.data.gov.uk/id/local-authority/00HY,Wiltshire Council,18/02/2014,1901216959,550.24,Abbey Taxis Ltd ,101080,BA2 ,Neighbourhood & Planning,Mainstream Secondary,Transport Contracts,Third Party Payments,REVENUE
http://statistics.data.gov.uk/id/local-authority/00HY,Wiltshire Council,18/02/2014,1901216960,578.80,Abbey Taxis Ltd ,101080,BA2 ,Neighbourhood & Planning,Mainstream Secondary,Transport Contracts,Third Party Payments,REVENUE
http://statistics.data.gov.uk/id/local-authority/00HY,Wiltshire Council,12/02/2014,5106443619,1930.48,Abbeyfield Greensted Residential Ho ,135852,ME2 ,Community Services,OP North Locality,Adult Residential Placements - Spot Purchase,Third Party Payments,REVENUE
http://statistics.data.gov.uk/id/local-authority/00HY,Wiltshire Council,03/02/2014,5106438810,384.27,Abicare Services Ltd Homecare ,110031,SP2 ,Community Services,MH OP South Locality,Adult Domiciliary Care - Spot,Third Party Payments,REVENUE
http://statistics.data.gov.uk/id/local-authority/00HY,Wiltshire Council,04/02/2014,5106439093,357.27,Abicare Services Ltd Homecare ,110031,SP2 ,Community Services,MH OP South Locality,Adult Domiciliary Care - Spot,Third Party Payments,REVENUE
http://statistics.data.gov.uk/id/local-authority/00HY,Wiltshire Council,07/02/2014,5106440358,382.37,Abicare Services Ltd Homecare ,110031,SP2 ,Community Services,CTPLD County CIC U65,Adult Domiciliary Care - Spot Contribution,Income,REVENUE
http://statistics.data.gov.uk/id/local-authority/00HY,Wiltshire Council,05/02/2014,5106440359,274.31,Abicare Services Ltd Homecare ,110031,SP2 ,Community Services,CTPLD County CIC U65,Adult Domiciliary Care - Spot Contribution,Income,REVENUE
http://statistics.data.gov.uk/id/local-authority/00HY,Wiltshire Council,06/02/2014,5106440521,473.28,Abicare Services Ltd Homecare ,110031,SP2 ,Community Services,PI South Locality,Adult Domiciliary Care - Spot Contribution,Income,REVENUE
http://statistics.data.gov.uk/id/local-authority/00HY,Wiltshire Council,06/02/2014,5106440526,793.41,Abicare Services Ltd Homecare ,110031,SP2 ,Community Services,OP West Locality,Adult Domiciliary Care - Mileage,Third Party Payments,REVENUE
http://statistics.data.gov.uk/id/local-authority/00HY,Wiltshire Council,10/02/2014,5106442184,384.27,Abicare Services Ltd Homecare ,110031,SP2 ,Community Services,MH OP South Locality,Adult Domiciliary Care - Spot,Third Party Payments,REVENUE
http://statistics.data.gov.uk/id/local-authority/00HY,Wiltshire Council,10/02/2014,5106442221,306.29,Abicare Services Ltd Homecare ,110031,SP2 ,Community Services,CTPLD County CIC U65,Adult Domiciliary Care - Spot Contribution,Income,REVENUE
http://statistics.data.gov.uk/id/local-authority/00HY,Wiltshire Council,21/02/2014,5106447438,414.35,Abicare Services Ltd Homecare ,110031,SP2 ,Community Services,CTPLD County CIC U65,Adult Domiciliary Care - Spot Contribution,Income,REVENUE
http://statistics.data.gov.uk/id/local-authority/00HY,Wiltshire Council,14/02/2014,5106447462,793.41,Abicare Services Ltd Homecare ,110031,SP2 ,Community Services,OP West Locality,Adult Domiciliary Care - Mileage,Third Party Payments,REVENUE
http://statistics.data.gov.uk/id/local-authority/00HY,Wiltshire Council,14/02/2014,5106447466,485.79,Abicare Services Ltd Homecare ,110031,SP2 ,Community Services,PI South Locality,Adult Domiciliary Care - Spot Contribution,Income,REVENUE
http://statistics.data.gov.uk/id/local-authority/00HY,Wiltshire Council,14/02/2014,5106447564,257.48,Abicare Services Ltd Homecare ,110031,SP2 ,Community Services,CTPLD County CIC U65,Adult Domiciliary Care - Spot Contribution,Income,REVENUE
http://statistics.data.gov.uk/id/local-authority/00HY,Wiltshire Council,14/02/2014,5106448663,793.41,Abicare Services Ltd Homecare ,110031,SP2 ,Community Services,OP West Locality,Adult Domiciliary Care - Mileage,Third Party Payments,REVENUE
http://statistics.data.gov.uk/id/local-authority/00HY,Wiltshire Council,18/02/2014,5106449063,384.27,Abicare Services Ltd Homecare ,110031,SP2 ,Community Services,MH OP South Locality,Adult Domiciliary Care - Spot,Third Party Payments,REVENUE
http://statistics.data.gov.uk/id/local-authority/00HY,Wiltshire Council,19/02/2014,5106449372,485.79,Abicare Services Ltd Homecare ,110031,SP2 ,Community Services,PI South Locality,Adult Domiciliary Care - Spot Contribution,Income,REVENUE
http://statistics.data.gov.uk/id/local-authority/00HY,Wiltshire Council,26/02/2014,5106450446,470.94,Abicare Services Ltd Homecare ,110031,SP2 ,Community Services,PI South Locality,Adult Domiciliary Care - Spot Contribution,Income,REVENUE
http://statistics.data.gov.uk/id/local-authority/00HY,Wiltshire Council,26/02/2014,5106450447,306.29,Abicare Services Ltd Homecare ,110031,SP2 ,Community Services,CTPLD County CIC U65,Adult Domiciliary Care - Spot Contribution,Income,REVENUE
http://statistics.data.gov.uk/id/local-authority/00HY,Wiltshire Council,28/02/2014,5106450455,414.35,Abicare Services Ltd Homecare ,110031,SP2 ,Community Services,CTPLD County CIC U65,Adult Domiciliary Care - Spot Contribution,Income,REVENUE
http://statistics.data.gov.uk/id/local-authority/00HY,Wiltshire Council,26/02/2014,5106450480,793.41,Abicare Services Ltd Homecare ,110031,SP2 ,Community Services,OP West Locality,Adult Domiciliary Care - Mileage,Third Party Payments,REVENUE
http://statistics.data.gov.uk/id/local-authority/00HY,Wiltshire Council,26/02/2014,5106450519,302.20,Abicare Services Ltd Homecare ,110031,SP2 ,Community Services,MH AOWA South,Adult Domiciliary Care - Spot,Third Party Payments,REVENUE
http://statistics.data.gov.uk/id/local-authority/00HY,Wiltshire Council,07/02/2014,5106434694,756.05,Abicare Services Ltd Live in Care. ,113071,SP2 ,Community Services,MH OP East Locality,Adult Domiciliary care - Live in contribution,Income,REVENUE
http://statistics.data.gov.uk/id/local-authority/00HY,Wiltshire Council,03/02/2014,5106438870,543.51,Abicare Services Ltd Live in Care. ,113071,SP2 ,Community Services,MH OP South Locality,Adult Domiciliary care - Live in contribution,Income,REVENUE
http://statistics.data.gov.uk/id/local-authority/00HY,Wiltshire Council,14/02/2014,5106438874,756.05,Abicare Services Ltd Live in Care. ,113071,SP2 ,Community Services,MH OP East Locality,Adult Domiciliary care - Live in contribution,Income,REVENUE
http://statistics.data.gov.uk/id/local-authority/00HY,Wiltshire Council,21/02/2014,5106438887,756.05,Abicare Services Ltd Live in Care. ,113071,SP2 ,Community Services,MH OP East Locality,Adult Domiciliary care - Live in contribution,Income,REVENUE
http://statistics.data.gov.uk/id/local-authority/00HY,Wiltshire Council,03/02/2014,5106438888,543.51,Abicare Services Ltd Live in Care. ,113071,SP2 ,Community Services,MH OP South Locality,Adult Domiciliary care - Live in contribution,Income,REVENUE
http://statistics.data.gov.uk/id/local-authority/00HY,Wiltshire Council,06/02/2014,5106440522,723.38,Abicare Services Ltd Live in Care. ,113071,SP2 ,Community Services,CTPLD County CIC U65,Adult Domiciliary Care - Live in Care,Third Party Payments,REVENUE
http://statistics.data.gov.uk/id/local-authority/00HY,Wiltshire Council,06/02/2014,5106440523,713.30,Abicare Services Ltd Live in Care. ,113071,SP2 ,Community Services,OP South Locality,Adult Domiciliary Care - Live in Care,Third Party Payments,REVENUE
http://statistics.data.gov.uk/id/local-authority/00HY,Wiltshire Council,14/02/2014,5106447437,723.38,Abicare Services Ltd Live in Care. ,113071,SP2 ,Community Services,CTPLD County CIC U65,Adult Domiciliary Care - Live in Care,Third Party Payments,REVENUE
http://statistics.data.gov.uk/id/local-authority/00HY,Wiltshire Council,14/02/2014,5106447561,713.30,Abicare Services Ltd Live in Care. ,113071,SP2 ,Community Services,OP South Locality,Adult Domiciliary Care - Live in Care,Third Party Payments,REVENUE
http://statistics.data.gov.uk/id/local-authority/00HY,Wiltshire Council,18/02/2014,5106449058,543.51,Abicare Services Ltd Live in Care. ,113071,SP2 ,Community Services,MH OP South Locality,Adult Domiciliary care - Live in contribution,Income,REVENUE
http://statistics.data.gov.uk/id/local-authority/00HY,Wiltshire Council,28/02/2014,5106449059,756.05,Abicare Services Ltd Live in Care. ,113071,SP2 ,Community Services,MH OP East Locality,Adult Domiciliary care - Live in contribution,Income,REVENUE
http://statistics.data.gov.uk/id/local-authority/00HY,Wiltshire Council,26/02/2014,5106450462,713.30,Abicare Services Ltd Live in Care. ,113071,SP2 ,Community Services,OP South Locality,Adult Domiciliary Care - Live in Care,Third Party Payments,REVENUE
http://statistics.data.gov.uk/id/local-authority/00HY,Wiltshire Council,26/02/2014,5106450469,723.38,Abicare Services Ltd Live in Care. ,113071,SP2 ,Community Services,CTPLD County CIC U65,Adult Domiciliary Care - Live in Care,Third Party Payments,REVENUE
http://statistics.data.gov.uk/id/local-authority/00HY,Wiltshire Council,12/02/2014,5106441438,6446.80,Ability Associates Ltd ,110033,SP3 ,Community Services,CTPLD County CIC U65,Adult Residential Placements - Spot Purchase,Third Party Payments,REVENUE
http://statistics.data.gov.uk/id/local-authority/00HY,Wiltshire Council,12/02/2014,5106441566,2585.00,Ability Associates Ltd ,110033,SP3 ,Community Services,CTPLD County CIC U65,Supported Living - Without SP payments,Third Party Payments,REVENUE
http://statistics.data.gov.uk/id/local-authority/00HY,Wiltshire Council,12/02/2014,5106441608,4110.00,Ability Associates Ltd ,110033,SP3 ,Community Services,CTPLD County CIC U65,Supported Living - Without SP payments,Third Party Payments,REVENUE
http://statistics.data.gov.uk/id/local-authority/00HY,Wiltshire Council,12/02/2014,5106443404,6254.92,Ability Associates Ltd ,110033,SP3 ,Community Services,CTPLD County CIC U65,Adult Residential Placements - Spot Purchase,Third Party Payments,REVENUE
http://statistics.data.gov.uk/id/local-authority/00HY,Wiltshire Council,12/02/2014,5106443697,5555.48,Ability Associates Ltd ,110033,SP3 ,Community Services,CTPLD County CIC U65,Adult Residential Placements - Spot Purchase,Third Party Payments,REVENUE
http://statistics.data.gov.uk/id/local-authority/00HY,Wiltshire Council,13/02/2014,1901214644,1687.67,ABLE ,101029,BA14,Community Services,MH Commissioned Cont,Payments to Contractors - Other,Third Party Payments,REVENUE
http://statistics.data.gov.uk/id/local-authority/00HY,Wiltshire Council,13/02/2014,1901214645,1227.40,ABLE ,101029,BA14,Community Services,MH Commissioned Cont,Payments to Contractors - Other,Third Party Payments,REVENUE
http://statistics.data.gov.uk/id/local-authority/00HY,Wiltshire Council,12/02/2014,5106441568,425.32,ABLE ,101029,BA14,Community Services,MH AOWA North,Supported Living - Without SP payments,Third Party Payments,REVENUE
http://statistics.data.gov.uk/id/local-authority/00HY,Wiltshire Council,12/02/2014,5106441569,425.32,ABLE ,101029,BA14,Community Services,MH PCT Section 256,Adult Domiciliary Care - Spot,Third Party Payments,REVENUE
http://statistics.data.gov.uk/id/local-authority/00HY,Wiltshire Council,12/02/2014,5106441994,1257.68,ABLE ,101029,BA14,Community Services,MH AOWA West HL,Supported Living - Without SP payments,Third Party Payments,REVENUE
http://statistics.data.gov.uk/id/local-authority/00HY,Wiltshire Council,12/02/2014,5106442007,425.40,ABLE ,101029,BA14,Community Services,MH AOWA North,Supported Living - Without SP payments,Third Party Payments,REVENUE
http://statistics.data.gov.uk/id/local-authority/00HY,Wiltshire Council,12/02/2014,5106443422,2344.24,ABLE ,110034,BA14,Community Services,MH PCT Section 256,Adult Residential Placements - Spot Purchase,Third Party Payments,REVENUE
http://statistics.data.gov.uk/id/local-authority/00HY,Wiltshire Council,12/02/2014,5106443424,2797.60,ABLE ,110034,BA14,Community Services,MH PCT Section 256,Adult Residential Placements - Spot Purchase,Third Party Payments,REVENUE
http://statistics.data.gov.uk/id/local-authority/00HY,Wiltshire Council,12/02/2014,5106443426,2506.68,ABLE ,110034,BA14,Community Services,MH PCT Section 256,Adult Residential Placements - Spot Purchase,Third Party Payments,REVENUE
http://statistics.data.gov.uk/id/local-authority/00HY,Wiltshire Council,12/02/2014,5106443487,2527.04,ABLE ,110034,BA14,Community Services,MH PCT Section 256,Adult Residential Placements - Spot Purchase,Third Party Payments,REVENUE
http://statistics.data.gov.uk/id/local-authority/00HY,Wiltshire Council,12/02/2014,5106443737,2872.56,ABLE ,110034,BA14,Community Services,MH AOWA North,Adult Residential Placements - Spot Purchase,Third Party Payments,REVENUE
http://statistics.data.gov.uk/id/local-authority/00HY,Wiltshire Council,12/02/2014,5106444164,2772.20,ABLE ,110034,BA14,Community Services,MH AOWA North,Adult Residential Placements - Spot Purchase,Third Party Payments,REVENUE
http://statistics.data.gov.uk/id/local-authority/00HY,Wiltshire Council,12/02/2014,5106444437,3000.00,ABLE ,110034,BA14,Community Services,PI West Locality,Adult Residential Placements - Spot Purchase,Third Party Payments,REVENUE
http://statistics.data.gov.uk/id/local-authority/00HY,Wiltshire Council,12/02/2014,5106444567,2428.62,ABLE ,110034,BA14,Community Services,MH AOWA North,Adult Residential Placements - Spot Purchase,Third Party Payments,REVENUE
http://statistics.data.gov.uk/id/local-authority/00HY,Wiltshire Council,12/02/2014,5106444569,4000.00,ABLE ,110034,BA14,Community Services,MH AOWA North,Adult Residential Placements - Spot Purchase,Third Party Payments,REVENUE
http://statistics.data.gov.uk/id/local-authority/00HY,Wiltshire Council,12/02/2014,5106444571,4000.00,ABLE ,110034,BA14,Community Services,MH AOWA North,Adult Residential Placements - Spot Purchase,Third Party Payments,REVENUE
http://statistics.data.gov.uk/id/local-authority/00HY,Wiltshire Council,12/02/2014,5106444573,4000.00,ABLE ,110034,BA14,Community Services,MH AOWA North,Adult Residential Placements - Spot Purchase,Third Party Payments,REVENUE
http://statistics.data.gov.uk/id/local-authority/00HY,Wiltshire Council,12/02/2014,5106444575,4000.00,ABLE ,110034,BA14,Community Services,MH AOWA North,Adult Residential Placements - Spot Purchase,Third Party Payments,REVENUE
http://statistics.data.gov.uk/id/local-authority/00HY,Wiltshire Council,12/02/2014,5106444577,4000.00,ABLE ,110034,BA14,Community Services,MH AOWA North,Adult Residential Placements - Spot Purchase,Third Party Payments,REVENUE
http://statistics.data.gov.uk/id/local-authority/00HY,Wiltshire Council,13/02/2014,1901215318,898.00,Absolute Music Solutions Ltd ,138915,BH11,Neighbourhood & Planning,Tidworth,Leisure Centre Income,Income,REVENUE
http://statistics.data.gov.uk/id/local-authority/00HY,Wiltshire Council,18/02/2014,1901207312,3112.70,AC  and  MS Ltd ,101175,SS8 ,Resources,Fire Extinguishers,Preventative Property Maintenance,Premises Related,REVENUE
http://statistics.data.gov.uk/id/local-authority/00HY,Wiltshire Council,18/02/2014,1901207313,2203.50,AC  and  MS Ltd ,101175,SS8 ,Resources,Fire Extinguishers,Preventative Property Maintenance,Premises Related,REVENUE
http://statistics.data.gov.uk/id/local-authority/00HY,Wiltshire Council,27/02/2014,1901212741,1564.88,AC  and  MS Ltd ,101175,SS8 ,Resources,Fire Extinguishers,Preventative Property Maintenance,Premises Related,REVENUE
http://statistics.data.gov.uk/id/local-authority/00HY,Wiltshire Council,03/02/2014,5106431046,730.00,AC  and  MS Ltd ,101175,SS8 ,Wiltshire Council,Wiltshire Council,Premises Related Other Maintenance Costs,Premises Related,CAPITAL
http://statistics.data.gov.uk/id/local-authority/00HY,Wiltshire Council,07/02/2014,5106435375,8840.00,AC  and  MS Ltd ,101175,SS8 ,Neighbourhood & Planning,Housing Contracts,Premises Related Other Maintenance Costs,Premises Related,REVENUE
http://statistics.data.gov.uk/id/local-authority/00HY,Wiltshire Council,18/02/2014,5106444806,10790.00,AC  and  MS Ltd ,101175,SS8 ,Neighbourhood & Planning,Housing Contracts,Premises Related Other Maintenance Costs,Premises Related,REVENUE
http://statistics.data.gov.uk/id/local-authority/00HY,Wiltshire Council,18/02/2014,5106444807,360.00,AC  and  MS Ltd ,101175,SS8 ,Neighbourhood & Planning,Housing Contracts,Premises Related Other Maintenance Costs,Premises Related,REVENUE
http://statistics.data.gov.uk/id/local-authority/00HY,Wiltshire Council,18/02/2014,5106444809,360.00,AC  and  MS Ltd ,101175,SS8 ,Neighbourhood & Planning,Housing Contracts,Premises Related Other Maintenance Costs,Premises Related,REVENUE
http://statistics.data.gov.uk/id/local-authority/00HY,Wiltshire Council,18/02/2014,5106444810,440.00,AC  and  MS Ltd ,101175,SS8 ,Neighbourhood & Planning,Housing Contracts,Premises Related Other Maintenance Costs,Premises Related,REVENUE
http://statistics.data.gov.uk/id/local-authority/00HY,Wiltshire Council,24/02/2014,5106444847,7280.00,AC  and  MS Ltd ,101175,SS8 ,Neighbourhood & Planning,Housing Contracts,Premises Related Other Maintenance Costs,Premises Related,REVENUE
http://statistics.data.gov.uk/id/local-authority/00HY,Wiltshire Council,24/02/2014,5106447581,1880.00,AC  and  MS Ltd ,101175,SS8 ,Wiltshire Council,Wiltshire Council,Premises Related Other Maintenance Costs,Premises Related,CAPITAL
http://statistics.data.gov.uk/id/local-authority/00HY,Wiltshire Council,27/02/2014,5106447582,2730.00,AC  and  MS Ltd ,101175,SS8 ,Neighbourhood & Planning,Housing Contracts,Premises Related Other Maintenance Costs,Premises Related,REVENUE
http://statistics.data.gov.uk/id/local-authority/00HY,Wiltshire Council,17/02/2014,5106439164,675.00,Academy21 Ltd ,136859,SG1 ,Children & Education,EOTAS Service,Educational Fees,Supplies and Services,REVENUE
http://statistics.data.gov.uk/id/local-authority/00HY,Wiltshire Council,07/02/2014,5106442081,3685.88,Access Care Ltd ,110037,SP10,Community Services,OP West Locality,Adult Domiciliary care - Live in contribution,Income,REVENUE
http://statistics.data.gov.uk/id/local-authority/00HY,Wiltshire Council,07/02/2014,5106442082,2528.56,Access Care Ltd ,110037,SP10,Community Services,OP South Locality,Adult Domiciliary Care - Live in Care,Third Party Payments,REVENUE
http://statistics.data.gov.uk/id/local-authority/00HY,Wiltshire Council,10/02/2014,5106442083,2792.76,Access Care Ltd ,110037,SP10,Community Services,PI East Locality,Adult Domiciliary care - Live in contribution,Income,REVENUE
http://statistics.data.gov.uk/id/local-authority/00HY,Wiltshire Council,06/02/2014,5106434501,350.00,Acer Tree Surgeons Ltd ,113296,BA13,Neighbourhood & Planning,Woodland & Tree Mtc,Grounds Maintenance,Premises Related,REVENUE
http://statistics.data.gov.uk/id/local-authority/00HY,Wiltshire Council,17/02/2014,5106438487,750.00,Acer Tree Surgeons Ltd ,113296,BA13,Neighbourhood & Planning,Woodland & Tree Mtc,Grounds Maintenance,Premises Related,REVENUE
http://statistics.data.gov.uk/id/local-authority/00HY,Wiltshire Council,17/02/2014,5106438489,600.00,Acer Tree Surgeons Ltd ,113296,BA13,Neighbourhood & Planning,Woodland & Tree Mtc,Grounds Maintenance,Premises Related,REVENUE
http://statistics.data.gov.uk/id/local-authority/00HY,Wiltshire Council,17/02/2014,5106438502,2380.00,Acer Tree Surgeons Ltd ,113296,BA13,Neighbourhood & Planning,Woodland & Tree Mtc,Grounds Maintenance,Premises Related,REVENUE
http://statistics.data.gov.uk/id/local-authority/00HY,Wiltshire Council,17/02/2014,5106438541,780.00,Acer Tree Surgeons Ltd ,113296,BA13,Neighbourhood & Planning,Woodland & Tree Mtc,Grounds Maintenance,Premises Related,REVENUE
http://statistics.data.gov.uk/id/local-authority/00HY,Wiltshire Council,05/02/2014,1901212723,2000.00,Acorus Rural Property Services Ltd ,134560,CB23,Wiltshire Council,Wiltshire Council,Buildings Minor Alterations,Premises Related,CAPITAL
http://statistics.data.gov.uk/id/local-authority/00HY,Wiltshire Council,11/02/2014,1901212724,1000.00,Acorus Rural Property Services Ltd ,134560,CB23,Wiltshire Council,Wiltshire Council,Buildings Minor Alterations,Premises Related,CAPITAL
http://statistics.data.gov.uk/id/local-authority/00HY,Wiltshire Council,11/02/2014,1901212726,1052.72,Acorus Rural Property Services Ltd ,134560,CB23,Wiltshire Council,Wiltshire Council,Buildings Minor Alterations,Premises Related,CAPITAL
http://statistics.data.gov.uk/id/local-authority/00HY,Wiltshire Council,11/02/2014,1901212727,1500.00,Acorus Rural Property Services Ltd ,134560,CB23,Wiltshire Council,Wiltshire Council,Buildings Minor Alterations,Premises Related,CAPITAL
http://statistics.data.gov.uk/id/local-authority/00HY,Wiltshire Council,03/02/2014,5106438860,3552.40,Action on Addiction ,110046,SP3 ,Community Services,(9)ResPlacementsCIC,Adult Residential Place - Substance Misuse Cont,Income,REVENUE
http://statistics.data.gov.uk/id/local-authority/00HY,Wiltshire Council,03/02/2014,5106438860,3577.00,Action on Addiction ,110046,SP3 ,Community Services,(9)ResPlacementsPCT,Adult Residential Placements - Substance Misuse,Third Party Payments,REVENUE
http://statistics.data.gov.uk/id/local-authority/00HY,Wiltshire Council,03/02/2014,5106438861,2933.40,Action on Addiction ,110046,SP3 ,Community Services,(9)ResPlacementsCIC,Adult Residential Place - Substance Misuse Cont,Income,REVENUE
http://statistics.data.gov.uk/id/local-authority/00HY,Wiltshire Council,03/02/2014,5106438861,3066.00,Action on Addiction ,110046,SP3 ,Community Services,(9)ResPlacementsPCT,Adult Residential Placements - Substance Misuse,Third Party Payments,REVENUE
http://statistics.data.gov.uk/id/local-authority/00HY,Wiltshire Council,03/02/2014,5106438862,3066.00,Action on Addiction ,110046,SP3 ,Community Services,(9)ResPlacementsPCT,Adult Residential Placements - Substance Misuse,Third Party Payments,REVENUE
http://statistics.data.gov.uk/id/local-authority/00HY,Wiltshire Council,03/02/2014,5106438862,3066.00,Action on Addiction ,110046,SP3 ,Community Services,(9)ResPlacementsCIC,Adult Residential Placements - Substance Misuse,Third Party Payments,REVENUE
http://statistics.data.gov.uk/id/local-authority/00HY,Wiltshire Council,04/02/2014,5106439115,540.00,Action on Hearing Loss ,112215,EC1Y,Community Services,PI North Locality,Adult Domiciliary Care - Spot,Third Party Payments,REVENUE
http://statistics.data.gov.uk/id/local-authority/00HY,Wiltshire Council,12/02/2014,5106441363,5956.96,Action on Hearing Loss ,112215,EC1Y,Community Services,PI South Locality,Adult Residential Placements - Spot Purchase,Third Party Payments,REVENUE
http://statistics.data.gov.uk/id/local-authority/00HY,Wiltshire Council,12/02/2014,5106441725,4170.20,Action on Hearing Loss ,112215,EC1Y,Community Services,CTPLD County CIC U65,Supported Living - Without SP payments,Third Party Payments,REVENUE
http://statistics.data.gov.uk/id/local-authority/00HY,Wiltshire Council,12/02/2014,5106443320,5059.64,Action on Hearing Loss ,112215,EC1Y,Community Services,OP North Locality,Adult Residential Placements - Spot Purchase,Third Party Payments,REVENUE
http://statistics.data.gov.uk/id/local-authority/00HY,Wiltshire Council,10/02/2014,5106435141,444.56,Action on Hearing Loss ,120413,PE2 ,Community Services,Hearing & Vision,Client Aids and Adaptations,Third Party Payments,REVENUE
http://statistics.data.gov.uk/id/local-authority/00HY,Wiltshire Council,03/02/2014,5106434228,341.56,Adams Morey Ltd ,110053,SP2 ,Neighbourhood & Planning,Fleet Operations,Vehicle Parts,Transport Related,REVENUE
http://statistics.data.gov.uk/id/local-authority/00HY,Wiltshire Council,04/02/2014,5106434230,1343.84,Adams Morey Ltd ,110053,SP2 ,Neighbourhood & Planning,Fleet Operations,Vehicle Parts,Transport Related,REVENUE
http://statistics.data.gov.uk/id/local-authority/00HY,Wiltshire Council,06/02/2014,5106434231,497.53,Adams Morey Ltd ,110053,SP2 ,Neighbourhood & Planning,Fleet Operations,Vehicle Parts,Transport Related,REVENUE
http://statistics.data.gov.uk/id/local-authority/00HY,Wiltshire Council,04/02/2014,5106434233,415.82,Adams Morey Ltd ,110053,SP2 ,Neighbourhood & Planning,Fleet Operations,Vehicle Parts,Transport Related,REVENUE
http://statistics.data.gov.uk/id/local-authority/00HY,Wiltshire Council,11/02/2014,5106435594,1349.57,Adams Morey Ltd ,110053,SP2 ,Neighbourhood & Planning,Fleet Operations,Vehicle Parts,Transport Related,REVENUE
http://statistics.data.gov.uk/id/local-authority/00HY,Wiltshire Council,14/02/2014,5106435596,398.06,Adams Morey Ltd ,110053,SP2 ,Neighbourhood & Planning,Fleet Operations,Vehicle Parts,Transport Related,REVENUE
http://statistics.data.gov.uk/id/local-authority/00HY,Wiltshire Council,17/02/2014,5106438264,697.02,Adams Morey Ltd ,110053,SP2 ,Neighbourhood & Planning,Fleet Operations,Vehicle Parts,Transport Related,REVENUE
http://statistics.data.gov.uk/id/local-authority/00HY,Wiltshire Council,21/02/2014,5106444820,761.63,Adams Morey Ltd ,110053,SP2 ,Neighbourhood & Planning,Fleet Operations,Vehicle Parts,Transport Related,REVENUE
http://statistics.data.gov.uk/id/local-authority/00HY,Wiltshire Council,20/02/2014,5106444821,896.54,Adams Morey Ltd ,110053,SP2 ,Neighbourhood & Planning,Fleet Operations,Vehicle Parts,Transport Related,REVENUE
http://statistics.data.gov.uk/id/local-authority/00HY,Wiltshire Council,19/02/2014,1901225136,1249.67,Adiemus Care Limited - Ravenscroft ,132154,HA1 ,Community Services,DCS Dept Balance Sht,DCS Holding Account,Balance Sheet Accounts,REVENUE
http://statistics.data.gov.uk/id/local-authority/00HY,Wiltshire Council,19/02/2014,1901225137,1239.59,Adiemus Care Limited - Ravenscroft ,132154,HA1 ,Community Services,DCS Dept Balance Sht,DCS Holding Account,Balance Sheet Accounts,REVENUE
http://statistics.data.gov.uk/id/local-authority/00HY,Wiltshire Council,19/02/2014,1901225138,1413.60,Adiemus Care Limited - Ravenscroft ,132154,HA1 ,Community Services,DCS Dept Balance Sht,DCS Holding Account,Balance Sheet Accounts,REVENUE
http://statistics.data.gov.uk/id/local-authority/00HY,Wiltshire Council,19/02/2014,1901225140,1237.07,Adiemus Care Limited - Ravenscroft ,132154,HA1 ,Community Services,DCS Dept Balance Sht,DCS Holding Account,Balance Sheet Accounts,REVENUE
http://statistics.data.gov.uk/id/local-authority/00HY,Wiltshire Council,19/02/2014,1901225141,1245.47,Adiemus Care Limited - Ravenscroft ,132154,HA1 ,Community Services,DCS Dept Balance Sht,DCS Holding Account,Balance Sheet Accounts,REVENUE
http://statistics.data.gov.uk/id/local-authority/00HY,Wiltshire Council,19/02/2014,1901225143,1242.11,Adiemus Care Limited - Ravenscroft ,132154,HA1 ,Community Services,DCS Dept Balance Sht,DCS Holding Account,Balance Sheet Accounts,REVENUE
http://statistics.data.gov.uk/id/local-authority/00HY,Wiltshire Council,19/02/2014,1901225176,1027.90,Adiemus Care Limited - Ravenscroft ,132154,HA1 ,Community Services,DCS Dept Balance Sht,DCS Holding Account,Balance Sheet Accounts,REVENUE
http://statistics.data.gov.uk/id/local-authority/00HY,Wiltshire Council,19/02/2014,1901225178,1598.89,Adiemus Care Limited - Ravenscroft ,132154,HA1 ,Community Services,DCS Dept Balance Sht,DCS Holding Account,Balance Sheet Accounts,REVENUE
http://statistics.data.gov.uk/id/local-authority/00HY,Wiltshire Council,25/02/2014,1901226867,1249.67,Adiemus Care Limited - Ravenscroft ,132154,HA1 ,Community Services,DCS Dept Balance Sht,DCS Holding Account,Balance Sheet Accounts,REVENUE
http://statistics.data.gov.uk/id/local-authority/00HY,Wiltshire Council,12/02/2014,5106442310,1505.80,Adiemus Care Limited - Ravenscroft ,132154,HA1 ,Community Services,OP West Locality,Adult Care Nursing Placements- Spot Purchase,Third Party Payments,REVENUE
http://statistics.data.gov.uk/id/local-authority/00HY,Wiltshire Council,12/02/2014,5106442311,439.16,Adiemus Care Limited - Ravenscroft ,132154,HA1 ,Community Services,OP West FNC,Adult Care Funded Nursing Care - Loal Auth Clients,Third Party Payments,REVENUE
http://statistics.data.gov.uk/id/local-authority/00HY,Wiltshire Council,12/02/2014,5106442396,2010.12,Adiemus Care Limited - Ravenscroft ,132154,HA1 ,Community Services,OP West Locality,Adult Care Nursing Placements- Spot Purchase,Third Party Payments,REVENUE
http://statistics.data.gov.uk/id/local-authority/00HY,Wiltshire Council,12/02/2014,5106442397,439.16,Adiemus Care Limited - Ravenscroft ,132154,HA1 ,Community Services,OP West FNC,Adult Care Funded Nursing Care - Loal Auth Clients,Third Party Payments,REVENUE
http://statistics.data.gov.uk/id/local-authority/00HY,Wiltshire Council,12/02/2014,5106442599,2086.40,Adiemus Care Limited - Ravenscroft ,132154,HA1 ,Community Services,OP West Locality,Adult Care Nursing Placements- Spot Purchase,Third Party Payments,REVENUE
http://statistics.data.gov.uk/id/local-authority/00HY,Wiltshire Council,12/02/2014,5106442600,439.16,Adiemus Care Limited - Ravenscroft ,132154,HA1 ,Community Services,OP West FNC,Adult Care Funded Nursing Care - Loal Auth Clients,Third Party Payments,REVENUE
http://statistics.data.gov.uk/id/local-authority/00HY,Wiltshire Council,12/02/2014,5106442779,1931.52,Adiemus Care Limited - Ravenscroft ,132154,HA1 ,Community Services,OP West Locality,Adult Residential Placements - Spot Purchase,Third Party Payments,REVENUE
http://statistics.data.gov.uk/id/local-authority/00HY,Wiltshire Council,12/02/2014,5106442878,2449.24,Adiemus Care Limited - Ravenscroft ,132154,HA1 ,Community Services,OP West Locality,Adult Residential Placements - Spot Purchase,Third Party Payments,REVENUE
http://statistics.data.gov.uk/id/local-authority/00HY,Wiltshire Council,12/02/2014,5106443094,2056.36,Adiemus Care Limited - Ravenscroft ,132154,HA1 ,Community Services,OP West Locality,Adult Residential Placements - Spot Purchase,Third Party Payments,REVENUE
http://statistics.data.gov.uk/id/local-authority/00HY,Wiltshire Council,12/02/2014,5106443144,2060.84,Adiemus Care Limited - Ravenscroft ,132154,HA1 ,Community Services,OP West Locality,Adult Care Nursing Placements- Spot Purchase,Third Party Payments,REVENUE
http://statistics.data.gov.uk/id/local-authority/00HY,Wiltshire Council,12/02/2014,5106443145,439.16,Adiemus Care Limited - Ravenscroft ,132154,HA1 ,Community Services,OP West FNC,Adult Care Funded Nursing Care - Loal Auth Clients,Third Party Payments,REVENUE
http://statistics.data.gov.uk/id/local-authority/00HY,Wiltshire Council,12/02/2014,5106443156,2060.84,Adiemus Care Limited - Ravenscroft ,132154,HA1 ,Community Services,OP West Locality,Adult Care Nursing Placements- Spot Purchase,Third Party Payments,REVENUE
http://statistics.data.gov.uk/id/local-authority/00HY,Wiltshire Council,12/02/2014,5106443157,439.16,Adiemus Care Limited - Ravenscroft ,132154,HA1 ,Community Services,OP West FNC,Adult Care Funded Nursing Care - Loal Auth Clients,Third Party Payments,REVENUE
http://statistics.data.gov.uk/id/local-authority/00HY,Wiltshire Council,12/02/2014,5106443162,2060.84,Adiemus Care Limited - Ravenscroft ,132154,HA1 ,Community Services,OP West Locality,Adult Care Nursing Placements- Spot Purchase,Third Party Payments,REVENUE
http://statistics.data.gov.uk/id/local-authority/00HY,Wiltshire Council,12/02/2014,5106443163,439.16,Adiemus Care Limited - Ravenscroft ,132154,HA1 ,Community Services,OP West FNC,Adult Care Funded Nursing Care - Loal Auth Clients,Third Party Payments,REVENUE
http://statistics.data.gov.uk/id/local-authority/00HY,Wiltshire Council,12/02/2014,5106443177,2060.84,Adiemus Care Limited - Ravenscroft ,132154,HA1 ,Community Services,OP West Locality,Adult Care Nursing Placements- Spot Purchase,Third Party Payments,REVENUE
http://statistics.data.gov.uk/id/local-authority/00HY,Wiltshire Council,12/02/2014,5106443178,439.16,Adiemus Care Limited - Ravenscroft ,132154,HA1 ,Community Services,OP West FNC,Adult Care Funded Nursing Care - Loal Auth Clients,Third Party Payments,REVENUE
http://statistics.data.gov.uk/id/local-authority/00HY,Wiltshire Council,12/02/2014,5106443463,2014.04,Adiemus Care Limited - Ravenscroft ,132154,HA1 ,Community Services,MH OP West Locality,Adult Residential Placements - Spot Purchase,Third Party Payments,REVENUE
http://statistics.data.gov.uk/id/local-authority/00HY,Wiltshire Council,12/02/2014,5106443557,2046.08,Adiemus Care Limited - Ravenscroft ,132154,HA1 ,Community Services,MH AOWA South,Adult Care Nursing Placements- Spot Purchase,Third Party Payments,REVENUE
http://statistics.data.gov.uk/id/local-authority/00HY,Wiltshire Council,12/02/2014,5106443558,439.16,Adiemus Care Limited - Ravenscroft ,132154,HA1 ,Community Services,MH AOWA South FNC,Adult Care Funded Nursing Care - Loal Auth Clients,Third Party Payments,REVENUE
http://statistics.data.gov.uk/id/local-authority/00HY,Wiltshire Council,12/02/2014,5106444314,2200.00,Adiemus Care Limited - Ravenscroft ,132154,HA1 ,Community Services,OP West Locality,Adult Residential Placements - Spot Purchase,Third Party Payments,REVENUE
http://statistics.data.gov.uk/id/local-authority/00HY,Wiltshire Council,12/02/2014,5106444322,2260.84,Adiemus Care Limited - Ravenscroft ,132154,HA1 ,Community Services,OP East Locality,Adult Care Nursing Placements- Spot Purchase,Third Party Payments,REVENUE
http://statistics.data.gov.uk/id/local-authority/00HY,Wiltshire Council,12/02/2014,5106444323,439.16,Adiemus Care Limited - Ravenscroft ,132154,HA1 ,Community Services,OP East FNC,Adult Care Funded Nursing Care - Loal Auth Clients,Third Party Payments,REVENUE
http://statistics.data.gov.uk/id/local-authority/00HY,Wiltshire Council,12/02/2014,5106444482,2060.84,Adiemus Care Limited - Ravenscroft ,132154,HA1 ,Community Services,OP West Locality,Adult Care Nursing Placements- Spot Purchase,Third Party Payments,REVENUE
http://statistics.data.gov.uk/id/local-authority/00HY,Wiltshire Council,12/02/2014,5106444483,439.16,Adiemus Care Limited - Ravenscroft ,132154,HA1 ,Community Services,OP West FNC,Adult Care Funded Nursing Care - Loal Auth Clients,Third Party Payments,REVENUE
http://statistics.data.gov.uk/id/local-authority/00HY,Wiltshire Council,12/02/2014,5106444619,2060.84,Adiemus Care Limited - Ravenscroft ,132154,HA1 ,Community Services,OP West Locality,Adult Care Nursing Placements- Spot Purchase,Third Party Payments,REVENUE
http://statistics.data.gov.uk/id/local-authority/00HY,Wiltshire Council,12/02/2014,5106444620,439.16,Adiemus Care Limited - Ravenscroft ,132154,HA1 ,Community Services,OP West FNC,Adult Care Funded Nursing Care - Loal Auth Clients,Third Party Payments,REVENUE
http://statistics.data.gov.uk/id/local-authority/00HY,Wiltshire Council,12/02/2014,5106446050,741.40,Admirals Reach BUPA,137917,CM1 ,Community Services,OP South Locality,Adult Care Nursing Placements- Spot Purchase,Third Party Payments,REVENUE
http://statistics.data.gov.uk/id/local-authority/00HY,Wiltshire Council,12/02/2014,5106446052,1887.20,Admirals Reach BUPA,137917,CM1 ,Community Services,OP South Locality,Adult Care Nursing Placements- Spot Purchase,Third Party Payments,REVENUE
http://statistics.data.gov.uk/id/local-authority/00HY,Wiltshire Council,12/02/2014,5106446054,1887.20,Admirals Reach BUPA,137917,CM1 ,Community Services,OP South Locality,Adult Care Nursing Placements- Spot Purchase,Third Party Payments,REVENUE
http://statistics.data.gov.uk/id/local-authority/00HY,Wiltshire Council,12/02/2014,5106446056,1887.20,Admirals Reach BUPA,137917,CM1 ,Community Services,OP South Locality,Adult Care Nursing Placements- Spot Purchase,Third Party Payments,REVENUE
http://statistics.data.gov.uk/id/local-authority/00HY,Wiltshire Council,12/02/2014,5106446058,1887.20,Admirals Reach BUPA,137917,CM1 ,Community Services,OP South Locality,Adult Care Nursing Placements- Spot Purchase,Third Party Payments,REVENUE
http://statistics.data.gov.uk/id/local-authority/00HY,Wiltshire Council,12/02/2014,5106446060,1887.20,Admirals Reach BUPA,137917,CM1 ,Community Services,OP South Locality,Adult Care Nursing Placements- Spot Purchase,Third Party Payments,REVENUE
http://statistics.data.gov.uk/id/local-authority/00HY,Wiltshire Council,18/02/2014,1901216930,1778.67,Adrains Engineering Psv ,100848,SN15,Neighbourhood & Planning,Public Transport,Transport Contracts,Third Party Payments,REVENUE
http://statistics.data.gov.uk/id/local-authority/00HY,Wiltshire Council,18/02/2014,1901216930,3725.19,Adrains Engineering Psv ,100848,SN15,Neighbourhood & Planning,Mainstream Primary,Transport Contracts,Third Party Payments,REVENUE
http://statistics.data.gov.uk/id/local-authority/00HY,Wiltshire Council,18/02/2014,1901216931,1587.76,Adrains Engineering Psv ,100848,SN15,Neighbourhood & Planning,Mainstream Primary,Transport Contracts,Third Party Payments,REVENUE
http://statistics.data.gov.uk/id/local-authority/00HY,Wiltshire Council,18/02/2014,1901216931,2450.19,Adrains Engineering Psv ,100848,SN15,Neighbourhood & Planning,Public Transport,Transport Contracts,Third Party Payments,REVENUE
http://statistics.data.gov.uk/id/local-authority/00HY,Wiltshire Council,18/02/2014,1901216933,835.31,Adrains Engineering Psv ,100848,SN15,Neighbourhood & Planning,Public Transport,Transport Contracts,Third Party Payments,REVENUE
http://statistics.data.gov.uk/id/local-authority/00HY,Wiltshire Council,18/02/2014,1901216933,835.31,Adrains Engineering Psv ,100848,SN15,Neighbourhood & Planning,Mainstream Primary,Transport Contracts,Third Party Payments,REVENUE
http://statistics.data.gov.uk/id/local-authority/00HY,Wiltshire Council,18/02/2014,1901216933,2505.92,Adrains Engineering Psv ,100848,SN15,Neighbourhood & Planning,Mainstream Secondary,Transport Contracts,Third Party Payments,REVENUE
http://statistics.data.gov.uk/id/local-authority/00HY,Wiltshire Council,18/02/2014,1901216934,1216.74,Adrains Engineering Psv ,100848,SN15,Neighbourhood & Planning,Mainstream Secondary,Transport Contracts,Third Party Payments,REVENUE
http://statistics.data.gov.uk/id/local-authority/00HY,Wiltshire Council,18/02/2014,1901216934,4990.49,Adrains Engineering Psv ,100848,SN15,Neighbourhood & Planning,Mainstream Primary,Transport Contracts,Third Party Payments,REVENUE
http://statistics.data.gov.uk/id/local-authority/00HY,Wiltshire Council,18/02/2014,1901216934,9007.67,Adrains Engineering Psv ,100848,SN15,Neighbourhood & Planning,Public Transport,Transport Contracts,Third Party Payments,REVENUE
http://statistics.data.gov.uk/id/local-authority/00HY,Wiltshire Council,18/02/2014,1901216935,643.80,Adrains Engineering Psv ,100848,SN15,Neighbourhood & Planning,Public Transport,Transport Contracts,Third Party Payments,REVENUE
http://statistics.data.gov.uk/id/local-authority/00HY,Wiltshire Council,18/02/2014,1901216936,2836.92,Adrains Engineering Psv ,100848,SN15,Neighbourhood & Planning,Mainstream Secondary,Transport Contracts,Third Party Payments,REVENUE
http://statistics.data.gov.uk/id/local-authority/00HY,Wiltshire Council,18/02/2014,1901216937,256.38,Adrains Engineering Psv ,100848,SN15,Neighbourhood & Planning,Mainstream 16+ Sec,Transport Contracts,Third Party Payments,REVENUE
http://statistics.data.gov.uk/id/local-authority/00HY,Wiltshire Council,18/02/2014,1901216937,2307.40,Adrains Engineering Psv ,100848,SN15,Neighbourhood & Planning,Mainstream Secondary,Transport Contracts,Third Party Payments,REVENUE
http://statistics.data.gov.uk/id/local-authority/00HY,Wiltshire Council,18/02/2014,1901216938,2294.94,Adrains Engineering Psv ,100848,SN15,Neighbourhood & Planning,Mainstream Secondary,Transport Contracts,Third Party Payments,REVENUE
http://statistics.data.gov.uk/id/local-authority/00HY,Wiltshire Council,12/02/2014,1901214107,6136.99,Advance Housing  and  Support Ltd ,110060,OX28,Neighbourhood & Planning,HousingStrategy,Payments to Contractors - Other,Third Party Payments,REVENUE
http://statistics.data.gov.uk/id/local-authority/00HY,Wiltshire Council,24/02/2014,5106438302,325.00,Advanced Fire Systems Ltd ,110062,BS7 ,Neighbourhood & Planning,Marlborough,Catering Equipment,Supplies and Services,REVENUE
http://statistics.data.gov.uk/id/local-authority/00HY,Wiltshire Council,26/02/2014,5106450387,10663.57,AECOM Professional Services LLP ,127871,AL1 ,Wiltshire Council,Wiltshire Council,Buildings Minor Alterations,Premises Related,CAPITAL
http://statistics.data.gov.uk/id/local-authority/00HY,Wiltshire Council,18/02/2014,1901208880,7887.50,Age UK Wiltshire ,100129,SN10,Neighbourhood & Planning,Older people,Public Health Commissioning,Supplies and Services,REVENUE
http://statistics.data.gov.uk/id/local-authority/00HY,Wiltshire Council,18/02/2014,1901208880,7887.50,Age UK Wiltshire ,100129,SN10,Neighbourhood & Planning,Falls,Public Health Commissioning,Supplies and Services,REVENUE
http://statistics.data.gov.uk/id/local-authority/00HY,Wiltshire Council,28/02/2014,1901214137,19691.00,Age UK Wiltshire ,100129,SN10,Neighbourhood & Planning,Falls,Public Health Commissioning,Supplies and Services,REVENUE
http://statistics.data.gov.uk/id/local-authority/00HY,Wiltshire Council,04/02/2014,5106433723,1537.48,AginCare Live In Care Services Ltd ,110071,DT4 ,Community Services,CTPLD County CIC U65,Adult Domiciliary Care - Live in Care,Third Party Payments,REVENUE
http://statistics.data.gov.uk/id/local-authority/00HY,Wiltshire Council,14/02/2014,5106437510,1537.48,AginCare Live In Care Services Ltd ,110071,DT4 ,Community Services,CTPLD County CIC U65,Adult Domiciliary Care - Live in Care,Third Party Payments,REVENUE
http://statistics.data.gov.uk/id/local-authority/00HY,Wiltshire Council,27/02/2014,5106442201,549.10,AginCare Live In Care Services Ltd ,110071,DT4 ,Community Services,CTPLD County CIC U65,Adult Domiciliary Care - Live in Care,Third Party Payments,REVENUE
http://statistics.data.gov.uk/id/local-authority/00HY,Wiltshire Council,14/02/2014,5106447468,740.00,AginCare Live In Care Services Ltd ,110071,DT4 ,Community Services,OP South Locality,Adult Domiciliary care - Live in contribution,Income,REVENUE
http://statistics.data.gov.uk/id/local-authority/00HY,Wiltshire Council,14/02/2014,5106447469,1400.00,AginCare Live In Care Services Ltd ,110071,DT4 ,Community Services,PI West Locality,Adult Domiciliary Care - Live in Care,Third Party Payments,REVENUE
http://statistics.data.gov.uk/id/local-authority/00HY,Wiltshire Council,14/02/2014,5106447470,1499.96,AginCare Live In Care Services Ltd ,110071,DT4 ,Community Services,PI West Locality,Adult Domiciliary Care - Live in Care,Third Party Payments,REVENUE
http://statistics.data.gov.uk/id/local-authority/00HY,Wiltshire Council,14/02/2014,5106447471,607.38,AginCare Live In Care Services Ltd ,110071,DT4 ,Community Services,OP South Locality,Adult Domiciliary care - Live in contribution,Income,REVENUE
http://statistics.data.gov.uk/id/local-authority/00HY,Wiltshire Council,26/02/2014,5106450456,740.00,AginCare Live In Care Services Ltd ,110071,DT4 ,Community Services,OP South Locality,Adult Domiciliary care - Live in contribution,Income,REVENUE
http://statistics.data.gov.uk/id/local-authority/00HY,Wiltshire Council,26/02/2014,5106450457,607.38,AginCare Live In Care Services Ltd ,110071,DT4 ,Community Services,OP South Locality,Adult Domiciliary care - Live in contribution,Income,REVENUE
http://statistics.data.gov.uk/id/local-authority/00HY,Wiltshire Council,26/02/2014,5106450458,1499.96,AginCare Live In Care Services Ltd ,110071,DT4 ,Community Services,PI West Locality,Adult Domiciliary Care - Live in Care,Third Party Payments,REVENUE
http://statistics.data.gov.uk/id/local-authority/00HY,Wiltshire Council,03/02/2014,5106438918,327.60,Agincare Ltd ,110069,DT4 ,Community Services,PI North Locality,Adult Domiciliary Care - Spot,Third Party Payments,REVENUE
http://statistics.data.gov.uk/id/local-authority/00HY,Wiltshire Council,03/02/2014,5106438918,905.87,Agincare Ltd ,110069,DT4 ,Community Services,MH AOWA North,Adult Domiciliary Care - Spot,Third Party Payments,REVENUE
http://statistics.data.gov.uk/id/local-authority/00HY,Wiltshire Council,03/02/2014,5106438918,2712.35,Agincare Ltd ,110069,DT4 ,Community Services,OP North Locality,Adult Domiciliary Care - Spot Contribution,Income,REVENUE
http://statistics.data.gov.uk/id/local-authority/00HY,Wiltshire Council,03/02/2014,5106438919,286.65,Agincare Ltd ,110069,DT4 ,Community Services,MH AOWA South,Adult Domiciliary Care - Spot,Third Party Payments,REVENUE
http://statistics.data.gov.uk/id/local-authority/00HY,Wiltshire Council,19/02/2014,5106449370,420.98,Agincare Ltd ,110069,DT4 ,Community Services,CTPLD County CIC U65,Adult Domiciliary Care - Spot,Third Party Payments,REVENUE
http://statistics.data.gov.uk/id/local-authority/00HY,Wiltshire Council,14/02/2014,1901216458,1200.80,Airport Connections pewsey  Ltd ,100937,.,Neighbourhood & Planning,Mainstream Primary,Transport Contracts,Third Party Payments,REVENUE
http://statistics.data.gov.uk/id/local-authority/00HY,Wiltshire Council,11/02/2014,5106445439,350.00,AIRSPACE SOLUTIONS COM LTD ,110081,NP22,Neighbourhood & Planning,Five Rivers,Premises Related Other Maintenance Costs,Premises Related,REVENUE
http://statistics.data.gov.uk/id/local-authority/00HY,Wiltshire Council,18/02/2014,1901216914,1600.00,Akcess Ltd ,101402,SN2 ,Children & Education,SENTransport,Transport Contracts,Third Party Payments,REVENUE
http://statistics.data.gov.uk/id/local-authority/00HY,Wiltshire Council,18/02/2014,1901216916,1187.33,Akcess Ltd ,101402,SN2 ,Neighbourhood & Planning,Mainstream Secondary,Transport Contracts,Third Party Payments,REVENUE
http://statistics.data.gov.uk/id/local-authority/00HY,Wiltshire Council,18/02/2014,1901216917,3389.40,Akcess Ltd ,101402,SN2 ,Children & Education,SENTransport,Transport Contracts,Third Party Payments,REVENUE
http://statistics.data.gov.uk/id/local-authority/00HY,Wiltshire Council,18/02/2014,1901216918,805.40,Akcess Ltd ,101402,SN2 ,Neighbourhood & Planning,Mainstream Primary,Transport Contracts,Third Party Payments,REVENUE
http://statistics.data.gov.uk/id/local-authority/00HY,Wiltshire Council,18/02/2014,1901216919,1009.13,Akcess Ltd ,101402,SN2 ,Neighbourhood & Planning,Mainstream Primary,Transport Contracts,Third Party Payments,REVENUE
http://statistics.data.gov.uk/id/local-authority/00HY,Wiltshire Council,18/02/2014,1901216920,1009.13,Akcess Ltd ,101402,SN2 ,Neighbourhood & Planning,Mainstream Primary,Transport Contracts,Third Party Payments,REVENUE
http://statistics.data.gov.uk/id/local-authority/00HY,Wiltshire Council,18/02/2014,1901216921,1207.32,Akcess Ltd ,101402,SN2 ,Neighbourhood & Planning,Mainstream Secondary,Transport Contracts,Third Party Payments,REVENUE
http://statistics.data.gov.uk/id/local-authority/00HY,Wiltshire Council,18/02/2014,1901216922,1812.85,Akcess Ltd ,101402,SN2 ,Children & Education,SENTransport,Transport Contracts,Third Party Payments,REVENUE
http://statistics.data.gov.uk/id/local-authority/00HY,Wiltshire Council,18/02/2014,1901216923,1725.83,Akcess Ltd ,101402,SN2 ,Neighbourhood & Planning,Mainstream Secondary,Transport Contracts,Third Party Payments,REVENUE
http://statistics.data.gov.uk/id/local-authority/00HY,Wiltshire Council,18/02/2014,1901216924,2380.00,Akcess Ltd ,101402,SN2 ,Children & Education,SENTransport,Transport Contracts,Third Party Payments,REVENUE
http://statistics.data.gov.uk/id/local-authority/00HY,Wiltshire Council,18/02/2014,1901216925,1379.60,Akcess Ltd ,101402,SN2 ,Neighbourhood & Planning,Mainstream Primary,Transport Contracts,Third Party Payments,REVENUE
http://statistics.data.gov.uk/id/local-authority/00HY,Wiltshire Council,18/02/2014,1901216926,1465.65,Akcess Ltd ,101402,SN2 ,Children & Education,SENTransport,Transport Contracts,Third Party Payments,REVENUE
http://statistics.data.gov.uk/id/local-authority/00HY,Wiltshire Council,24/02/2014,1901226733,480.00,Akcess Ltd ,101402,SN2 ,Community Services,PI East Locality,Transport Contracts,Third Party Payments,REVENUE
http://statistics.data.gov.uk/id/local-authority/00HY,Wiltshire Council,24/02/2014,1901226734,600.00,Akcess Ltd ,101402,SN2 ,Community Services,PI East Locality,Transport Contracts,Third Party Payments,REVENUE
http://statistics.data.gov.uk/id/local-authority/00HY,Wiltshire Council,24/02/2014,1901226735,480.00,Akcess Ltd ,101402,SN2 ,Community Services,PI East Locality,Transport Contracts,Third Party Payments,REVENUE
http://statistics.data.gov.uk/id/local-authority/00HY,Wiltshire Council,24/02/2014,1901226736,420.00,Akcess Ltd ,101402,SN2 ,Community Services,PI East Locality,Transport Contracts,Third Party Payments,REVENUE
http://statistics.data.gov.uk/id/local-authority/00HY,Wiltshire Council,24/02/2014,1901226737,540.00,Akcess Ltd ,101402,SN2 ,Community Services,PI East Locality,Transport Contracts,Third Party Payments,REVENUE
http://statistics.data.gov.uk/id/local-authority/00HY,Wiltshire Council,26/02/2014,1901227387,1617.00,Akcess Ltd ,101402,SN2 ,Neighbourhood & Planning,Mainstream Primary,Transport Contracts,Third Party Payments,REVENUE
http://statistics.data.gov.uk/id/local-authority/00HY,Wiltshire Council,06/02/2014,5106440413,378.10,Akia Stars Ltd ,138599,SN4 ,Children & Education,HQ Social Care,Witness / Jurors' / Justice's Expenses,Supplies and Services,REVENUE
http://statistics.data.gov.uk/id/local-authority/00HY,Wiltshire Council,12/02/2014,5106445498,1486.80,Akia Stars Ltd ,138599,SN4 ,Children & Education,HQ Social Care,Witness / Jurors' / Justice's Expenses,Supplies and Services,REVENUE
http://statistics.data.gov.uk/id/local-authority/00HY,Wiltshire Council,12/02/2014,1901214093,1475.95,Alabare Christian Care Centre ,100837,SP2 ,Neighbourhood & Planning,HousingStrategy,Payments to Contractors - Other,Third Party Payments,REVENUE
http://statistics.data.gov.uk/id/local-authority/00HY,Wiltshire Council,12/02/2014,1901214095,2463.23,Alabare Christian Care Centre ,100837,SP2 ,Neighbourhood & Planning,HousingStrategy,Payments to Contractors - Other,Third Party Payments,REVENUE
http://statistics.data.gov.uk/id/local-authority/00HY,Wiltshire Council,12/02/2014,1901214100,2807.67,Alabare Christian Care Centre ,100837,SP2 ,Neighbourhood & Planning,HousingStrategy,Payments to Contractors - Other,Third Party Payments,REVENUE
http://statistics.data.gov.uk/id/local-authority/00HY,Wiltshire Council,12/02/2014,1901214103,3589.22,Alabare Christian Care Centre ,100837,SP2 ,Neighbourhood & Planning,HousingStrategy,Payments to Contractors - Other,Third Party Payments,REVENUE
http://statistics.data.gov.uk/id/local-authority/00HY,Wiltshire Council,12/02/2014,1901214104,3904.66,Alabare Christian Care Centre ,100837,SP2 ,Neighbourhood & Planning,HousingStrategy,Payments to Contractors - Other,Third Party Payments,REVENUE
http://statistics.data.gov.uk/id/local-authority/00HY,Wiltshire Council,12/02/2014,1901214111,9501.05,Alabare Christian Care Centre ,100837,SP2 ,Neighbourhood & Planning,HousingStrategy,Payments to Contractors - Other,Third Party Payments,REVENUE
http://statistics.data.gov.uk/id/local-authority/00HY,Wiltshire Council,12/02/2014,1901214115,25122.52,Alabare Christian Care Centre ,100837,SP2 ,Neighbourhood & Planning,HousingStrategy,Payments to Contractors - Other,Third Party Payments,REVENUE
http://statistics.data.gov.uk/id/local-authority/00HY,Wiltshire Council,12/02/2014,1901214118,30780.05,Alabare Christian Care Centre ,100837,SP2 ,Neighbourhood & Planning,HousingStrategy,Payments to Contractors - Other,Third Party Payments,REVENUE
http://statistics.data.gov.uk/id/local-authority/00HY,Wiltshire Council,13/02/2014,1901214631,3166.99,Alabare Christian Care Centre ,100837,SP2 ,Community Services,Disabilities Comm Ct,Payments to Contractors - Other,Third Party Payments,REVENUE
http://statistics.data.gov.uk/id/local-authority/00HY,Wiltshire Council,13/02/2014,1901214646,2600.55,Alabare Christian Care Centre ,100837,SP2 ,Community Services,KASH Ruth House,Payments to Contractors - Other,Third Party Payments,REVENUE
http://statistics.data.gov.uk/id/local-authority/00HY,Wiltshire Council,04/02/2014,5106426075,2217.68,Alabare Christian Care Centre ,100837,SP2 ,Community Services,CTPLD County CIC U65,Supported Living - Without SP payments,Third Party Payments,REVENUE
http://statistics.data.gov.uk/id/local-authority/00HY,Wiltshire Council,12/02/2014,5106426706,2217.68,Alabare Christian Care Centre ,100837,SP2 ,Community Services,CTPLD County CIC U65,Supported Living - Without SP payments,Third Party Payments,REVENUE
http://statistics.data.gov.uk/id/local-authority/00HY,Wiltshire Council,03/02/2014,5106438828,253.50,Alabare Christian Care Centre ,100837,SP2 ,Community Services,CTPLD County CIC U65,Adult Domiciliary Care - Spot,Third Party Payments,REVENUE
http://statistics.data.gov.uk/id/local-authority/00HY,Wiltshire Council,03/02/2014,5106438897,288.00,Alabare Christian Care Centre ,100837,SP2 ,Community Services,MH AOWA South,Adult Day Care - Spot,Third Party Payments,REVENUE
http://statistics.data.gov.uk/id/local-authority/00HY,Wiltshire Council,12/02/2014,5106441522,975.88,Alabare Christian Care Centre ,100837,SP2 ,Community Services,CTPLD County CIC U65,Supported Living - Without SP payments,Third Party Payments,REVENUE
http://statistics.data.gov.uk/id/local-authority/00HY,Wiltshire Council,12/02/2014,5106441524,3057.28,Alabare Christian Care Centre ,100837,SP2 ,Community Services,CTPLD County CIC U65,Supported Living - Without SP payments,Third Party Payments,REVENUE
http://statistics.data.gov.uk/id/local-authority/00HY,Wiltshire Council,12/02/2014,5106441526,2780.92,Alabare Christian Care Centre ,100837,SP2 ,Community Services,CTPLD County CIC U65,Supported Living - Without SP payments,Third Party Payments,REVENUE
http://statistics.data.gov.uk/id/local-authority/00HY,Wiltshire Council,12/02/2014,5106441570,1586.76,Alabare Christian Care Centre ,100837,SP2 ,Community Services,CTPLD County CIC U65,Supported Living - Without SP payments,Third Party Payments,REVENUE
http://statistics.data.gov.uk/id/local-authority/00HY,Wiltshire Council,12/02/2014,5106441571,1602.48,Alabare Christian Care Centre ,100837,SP2 ,Community Services,CTPLD County CIC U65,Supported Living - Without SP payments,Third Party Payments,REVENUE
http://statistics.data.gov.uk/id/local-authority/00HY,Wiltshire Council,12/02/2014,5106441572,1658.24,Alabare Christian Care Centre ,100837,SP2 ,Community Services,CTPLD County CIC U65,Supported Living - Without SP payments,Third Party Payments,REVENUE
http://statistics.data.gov.uk/id/local-authority/00HY,Wiltshire Council,12/02/2014,5106441573,3057.28,Alabare Christian Care Centre ,100837,SP2 ,Community Services,CTPLD County CIC U65,Supported Living - Without SP payments,Third Party Payments,REVENUE
http://statistics.data.gov.uk/id/local-authority/00HY,Wiltshire Council,12/02/2014,5106441575,1751.44,Alabare Christian Care Centre ,100837,SP2 ,Community Services,CTPLD County CIC U65,Supported Living - Without SP payments,Third Party Payments,REVENUE
http://statistics.data.gov.uk/id/local-authority/00HY,Wiltshire Council,12/02/2014,5106441610,2431.00,Alabare Christian Care Centre ,100837,SP2 ,Community Services,CTPLD County CIC U65,Supported Living - Without SP payments,Third Party Payments,REVENUE
http://statistics.data.gov.uk/id/local-authority/00HY,Wiltshire Council,12/02/2014,5106441612,1556.96,Alabare Christian Care Centre ,100837,SP2 ,Community Services,CTPLD County CIC U65,Supported Living - Without SP payments,Third Party Payments,REVENUE
http://statistics.data.gov.uk/id/local-authority/00HY,Wiltshire Council,12/02/2014,5106441614,715.00,Alabare Christian Care Centre ,100837,SP2 ,Community Services,CTPLD County CIC U65,Supported Living - Without SP payments,Third Party Payments,REVENUE
http://statistics.data.gov.uk/id/local-authority/00HY,Wiltshire Council,12/02/2014,5106441616,2109.48,Alabare Christian Care Centre ,100837,SP2 ,Community Services,CTPLD County S75 U65,Supported Living - Without SP payments,Third Party Payments,REVENUE
http://statistics.data.gov.uk/id/local-authority/00HY,Wiltshire Council,12/02/2014,5106441618,2214.08,Alabare Christian Care Centre ,100837,SP2 ,Community Services,CTPLD County CIC U65,Supported Living - Without SP payments,Third Party Payments,REVENUE
http://statistics.data.gov.uk/id/local-authority/00HY,Wiltshire Council,12/02/2014,5106441620,1751.44,Alabare Christian Care Centre ,100837,SP2 ,Community Services,CTPLD County CIC U65,Supported Living - Without SP payments,Third Party Payments,REVENUE
http://statistics.data.gov.uk/id/local-authority/00HY,Wiltshire Council,12/02/2014,5106441622,930.88,Alabare Christian Care Centre ,100837,SP2 ,Community Services,CTPLD County CIC U65,Supported Living - Without SP payments,Third Party Payments,REVENUE
http://statistics.data.gov.uk/id/local-authority/00HY,Wiltshire Council,12/02/2014,5106441624,583.00,Alabare Christian Care Centre ,100837,SP2 ,Community Services,CTPLD County CIC U65,Supported Living - Without SP payments,Third Party Payments,REVENUE
http://statistics.data.gov.uk/id/local-authority/00HY,Wiltshire Council,12/02/2014,5106441626,3057.28,Alabare Christian Care Centre ,100837,SP2 ,Community Services,CTPLD County CIC U65,Supported Living - Without SP payments,Third Party Payments,REVENUE
http://statistics.data.gov.uk/id/local-authority/00HY,Wiltshire Council,12/02/2014,5106441628,1560.00,Alabare Christian Care Centre ,100837,SP2 ,Community Services,PI South Locality,Supported Living - Without SP payments,Third Party Payments,REVENUE
http://statistics.data.gov.uk/id/local-authority/00HY,Wiltshire Council,12/02/2014,5106441630,1887.44,Alabare Christian Care Centre ,100837,SP2 ,Community Services,CTPLD County CIC U65,Supported Living - Without SP payments,Third Party Payments,REVENUE
http://statistics.data.gov.uk/id/local-authority/00HY,Wiltshire Council,07/02/2014,5106442064,473.20,Alabare Christian Care Centre ,100837,SP2 ,Community Services,CTPLD County CIC U65,Adult Domiciliary Care - Spot,Third Party Payments,REVENUE
http://statistics.data.gov.uk/id/local-authority/00HY,Wiltshire Council,07/02/2014,5106442066,289.80,Alabare Christian Care Centre ,100837,SP2 ,Community Services,CTPLD County CIC U65,Adult Day Care - Spot,Third Party Payments,REVENUE
http://statistics.data.gov.uk/id/local-authority/00HY,Wiltshire Council,07/02/2014,5106442068,575.16,Alabare Christian Care Centre ,100837,SP2 ,Community Services,CTPLD County CIC U65,Adult Domiciliary Care - Spot,Third Party Payments,REVENUE
http://statistics.data.gov.uk/id/local-authority/00HY,Wiltshire Council,19/02/2014,5106447593,637.11,Alabare Christian Care Centre ,100837,SP2 ,Community Services,CTPLD County CIC U65,Adult Domiciliary Care - Spot,Third Party Payments,REVENUE
http://statistics.data.gov.uk/id/local-authority/00HY,Wiltshire Council,14/02/2014,5106447627,24194.01,Alabare Christian Care Centre ,100837,SP2 ,Children & Education,Towpath Road,Adult / Child Care Agency Placement,Third Party Payments,REVENUE
http://statistics.data.gov.uk/id/local-authority/00HY,Wiltshire Council,14/02/2014,5106447628,3385.67,Alabare Christian Care Centre ,100837,SP2 ,Children & Education,Towpath Road,Adult / Child Care Agency Placement,Third Party Payments,REVENUE
http://statistics.data.gov.uk/id/local-authority/00HY,Wiltshire Council,14/02/2014,5106448666,2727.40,Alabare Christian Care Centre ,100837,SP2 ,Community Services,CTPLD County CIC U65,Supported Living - Without SP payments,Third Party Payments,REVENUE
http://statistics.data.gov.uk/id/local-authority/00HY,Wiltshire Council,14/02/2014,5106448669,2674.12,Alabare Christian Care Centre ,100837,SP2 ,Community Services,CTPLD County CIC U65,Supported Living - Without SP payments,Third Party Payments,REVENUE
http://statistics.data.gov.uk/id/local-authority/00HY,Wiltshire Council,14/02/2014,5106448680,257.60,Alabare Christian Care Centre ,100837,SP2 ,Community Services,CTPLD County CIC U65,Adult Day Care - Spot,Third Party Payments,REVENUE
http://statistics.data.gov.uk/id/local-authority/00HY,Wiltshire Council,28/02/2014,5106448715,591.50,Alabare Christian Care Centre ,100837,SP2 ,Community Services,CTPLD County CIC U65,Adult Domiciliary Care - Spot,Third Party Payments,REVENUE
http://statistics.data.gov.uk/id/local-authority/00HY,Wiltshire Council,17/02/2014,5106448742,640.88,Alabare Christian Care Centre ,100837,SP2 ,Community Services,MH AOWA South,Adult Domiciliary Care - Spot,Third Party Payments,REVENUE
http://statistics.data.gov.uk/id/local-authority/00HY,Wiltshire Council,17/02/2014,5106448743,386.40,Alabare Christian Care Centre ,100837,SP2 ,Community Services,CTPLD County CIC U65,Adult Day Care - Spot,Third Party Payments,REVENUE
http://statistics.data.gov.uk/id/local-authority/00HY,Wiltshire Council,17/02/2014,5106448744,1419.00,Alabare Christian Care Centre ,100837,SP2 ,Community Services,CTPLD County CIC U65,Adult Domiciliary Care - Spot,Third Party Payments,REVENUE
http://statistics.data.gov.uk/id/local-authority/00HY,Wiltshire Council,17/02/2014,5106448751,256.00,Alabare Christian Care Centre ,100837,SP2 ,Community Services,MH AOWA South,Adult Day Care - Spot,Third Party Payments,REVENUE
http://statistics.data.gov.uk/id/local-authority/00HY,Wiltshire Council,17/02/2014,5106448765,257.60,Alabare Christian Care Centre ,100837,SP2 ,Community Services,MH AOWA South,Adult Day Care - Spot,Third Party Payments,REVENUE
http://statistics.data.gov.uk/id/local-authority/00HY,Wiltshire Council,17/02/2014,5106448780,256.00,Alabare Christian Care Centre ,100837,SP2 ,Community Services,MH AOWA South,Adult Day Care - Spot,Third Party Payments,REVENUE
http://statistics.data.gov.uk/id/local-authority/00HY,Wiltshire Council,18/02/2014,5106449123,288.00,Alabare Christian Care Centre ,100837,SP2 ,Community Services,MH AOWA South,Adult Day Care - Spot,Third Party Payments,REVENUE
http://statistics.data.gov.uk/id/local-authority/00HY,Wiltshire Council,18/02/2014,5106449159,481.55,Alabare Christian Care Centre ,100837,SP2 ,Community Services,CTPLD County CIC U65,Adult Domiciliary Care - Spot,Third Party Payments,REVENUE
http://statistics.data.gov.uk/id/local-authority/00HY,Wiltshire Council,26/02/2014,5106450449,352.00,Alabare Christian Care Centre ,100837,SP2 ,Community Services,CTPLD County CIC U65,Adult Day Care - Spot,Third Party Payments,REVENUE
http://statistics.data.gov.uk/id/local-authority/00HY,Wiltshire Council,21/02/2014,5106449769,750.00,Albion Chambers ,113388,BS1 ,Resources,Wrkplc Transform Prg,Buildings Minor Alterations,Premises Related,REVENUE
http://statistics.data.gov.uk/id/local-authority/00HY,Wiltshire Council,27/02/2014,5106449790,750.00,Albion Chambers ,113388,BS1 ,Resources,Wrkplc Transform Prg,Buildings Minor Alterations,Premises Related,REVENUE
http://statistics.data.gov.uk/id/local-authority/00HY,Wiltshire Council,05/02/2014,1901211655,3000.00,Alcohol Concern ,138833,EC1V,Community Services,Alcohol A&E Research,Substance Misuse - Payments to Contractors,Third Party Payments,REVENUE
http://statistics.data.gov.uk/id/local-authority/00HY,Wiltshire Council,12/02/2014,5106442450,2040.84,Aldbourne Nursing Home ,110090,SN8 ,Community Services,OP East Locality,Adult Care Nursing Placements- Spot Purchase,Third Party Payments,REVENUE
http://statistics.data.gov.uk/id/local-authority/00HY,Wiltshire Council,12/02/2014,5106442451,439.16,Aldbourne Nursing Home ,110090,SN8 ,Community Services,OP East FNC,Adult Care Funded Nursing Care - Loal Auth Clients,Third Party Payments,REVENUE
http://statistics.data.gov.uk/id/local-authority/00HY,Wiltshire Council,12/02/2014,5106442958,2324.84,Aldbourne Nursing Home ,110090,SN8 ,Community Services,MH OP East Locality,Adult Care Nursing Placements- Spot Purchase,Third Party Payments,REVENUE
http://statistics.data.gov.uk/id/local-authority/00HY,Wiltshire Council,12/02/2014,5106442959,439.16,Aldbourne Nursing Home ,110090,SN8 ,Community Services,MH OA East FNC,Adult Care Funded Nursing Care - Loal Auth Clients,Third Party Payments,REVENUE
http://statistics.data.gov.uk/id/local-authority/00HY,Wiltshire Council,12/02/2014,5106443171,2040.84,Aldbourne Nursing Home ,110090,SN8 ,Community Services,OP East Locality,Adult Care Nursing Placements- Spot Purchase,Third Party Payments,REVENUE
http://statistics.data.gov.uk/id/local-authority/00HY,Wiltshire Council,12/02/2014,5106443172,439.16,Aldbourne Nursing Home ,110090,SN8 ,Community Services,OP East FNC,Adult Care Funded Nursing Care - Loal Auth Clients,Third Party Payments,REVENUE
http://statistics.data.gov.uk/id/local-authority/00HY,Wiltshire Council,12/02/2014,5106443183,2040.84,Aldbourne Nursing Home ,110090,SN8 ,Community Services,OP West Locality,Adult Care Nursing Placements- Spot Purchase,Third Party Payments,REVENUE
http://statistics.data.gov.uk/id/local-authority/00HY,Wiltshire Council,12/02/2014,5106443184,439.16,Aldbourne Nursing Home ,110090,SN8 ,Community Services,OP West FNC,Adult Care Funded Nursing Care - Loal Auth Clients,Third Party Payments,REVENUE
http://statistics.data.gov.uk/id/local-authority/00HY,Wiltshire Council,12/02/2014,5106444553,2040.84,Aldbourne Nursing Home ,110090,SN8 ,Community Services,OP East Locality,Adult Care Nursing Placements- Spot Purchase,Third Party Payments,REVENUE
http://statistics.data.gov.uk/id/local-authority/00HY,Wiltshire Council,12/02/2014,5106444554,439.16,Aldbourne Nursing Home ,110090,SN8 ,Community Services,OP East FNC,Adult Care Funded Nursing Care - Loal Auth Clients,Third Party Payments,REVENUE
http://statistics.data.gov.uk/id/local-authority/00HY,Wiltshire Council,12/02/2014,5106444682,1822.25,Aldbourne Nursing Home ,110090,SN8 ,Community Services,OP East Locality,Adult Care Nursing Placements - 12 Week,Third Party Payments,REVENUE
http://statistics.data.gov.uk/id/local-authority/00HY,Wiltshire Council,12/02/2014,5106444683,392.00,Aldbourne Nursing Home ,110090,SN8 ,Community Services,OP East FNC,Adult Care Funded Nursing Care - Loal Auth Clients,Third Party Payments,REVENUE
http://statistics.data.gov.uk/id/local-authority/00HY,Wiltshire Council,12/02/2014,5106444752,2040.84,Aldbourne Nursing Home ,110090,SN8 ,Community Services,OP East Locality,Adult Care Nursing Placements- Spot Purchase,Third Party Payments,REVENUE
http://statistics.data.gov.uk/id/local-authority/00HY,Wiltshire Council,12/02/2014,5106444753,439.16,Aldbourne Nursing Home ,110090,SN8 ,Community Services,OP East FNC,Adult Care Funded Nursing Care - Loal Auth Clients,Third Party Payments,REVENUE
http://statistics.data.gov.uk/id/local-authority/00HY,Wiltshire Council,12/02/2014,5106445248,2560.84,Aldbourne Nursing Home ,110090,SN8 ,Community Services,Home Loans,Adult Care Loans,Capital charges and Expenditure,REVENUE
http://statistics.data.gov.uk/id/local-authority/00HY,Wiltshire Council,04/02/2014,1901211464,500.00,ALDERTON VILLAGE HALL ,110095,SN14,Wiltshire Council,Wiltshire Council,Area Board Grants,Supplies and Services,CAPITAL
http://statistics.data.gov.uk/id/local-authority/00HY,Wiltshire Council,13/02/2014,5106446266,265.00,Alere Toxicology Plc ,131373,OX14,Children & Education,HQ Social Care,Witness / Jurors' / Justice's Expenses,Supplies and Services,REVENUE
http://statistics.data.gov.uk/id/local-authority/00HY,Wiltshire Council,12/02/2014,5106443392,6169.08,Alexandra Homes (Bristol) Ltd ,131787,BS15,Community Services,MH AOWA North,Adult Residential Placements - Spot Purchase,Third Party Payments,REVENUE
http://statistics.data.gov.uk/id/local-authority/00HY,Wiltshire Council,13/02/2014,1901215096,500.00,All Cannings Handbells ,138898,SN10,Wiltshire Council,Wiltshire Council,Area Board Grants,Supplies and Services,CAPITAL
http://statistics.data.gov.uk/id/local-authority/00HY,Wiltshire Council,12/02/2014,5106441239,3513.16,Alliance Home Care ,110986,SN15,Community Services,CTPLD County CIC U65,Adult Residential Placements - Spot Purchase,Third Party Payments,REVENUE
http://statistics.data.gov.uk/id/local-authority/00HY,Wiltshire Council,12/02/2014,5106441275,3419.72,Alliance Home Care ,110986,SN15,Community Services,PI North Locality,Adult Residential Placements - Spot Purchase,Third Party Payments,REVENUE
http://statistics.data.gov.uk/id/local-authority/00HY,Wiltshire Council,12/02/2014,5106441520,3991.80,Alliance Home Care ,110986,SN15,Community Services,MH PCT Section 256,Adult Residential Placements - Spot Purchase,Third Party Payments,REVENUE
http://statistics.data.gov.uk/id/local-authority/00HY,Wiltshire Council,12/02/2014,5106443118,3749.52,Alliance Home Care ,110986,SN15,Community Services,MH OP East Locality,Adult Residential Placements - Spot Purchase,Third Party Payments,REVENUE
http://statistics.data.gov.uk/id/local-authority/00HY,Wiltshire Council,12/02/2014,5106444556,1043.20,Alliance Home Care ,110986,SN15,Community Services,MH AOWA North,Adult Residential Placements - Spot Purchase,Third Party Payments,REVENUE
http://statistics.data.gov.uk/id/local-authority/00HY,Wiltshire Council,12/02/2014,5106444557,3651.12,Alliance Home Care ,110986,SN15,Community Services,MH AOWA North,Adult Residential Placements - Spot Purchase,Third Party Payments,REVENUE
http://statistics.data.gov.uk/id/local-authority/00HY,Wiltshire Council,12/02/2014,5106444558,3651.12,Alliance Home Care ,110986,SN15,Community Services,MH AOWA North,Adult Residential Placements - Spot Purchase,Third Party Payments,REVENUE
http://statistics.data.gov.uk/id/local-authority/00HY,Wiltshire Council,12/02/2014,5106444559,3651.12,Alliance Home Care ,110986,SN15,Community Services,MH AOWA North,Adult Residential Placements - Spot Purchase,Third Party Payments,REVENUE
http://statistics.data.gov.uk/id/local-authority/00HY,Wiltshire Council,12/02/2014,5106444560,3651.12,Alliance Home Care ,110986,SN15,Community Services,MH AOWA North,Adult Residential Placements - Spot Purchase,Third Party Payments,REVENUE
http://statistics.data.gov.uk/id/local-authority/00HY,Wiltshire Council,25/02/2014,5106440551,2919.84,Allied Care Group ,134663,GU21,Community Services,MH AOWA North,Supported Living - Without SP payments,Third Party Payments,REVENUE
http://statistics.data.gov.uk/id/local-authority/00HY,Wiltshire Council,06/02/2014,5106440552,2287.04,Allied Care Group ,134663,GU21,Community Services,MH AOWA North,Adult Domiciliary Care - Spot,Third Party Payments,REVENUE
http://statistics.data.gov.uk/id/local-authority/00HY,Wiltshire Council,06/02/2014,5106440553,2588.00,Allied Care Group ,134663,GU21,Community Services,MH AOWA North,Adult Domiciliary Care - Spot,Third Party Payments,REVENUE
http://statistics.data.gov.uk/id/local-authority/00HY,Wiltshire Council,10/02/2014,5106442209,3199.84,Allied Care Group ,134663,GU21,Community Services,MH AOWA North,Supported Living - Without SP payments,Third Party Payments,REVENUE
http://statistics.data.gov.uk/id/local-authority/00HY,Wiltshire Council,03/02/2014,5106438885,491.36,Allied Healthcare  UK  Ltd Allied Healthcare  UK  Ltd,110113,ST18,Community Services,MH OP North Locality,Adult Domiciliary Care - Mileage,Third Party Payments,REVENUE
http://statistics.data.gov.uk/id/local-authority/00HY,Wiltshire Council,04/02/2014,5106439096,490.28,Allied Healthcare  UK  Ltd Allied Healthcare  UK  Ltd,110113,ST18,Community Services,MH OP North Locality,Adult Domiciliary Care - Mileage,Third Party Payments,REVENUE
http://statistics.data.gov.uk/id/local-authority/00HY,Wiltshire Council,10/02/2014,5106442155,1703.14,Allied Healthcare  UK  Ltd Allied Healthcare  UK  Ltd,110113,ST18,Community Services,PI South Locality,Adult Domiciliary Care - Spot Contribution,Income,REVENUE
http://statistics.data.gov.uk/id/local-authority/00HY,Wiltshire Council,11/02/2014,5106445428,308.35,Allied Healthcare  UK  Ltd Allied Healthcare  UK  Ltd,110113,ST18,Children & Education,WestChildrenw/Dis,Other Social & Welfare Costs,Third Party Payments,REVENUE
http://statistics.data.gov.uk/id/local-authority/00HY,Wiltshire Council,17/02/2014,5106448747,489.66,Allied Healthcare  UK  Ltd Allied Healthcare  UK  Ltd,110113,ST18,Community Services,MH OP North Locality,Adult Domiciliary Care - Mileage,Third Party Payments,REVENUE
http://statistics.data.gov.uk/id/local-authority/00HY,Wiltshire Council,17/02/2014,5106448808,499.25,Allied Healthcare  UK  Ltd Allied Healthcare  UK  Ltd,110113,ST18,Community Services,MH OP North Locality,Adult Domiciliary Care - Mileage,Third Party Payments,REVENUE
http://statistics.data.gov.uk/id/local-authority/00HY,Wiltshire Council,17/02/2014,5106448950,445.64,Allied Healthcare  UK  Ltd Allied Healthcare  UK  Ltd,110113,ST18,Children & Education,WestChildrenw/Dis,Other Social & Welfare Costs,Third Party Payments,REVENUE
http://statistics.data.gov.uk/id/local-authority/00HY,Wiltshire Council,19/02/2014,5106449428,445.64,Allied Healthcare  UK  Ltd Allied Healthcare  UK  Ltd,110113,ST18,Children & Education,WestChildrenw/Dis,Other Social & Welfare Costs,Third Party Payments,REVENUE
http://statistics.data.gov.uk/id/local-authority/00HY,Wiltshire Council,10/02/2014,5106442152,301.86,Allied Healthcare Group Allied Healthcare Group,113066,SP2 ,Community Services,PI South Locality,Adult Domiciliary Care - Spot,Third Party Payments,REVENUE
http://statistics.data.gov.uk/id/local-authority/00HY,Wiltshire Council,10/02/2014,5106442153,309.15,Allied Healthcare Group Allied Healthcare Group,113066,SP2 ,Community Services,PI South Locality,Adult Domiciliary Care - Spot,Third Party Payments,REVENUE
http://statistics.data.gov.uk/id/local-authority/00HY,Wiltshire Council,10/02/2014,5106442156,960.24,Allied Healthcare Group Allied Healthcare Group,113066,SP2 ,Community Services,MH AOWA South,Adult Domiciliary Care - Mileage,Third Party Payments,REVENUE
http://statistics.data.gov.uk/id/local-authority/00HY,Wiltshire Council,10/02/2014,5106442169,2628.56,Allied Healthcare Group Allied Healthcare Group,113066,SP2 ,Community Services,CTPLD County CIC U65,Adult Day Care - Spot,Third Party Payments,REVENUE
http://statistics.data.gov.uk/id/local-authority/00HY,Wiltshire Council,10/02/2014,5106442180,1341.67,Allied Healthcare Group Allied Healthcare Group,113066,SP2 ,Community Services,CTPLD County CIC U65,Adult Domiciliary Care - Spot,Third Party Payments,REVENUE
http://statistics.data.gov.uk/id/local-authority/00HY,Wiltshire Council,17/02/2014,5106448782,261.12,Allied Healthcare Group Allied Healthcare Group,113066,SP2 ,Community Services,CTPLD County CIC U65,Carers Voucher Schemes,Third Party Payments,REVENUE
http://statistics.data.gov.uk/id/local-authority/00HY,Wiltshire Council,06/02/2014,5106431032,273.34,ALLSPARES  AUTO  LTD ,110116,CF33,Neighbourhood & Planning,Fleet Operations,Vehicle Parts,Transport Related,REVENUE
http://statistics.data.gov.uk/id/local-authority/00HY,Wiltshire Council,03/02/2014,5106434996,341.08,ALLSPARES  AUTO  LTD ,110116,CF33,Neighbourhood & Planning,Fleet Operations,Vehicle Parts,Transport Related,REVENUE
http://statistics.data.gov.uk/id/local-authority/00HY,Wiltshire Council,25/02/2014,5106440439,250.63,ALLSPARES  AUTO  LTD ,110116,CF33,Neighbourhood & Planning,Fleet Operations,Vehicle Parts,Transport Related,REVENUE
http://statistics.data.gov.uk/id/local-authority/00HY,Wiltshire Council,25/02/2014,5106447449,414.80,ALLSPARES  AUTO  LTD ,110116,CF33,Neighbourhood & Planning,Fleet Operations,Vehicle Parts,Transport Related,REVENUE
http://statistics.data.gov.uk/id/local-authority/00HY,Wiltshire Council,14/02/2014,5106446263,2640.56,Alpha Parking Ltd ,113442,WC1V,Resources,Centralised Training,Staff Training Course Costs,Employee Related,REVENUE
http://statistics.data.gov.uk/id/local-authority/00HY,Wiltshire Council,06/02/2014,1901213321,2059.30,Alpha Taxis ,100124,BA14,Children & Education,SENTransport,Transport Contracts,Third Party Payments,REVENUE
http://statistics.data.gov.uk/id/local-authority/00HY,Wiltshire Council,06/02/2014,1901213323,972.00,Alpha Taxis ,100124,BA14,Children & Education,SENTransport,Transport Contracts,Third Party Payments,REVENUE
http://statistics.data.gov.uk/id/local-authority/00HY,Wiltshire Council,06/02/2014,1901213324,437.10,Alpha Taxis ,100124,BA14,Children & Education,LAC & 16+ Team 1,Transport Contracts,Third Party Payments,REVENUE
http://statistics.data.gov.uk/id/local-authority/00HY,Wiltshire Council,06/02/2014,1901213325,268.80,Alpha Taxis ,100124,BA14,Children & Education,Safeguarding Ass Wst,Transport Contracts,Third Party Payments,REVENUE
http://statistics.data.gov.uk/id/local-authority/00HY,Wiltshire Council,06/02/2014,1901213330,742.00,Alpha Taxis ,100124,BA14,Neighbourhood & Planning,Mainstream Secondary,Transport Contracts,Third Party Payments,REVENUE
http://statistics.data.gov.uk/id/local-authority/00HY,Wiltshire Council,06/02/2014,1901213333,377.28,Alpha Taxis ,100124,BA14,Neighbourhood & Planning,Mainstream Primary,Transport Contracts,Third Party Payments,REVENUE
http://statistics.data.gov.uk/id/local-authority/00HY,Wiltshire Council,06/02/2014,1901213334,286.14,Alpha Taxis ,100124,BA14,Neighbourhood & Planning,Mainstream Primary,Transport Contracts,Third Party Payments,REVENUE
http://statistics.data.gov.uk/id/local-authority/00HY,Wiltshire Council,06/02/2014,1901213335,660.00,Alpha Taxis ,100124,BA14,Children & Education,SENTransport,Transport Contracts,Third Party Payments,REVENUE
http://statistics.data.gov.uk/id/local-authority/00HY,Wiltshire Council,06/02/2014,1901213336,1166.70,Alpha Taxis ,100124,BA14,Children & Education,SENTransport,Transport Contracts,Third Party Payments,REVENUE
http://statistics.data.gov.uk/id/local-authority/00HY,Wiltshire Council,06/02/2014,1901213337,541.20,Alpha Taxis ,100124,BA14,Neighbourhood & Planning,Mainstream Secondary,Transport Contracts,Third Party Payments,REVENUE
http://statistics.data.gov.uk/id/local-authority/00HY,Wiltshire Council,06/02/2014,1901213338,312.65,Alpha Taxis ,100124,BA14,Children & Education,SENTransport,Transport Contracts,Third Party Payments,REVENUE
http://statistics.data.gov.uk/id/local-authority/00HY,Wiltshire Council,06/02/2014,1901213338,937.95,Alpha Taxis ,100124,BA14,Neighbourhood & Planning,Mainstream 16+ FE,Transport Contracts,Third Party Payments,REVENUE
http://statistics.data.gov.uk/id/local-authority/00HY,Wiltshire Council,06/02/2014,1901213340,360.00,Alpha Taxis ,100124,BA14,Neighbourhood & Planning,Mainstream Primary,Transport Contracts,Third Party Payments,REVENUE
http://statistics.data.gov.uk/id/local-authority/00HY,Wiltshire Council,12/02/2014,1901214494,842.05,Alpha Taxis ,100124,BA14,Children & Education,Safeguarding Ass Est,Transport Contracts,Third Party Payments,REVENUE
http://statistics.data.gov.uk/id/local-authority/00HY,Wiltshire Council,19/02/2014,1901225329,270.10,Alpha Taxis ,100124,BA14,Community Services,CTPLD County CIC U65,Transport Contracts,Third Party Payments,REVENUE
http://statistics.data.gov.uk/id/local-authority/00HY,Wiltshire Council,19/02/2014,1901225329,449.00,Alpha Taxis ,100124,BA14,Neighbourhood & Planning,SEN Rechargable Exp,Transport Contracts,Third Party Payments,REVENUE
http://statistics.data.gov.uk/id/local-authority/00HY,Wiltshire Council,19/02/2014,1901225329,561.00,Alpha Taxis ,100124,BA14,Children & Education,Safeguarding Ass Nth,Transport Contracts,Third Party Payments,REVENUE
http://statistics.data.gov.uk/id/local-authority/00HY,Wiltshire Council,19/02/2014,1901225329,880.00,Alpha Taxis ,100124,BA14,Children & Education,EOTAS Service,Transport Contracts,Third Party Payments,REVENUE
http://statistics.data.gov.uk/id/local-authority/00HY,Wiltshire Council,19/02/2014,1901225329,893.60,Alpha Taxis ,100124,BA14,Children & Education,Safeguarding Ass Wst,Transport Contracts,Third Party Payments,REVENUE
http://statistics.data.gov.uk/id/local-authority/00HY,Wiltshire Council,19/02/2014,1901225329,1061.38,Alpha Taxis ,100124,BA14,Children & Education,BehaviourSuppCore,Transport Contracts,Third Party Payments,REVENUE
http://statistics.data.gov.uk/id/local-authority/00HY,Wiltshire Council,19/02/2014,1901225329,2171.60,Alpha Taxis ,100124,BA14,Children & Education,Safeguarding Ass Sth,Transport Contracts,Third Party Payments,REVENUE
http://statistics.data.gov.uk/id/local-authority/00HY,Wiltshire Council,19/02/2014,1901225329,2200.28,Alpha Taxis ,100124,BA14,Children & Education,LAC & 16+ Team 1,Transport Contracts,Third Party Payments,REVENUE
http://statistics.data.gov.uk/id/local-authority/00HY,Wiltshire Council,19/02/2014,1901225329,3046.98,Alpha Taxis ,100124,BA14,Children & Education,Safeguarding Ass Est,Transport Contracts,Third Party Payments,REVENUE
http://statistics.data.gov.uk/id/local-authority/00HY,Wiltshire Council,21/02/2014,5106449671,450.50,Alzheimer's Society ,110125,SP1 ,Community Services,MH OP South Locality,Adult Day Care - Spot,Third Party Payments,REVENUE
http://statistics.data.gov.uk/id/local-authority/00HY,Wiltshire Council,18/02/2014,5106449262,1684.00,Alzheimer's Society ,131298,PL2 ,Community Services,Social Inclusion,Grants Paid to individuals for Tangible Benefits,Supplies and Services,REVENUE
http://statistics.data.gov.uk/id/local-authority/00HY,Wiltshire Council,03/02/2014,5106438856,345.84,Alzheimers Support ,110127,BA14,Community Services,PI West Locality,Adult Day Care - Spot,Third Party Payments,REVENUE
http://statistics.data.gov.uk/id/local-authority/00HY,Wiltshire Council,04/02/2014,5106439098,330.45,Alzheimers Support ,110127,BA14,Community Services,OP West Locality,Adult Domiciliary Care - Mileage,Third Party Payments,REVENUE
http://statistics.data.gov.uk/id/local-authority/00HY,Wiltshire Council,18/02/2014,5106449056,345.84,Alzheimers Support ,110127,BA14,Community Services,PI West Locality,Adult Day Care - Spot,Third Party Payments,REVENUE
http://statistics.data.gov.uk/id/local-authority/00HY,Wiltshire Council,10/02/2014,5106444804,960.00,Ameo Ltd ,137429,WD3 ,Resources,InternalCommunicats,Consultants� Fees,Supplies and Services,REVENUE
http://statistics.data.gov.uk/id/local-authority/00HY,Wiltshire Council,10/02/2014,5106444805,640.00,Ameo Ltd ,137429,WD3 ,Resources,InternalCommunicats,Consultants� Fees,Supplies and Services,REVENUE
http://statistics.data.gov.uk/id/local-authority/00HY,Wiltshire Council,20/02/2014,5106449195,1440.00,Ameo Ltd ,137429,WD3 ,Resources,InternalCommunicats,Consultants� Fees,Supplies and Services,REVENUE
http://statistics.data.gov.uk/id/local-authority/00HY,Wiltshire Council,25/02/2014,5106450076,1280.00,Ameo Ltd ,137429,WD3 ,Resources,InternalCommunicats,Consultants� Fees,Supplies and Services,REVENUE
http://statistics.data.gov.uk/id/local-authority/00HY,Wiltshire Council,25/02/2014,5106450077,1280.00,Ameo Ltd ,137429,WD3 ,Resources,InternalCommunicats,Consultants� Fees,Supplies and Services,REVENUE
http://statistics.data.gov.uk/id/local-authority/00HY,Wiltshire Council,25/02/2014,5106450078,320.00,Ameo Ltd ,137429,WD3 ,Resources,InternalCommunicats,Consultants� Fees,Supplies and Services,REVENUE
http://statistics.data.gov.uk/id/local-authority/00HY,Wiltshire Council,25/02/2014,5106450079,1440.00,Ameo Ltd ,137429,WD3 ,Resources,InternalCommunicats,Consultants� Fees,Supplies and Services,REVENUE
http://statistics.data.gov.uk/id/local-authority/00HY,Wiltshire Council,25/02/2014,5106450101,640.00,Ameo Ltd ,137429,WD3 ,Resources,InternalCommunicats,Consultants� Fees,Supplies and Services,REVENUE
http://statistics.data.gov.uk/id/local-authority/00HY,Wiltshire Council,25/02/2014,5106450102,960.00,Ameo Ltd ,137429,WD3 ,Resources,InternalCommunicats,Consultants� Fees,Supplies and Services,REVENUE
http://statistics.data.gov.uk/id/local-authority/00HY,Wiltshire Council,25/02/2014,5106450103,1280.00,Ameo Ltd ,137429,WD3 ,Resources,InternalCommunicats,Consultants� Fees,Supplies and Services,REVENUE
http://statistics.data.gov.uk/id/local-authority/00HY,Wiltshire Council,21/02/2014,5106449812,2842.00,Amicus Foster Care Limited ,126050,BS2 ,Children & Education,External Placements,Adult / Child Care Agency Placement,Third Party Payments,REVENUE
http://statistics.data.gov.uk/id/local-authority/00HY,Wiltshire Council,21/02/2014,5106449813,2842.00,Amicus Foster Care Limited ,126050,BS2 ,Children & Education,External Placements,Adult / Child Care Agency Placement,Third Party Payments,REVENUE
http://statistics.data.gov.uk/id/local-authority/00HY,Wiltshire Council,21/02/2014,5106449814,2842.00,Amicus Foster Care Limited ,126050,BS2 ,Children & Education,External Placements,Adult / Child Care Agency Placement,Third Party Payments,REVENUE
http://statistics.data.gov.uk/id/local-authority/00HY,Wiltshire Council,21/02/2014,5106449822,348.56,Amicus Foster Care Limited ,126050,BS2 ,Children & Education,PCT,Adult / Child Care Agency Placement,Third Party Payments,REVENUE
http://statistics.data.gov.uk/id/local-authority/00HY,Wiltshire Council,12/02/2014,5106440685,2304.00,AMS Care Wiltshire ,130764,SN4 ,Community Services,OP North Locality,Adult Care Nursing Placements- Block Contract,Third Party Payments,REVENUE
http://statistics.data.gov.uk/id/local-authority/00HY,Wiltshire Council,12/02/2014,5106440686,439.16,AMS Care Wiltshire ,130764,SN4 ,Community Services,OP North FNC,Adult Care Funded Nursing Care - Loal Auth Clients,Third Party Payments,REVENUE
http://statistics.data.gov.uk/id/local-authority/00HY,Wiltshire Council,12/02/2014,5106440691,2304.00,AMS Care Wiltshire ,130764,SN4 ,Community Services,OP North Locality,Adult Care Nursing Placements- Block Contract,Third Party Payments,REVENUE
http://statistics.data.gov.uk/id/local-authority/00HY,Wiltshire Council,12/02/2014,5106440692,439.16,AMS Care Wiltshire ,130764,SN4 ,Community Services,OP North FNC,Adult Care Funded Nursing Care - Loal Auth Clients,Third Party Payments,REVENUE
http://statistics.data.gov.uk/id/local-authority/00HY,Wiltshire Council,12/02/2014,5106440707,2304.00,AMS Care Wiltshire ,130764,SN4 ,Community Services,MH OP West Locality,Adult Care Nursing Placements- Block Contract,Third Party Payments,REVENUE
http://statistics.data.gov.uk/id/local-authority/00HY,Wiltshire Council,12/02/2014,5106440708,439.16,AMS Care Wiltshire ,130764,SN4 ,Community Services,MH OA West FNC,Adult Care Funded Nursing Care - Loal Auth Clients,Third Party Payments,REVENUE
http://statistics.data.gov.uk/id/local-authority/00HY,Wiltshire Council,12/02/2014,5106440716,2304.00,AMS Care Wiltshire ,130764,SN4 ,Community Services,OP North Locality,Adult Care Nursing Placements- Block Contract,Third Party Payments,REVENUE
http://statistics.data.gov.uk/id/local-authority/00HY,Wiltshire Council,12/02/2014,5106440717,439.16,AMS Care Wiltshire ,130764,SN4 ,Community Services,OP North FNC,Adult Care Funded Nursing Care - Loal Auth Clients,Third Party Payments,REVENUE
http://statistics.data.gov.uk/id/local-authority/00HY,Wiltshire Council,12/02/2014,5106440722,2304.00,AMS Care Wiltshire ,130764,SN4 ,Community Services,OP North Locality,Adult Care Nursing Placements- Block Contract,Third Party Payments,REVENUE
http://statistics.data.gov.uk/id/local-authority/00HY,Wiltshire Council,12/02/2014,5106440723,439.16,AMS Care Wiltshire ,130764,SN4 ,Community Services,OP North FNC,Adult Care Funded Nursing Care - Loal Auth Clients,Third Party Payments,REVENUE
http://statistics.data.gov.uk/id/local-authority/00HY,Wiltshire Council,12/02/2014,5106440742,2304.00,AMS Care Wiltshire ,130764,SN4 ,Community Services,OP North Locality,Adult Care Nursing Placements- Block Contract,Third Party Payments,REVENUE
http://statistics.data.gov.uk/id/local-authority/00HY,Wiltshire Council,12/02/2014,5106440743,439.16,AMS Care Wiltshire ,130764,SN4 ,Community Services,OP North FNC,Adult Care Funded Nursing Care - Loal Auth Clients,Third Party Payments,REVENUE
http://statistics.data.gov.uk/id/local-authority/00HY,Wiltshire Council,12/02/2014,5106440754,2304.00,AMS Care Wiltshire ,130764,SN4 ,Community Services,OP North Locality,Adult Care Nursing Placements- Block Contract,Third Party Payments,REVENUE
http://statistics.data.gov.uk/id/local-authority/00HY,Wiltshire Council,12/02/2014,5106440755,439.16,AMS Care Wiltshire ,130764,SN4 ,Community Services,OP South FNC,Adult Care Funded Nursing Care - Loal Auth Clients,Third Party Payments,REVENUE
http://statistics.data.gov.uk/id/local-authority/00HY,Wiltshire Council,12/02/2014,5106440783,2304.00,AMS Care Wiltshire ,130764,SN4 ,Community Services,OP North Locality,Adult Care Nursing Placements- Block Contract,Third Party Payments,REVENUE
http://statistics.data.gov.uk/id/local-authority/00HY,Wiltshire Council,12/02/2014,5106440784,439.16,AMS Care Wiltshire ,130764,SN4 ,Community Services,OP North FNC,Adult Care Funded Nursing Care - Loal Auth Clients,Third Party Payments,REVENUE
http://statistics.data.gov.uk/id/local-authority/00HY,Wiltshire Council,12/02/2014,5106440813,2304.00,AMS Care Wiltshire ,130764,SN4 ,Community Services,OP North Locality,Adult Care Nursing Placements- Block Contract,Third Party Payments,REVENUE
http://statistics.data.gov.uk/id/local-authority/00HY,Wiltshire Council,12/02/2014,5106440814,439.16,AMS Care Wiltshire ,130764,SN4 ,Community Services,OP North FNC,Adult Care Funded Nursing Care - Loal Auth Clients,Third Party Payments,REVENUE
http://statistics.data.gov.uk/id/local-authority/00HY,Wiltshire Council,12/02/2014,5106440819,2304.00,AMS Care Wiltshire ,130764,SN4 ,Community Services,OP North Locality,Adult Care Nursing Placements- Block Contract,Third Party Payments,REVENUE
http://statistics.data.gov.uk/id/local-authority/00HY,Wiltshire Council,12/02/2014,5106440820,439.16,AMS Care Wiltshire ,130764,SN4 ,Community Services,OP North FNC,Adult Care Funded Nursing Care - Loal Auth Clients,Third Party Payments,REVENUE
http://statistics.data.gov.uk/id/local-authority/00HY,Wiltshire Council,12/02/2014,5106440867,2304.00,AMS Care Wiltshire ,130764,SN4 ,Community Services,OP North Locality,Adult Care Nursing Placements- Block Contract,Third Party Payments,REVENUE
http://statistics.data.gov.uk/id/local-authority/00HY,Wiltshire Council,12/02/2014,5106440868,439.16,AMS Care Wiltshire ,130764,SN4 ,Community Services,OP North FNC,Adult Care Funded Nursing Care - Loal Auth Clients,Third Party Payments,REVENUE
http://statistics.data.gov.uk/id/local-authority/00HY,Wiltshire Council,12/02/2014,5106440918,2304.00,AMS Care Wiltshire ,130764,SN4 ,Community Services,OP North Locality,Adult Care Nursing Placements- Block Contract,Third Party Payments,REVENUE
http://statistics.data.gov.uk/id/local-authority/00HY,Wiltshire Council,12/02/2014,5106440919,439.16,AMS Care Wiltshire ,130764,SN4 ,Community Services,OP North FNC,Adult Care Funded Nursing Care - Loal Auth Clients,Third Party Payments,REVENUE
http://statistics.data.gov.uk/id/local-authority/00HY,Wiltshire Council,12/02/2014,5106441025,2304.00,AMS Care Wiltshire ,130764,SN4 ,Community Services,MH OP North Locality,Adult Care Nursing Placements- Block Contract,Third Party Payments,REVENUE
http://statistics.data.gov.uk/id/local-authority/00HY,Wiltshire Council,12/02/2014,5106441026,439.16,AMS Care Wiltshire ,130764,SN4 ,Community Services,MH OA North FNC,Adult Care Funded Nursing Care - Loal Auth Clients,Third Party Payments,REVENUE
http://statistics.data.gov.uk/id/local-authority/00HY,Wiltshire Council,12/02/2014,5106441042,2304.00,AMS Care Wiltshire ,130764,SN4 ,Community Services,OP North Locality,Adult Care Nursing Placements- Block Contract,Third Party Payments,REVENUE
http://statistics.data.gov.uk/id/local-authority/00HY,Wiltshire Council,12/02/2014,5106441043,439.16,AMS Care Wiltshire ,130764,SN4 ,Community Services,OP North FNC,Adult Care Funded Nursing Care - Loal Auth Clients,Third Party Payments,REVENUE
http://statistics.data.gov.uk/id/local-authority/00HY,Wiltshire Council,12/02/2014,5106441051,2304.00,AMS Care Wiltshire ,130764,SN4 ,Community Services,OP North Locality,Adult Care Nursing Placements- Block Contract,Third Party Payments,REVENUE
http://statistics.data.gov.uk/id/local-authority/00HY,Wiltshire Council,12/02/2014,5106441052,439.16,AMS Care Wiltshire ,130764,SN4 ,Community Services,OP North FNC,Adult Care Funded Nursing Care - Loal Auth Clients,Third Party Payments,REVENUE
http://statistics.data.gov.uk/id/local-authority/00HY,Wiltshire Council,12/02/2014,5106441069,2304.00,AMS Care Wiltshire ,130764,SN4 ,Community Services,OP North Locality,Adult Care Nursing Placements- Block Contract,Third Party Payments,REVENUE
http://statistics.data.gov.uk/id/local-authority/00HY,Wiltshire Council,12/02/2014,5106441070,439.16,AMS Care Wiltshire ,130764,SN4 ,Community Services,OP North FNC,Adult Care Funded Nursing Care - Loal Auth Clients,Third Party Payments,REVENUE
http://statistics.data.gov.uk/id/local-authority/00HY,Wiltshire Council,12/02/2014,5106441081,2304.00,AMS Care Wiltshire ,130764,SN4 ,Community Services,MH OP North Locality,Adult Care Nursing Placements- Block Contract,Third Party Payments,REVENUE
http://statistics.data.gov.uk/id/local-authority/00HY,Wiltshire Council,12/02/2014,5106441082,439.16,AMS Care Wiltshire ,130764,SN4 ,Community Services,MH OA North FNC,Adult Care Funded Nursing Care - Loal Auth Clients,Third Party Payments,REVENUE
http://statistics.data.gov.uk/id/local-authority/00HY,Wiltshire Council,12/02/2014,5106441689,2506.00,AMS Care Wiltshire ,130764,SN4 ,Community Services,OP North Locality,Adult Care Nursing Placements- Block Contract,Third Party Payments,REVENUE
http://statistics.data.gov.uk/id/local-authority/00HY,Wiltshire Council,12/02/2014,5106441690,439.16,AMS Care Wiltshire ,130764,SN4 ,Community Services,OP North FNC,Adult Care Funded Nursing Care - Loal Auth Clients,Third Party Payments,REVENUE
http://statistics.data.gov.uk/id/local-authority/00HY,Wiltshire Council,12/02/2014,5106441692,2304.00,AMS Care Wiltshire ,130764,SN4 ,Community Services,OP South Locality,Adult Care Nursing Placements- Block Contract,Third Party Payments,REVENUE
http://statistics.data.gov.uk/id/local-authority/00HY,Wiltshire Council,12/02/2014,5106441693,439.16,AMS Care Wiltshire ,130764,SN4 ,Community Services,OP South FNC,Adult Care Funded Nursing Care - Loal Auth Clients,Third Party Payments,REVENUE
http://statistics.data.gov.uk/id/local-authority/00HY,Wiltshire Council,12/02/2014,5106441756,2304.00,AMS Care Wiltshire ,130764,SN4 ,Community Services,OP North Locality,Adult Care Nursing Placements- Block Contract,Third Party Payments,REVENUE
http://statistics.data.gov.uk/id/local-authority/00HY,Wiltshire Council,12/02/2014,5106441757,439.16,AMS Care Wiltshire ,130764,SN4 ,Community Services,OP North FNC,Adult Care Funded Nursing Care - Loal Auth Clients,Third Party Payments,REVENUE
http://statistics.data.gov.uk/id/local-authority/00HY,Wiltshire Council,12/02/2014,5106441812,2304.00,AMS Care Wiltshire ,130764,SN4 ,Community Services,OP West Locality,Adult Care Nursing Placements- Block Contract,Third Party Payments,REVENUE
http://statistics.data.gov.uk/id/local-authority/00HY,Wiltshire Council,12/02/2014,5106441813,439.16,AMS Care Wiltshire ,130764,SN4 ,Community Services,OP West FNC,Adult Care Funded Nursing Care - Loal Auth Clients,Third Party Payments,REVENUE
http://statistics.data.gov.uk/id/local-authority/00HY,Wiltshire Council,12/02/2014,5106441832,2304.00,AMS Care Wiltshire ,130764,SN4 ,Community Services,OP West Locality,Adult Care Nursing Placements- Block Contract,Third Party Payments,REVENUE
http://statistics.data.gov.uk/id/local-authority/00HY,Wiltshire Council,12/02/2014,5106441833,439.16,AMS Care Wiltshire ,130764,SN4 ,Community Services,OP West FNC,Adult Care Funded Nursing Care - Loal Auth Clients,Third Party Payments,REVENUE
http://statistics.data.gov.uk/id/local-authority/00HY,Wiltshire Council,12/02/2014,5106441838,2304.00,AMS Care Wiltshire ,130764,SN4 ,Community Services,OP North Locality,Adult Care Nursing Placements- Block Contract,Third Party Payments,REVENUE
http://statistics.data.gov.uk/id/local-authority/00HY,Wiltshire Council,12/02/2014,5106441839,439.16,AMS Care Wiltshire ,130764,SN4 ,Community Services,OP North FNC,Adult Care Funded Nursing Care - Loal Auth Clients,Third Party Payments,REVENUE
http://statistics.data.gov.uk/id/local-authority/00HY,Wiltshire Council,12/02/2014,5106441944,2304.00,AMS Care Wiltshire ,130764,SN4 ,Community Services,OP North Locality,Adult Care Nursing Placements- Block Contract,Third Party Payments,REVENUE
http://statistics.data.gov.uk/id/local-authority/00HY,Wiltshire Council,12/02/2014,5106441945,439.16,AMS Care Wiltshire ,130764,SN4 ,Community Services,OP North FNC,Adult Care Funded Nursing Care - Loal Auth Clients,Third Party Payments,REVENUE
http://statistics.data.gov.uk/id/local-authority/00HY,Wiltshire Council,12/02/2014,5106441946,2304.00,AMS Care Wiltshire ,130764,SN4 ,Community Services,OP North Locality,Adult Care Nursing Placements- Block Contract,Third Party Payments,REVENUE
http://statistics.data.gov.uk/id/local-authority/00HY,Wiltshire Council,12/02/2014,5106441947,439.16,AMS Care Wiltshire ,130764,SN4 ,Community Services,OP North FNC,Adult Care Funded Nursing Care - Loal Auth Clients,Third Party Payments,REVENUE
http://statistics.data.gov.uk/id/local-authority/00HY,Wiltshire Council,12/02/2014,5106441949,2304.00,AMS Care Wiltshire ,130764,SN4 ,Community Services,OP North Locality,Adult Care Nursing Placements- Block Contract,Third Party Payments,REVENUE
http://statistics.data.gov.uk/id/local-authority/00HY,Wiltshire Council,12/02/2014,5106441950,439.16,AMS Care Wiltshire ,130764,SN4 ,Community Services,OP North FNC,Adult Care Funded Nursing Care - Loal Auth Clients,Third Party Payments,REVENUE
http://statistics.data.gov.uk/id/local-authority/00HY,Wiltshire Council,12/02/2014,5106442250,2304.00,AMS Care Wiltshire ,130764,SN4 ,Community Services,OP East Locality,Adult Care Nursing Placements- Block Contract,Third Party Payments,REVENUE
http://statistics.data.gov.uk/id/local-authority/00HY,Wiltshire Council,12/02/2014,5106442251,439.16,AMS Care Wiltshire ,130764,SN4 ,Community Services,OP East FNC,Adult Care Funded Nursing Care - Loal Auth Clients,Third Party Payments,REVENUE
http://statistics.data.gov.uk/id/local-authority/00HY,Wiltshire Council,12/02/2014,5106442936,2743.16,AMS Care Wiltshire ,130764,SN4 ,Community Services,OP North Locality,Adult Care Nursing Placements- Spot Purchase,Third Party Payments,REVENUE
http://statistics.data.gov.uk/id/local-authority/00HY,Wiltshire Council,12/02/2014,5106445148,3480.84,AMS Care Wiltshire ,130764,SN4 ,Community Services,Home Loans,Adult Care Loans,Capital charges and Expenditure,REVENUE
http://statistics.data.gov.uk/id/local-authority/00HY,Wiltshire Council,12/02/2014,5106445158,3480.84,AMS Care Wiltshire ,130764,SN4 ,Community Services,Home Loans,Adult Care Loans,Capital charges and Expenditure,REVENUE
http://statistics.data.gov.uk/id/local-authority/00HY,Wiltshire Council,12/02/2014,5106445176,2711.64,AMS Care Wiltshire ,130764,SN4 ,Community Services,Home Loans,Adult Care Loans,Capital charges and Expenditure,REVENUE
http://statistics.data.gov.uk/id/local-authority/00HY,Wiltshire Council,28/02/2014,5106452872,1879.50,AMS Care Wiltshire ,130764,SN4 ,Community Services,OP North Locality,Adult Care Nursing Placements- Block Contract,Third Party Payments,REVENUE
http://statistics.data.gov.uk/id/local-authority/00HY,Wiltshire Council,28/02/2014,5106452873,329.37,AMS Care Wiltshire ,130764,SN4 ,Community Services,OP North FNC,Adult Care Funded Nursing Care - Loal Auth Clients,Third Party Payments,REVENUE
http://statistics.data.gov.uk/id/local-authority/00HY,Wiltshire Council,17/02/2014,1901216572,569.16,Anchor Trust - Finance Income Only ,101153,BD1 ,Community Services,OPPI Commissioned Ct,Payments to Contractors - Other,Third Party Payments,REVENUE
http://statistics.data.gov.uk/id/local-authority/00HY,Wiltshire Council,17/02/2014,1901216573,292.60,Anchor Trust - Finance Income Only ,101153,BD1 ,Community Services,OPPI Commissioned Ct,Payments to Contractors - Other,Third Party Payments,REVENUE
http://statistics.data.gov.uk/id/local-authority/00HY,Wiltshire Council,20/02/2014,5106449589,6000.00,Andover   District Mencap ,113490,SP10,Children & Education,External Placements,Adult / Child Care Agency Placement,Third Party Payments,REVENUE
http://statistics.data.gov.uk/id/local-authority/00HY,Wiltshire Council,12/02/2014,5106441150,3264.96,Andover Nursing Home ,110142,SP10,Community Services,OP East Locality,Adult Care Nursing Placements- Spot Purchase,Third Party Payments,REVENUE
http://statistics.data.gov.uk/id/local-authority/00HY,Wiltshire Council,05/02/2014,1901212537,282.84,Andy Taxis Limited ,100874,SP4 ,Neighbourhood & Planning,Mainstream 16+ Sec,Transport Contracts,Third Party Payments,REVENUE
http://statistics.data.gov.uk/id/local-authority/00HY,Wiltshire Council,05/02/2014,1901212537,707.15,Andy Taxis Limited ,100874,SP4 ,Neighbourhood & Planning,Mainstream Secondary,Transport Contracts,Third Party Payments,REVENUE
http://statistics.data.gov.uk/id/local-authority/00HY,Wiltshire Council,05/02/2014,1901212537,990.01,Andy Taxis Limited ,100874,SP4 ,Neighbourhood & Planning,Mainstream Primary,Transport Contracts,Third Party Payments,REVENUE
http://statistics.data.gov.uk/id/local-authority/00HY,Wiltshire Council,04/02/2014,1901211270,3995.93,Andybus  and  Coach Ltd ,100132,SN16,Neighbourhood & Planning,Mainstream Primary,Transport Contracts,Third Party Payments,REVENUE
http://statistics.data.gov.uk/id/local-authority/00HY,Wiltshire Council,04/02/2014,1901211270,5070.01,Andybus  and  Coach Ltd ,100132,SN16,Neighbourhood & Planning,Mainstream 16+ Sec,Transport Contracts,Third Party Payments,REVENUE
http://statistics.data.gov.uk/id/local-authority/00HY,Wiltshire Council,04/02/2014,1901211270,19817.70,Andybus  and  Coach Ltd ,100132,SN16,Neighbourhood & Planning,Mainstream Secondary,Transport Contracts,Third Party Payments,REVENUE
http://statistics.data.gov.uk/id/local-authority/00HY,Wiltshire Council,04/02/2014,1901211270,41967.11,Andybus  and  Coach Ltd ,100132,SN16,Neighbourhood & Planning,Public Transport,Transport Contracts,Third Party Payments,REVENUE
http://statistics.data.gov.uk/id/local-authority/00HY,Wiltshire Council,04/02/2014,1901211272,315.60,Andybus  and  Coach Ltd ,100132,SN16,Neighbourhood & Planning,Mainstream Secondary,Transport Contracts,Third Party Payments,REVENUE
http://statistics.data.gov.uk/id/local-authority/00HY,Wiltshire Council,25/02/2014,1901226870,6913.12,Andybus  and  Coach Ltd ,100132,SN16,Neighbourhood & Planning,Concessionary Fares,Compensation for Concessionary fares,Third Party Payments,REVENUE
http://statistics.data.gov.uk/id/local-authority/00HY,Wiltshire Council,27/02/2014,1901227962,333.34,ANGEL HOTEL CHIPPENHAM ,110150,SN15,Neighbourhood & Planning,Swindon & Wilts LEP,Premises Rental / Hire Charges,Premises Related,REVENUE
http://statistics.data.gov.uk/id/local-authority/00HY,Wiltshire Council,18/02/2014,5106449019,272.93,ANGEL HOTEL CHIPPENHAM ,110150,SN15,Children & Education,EYChildCareTeam,Premises Rental / Hire Charges,Premises Related,REVENUE
http://statistics.data.gov.uk/id/local-authority/00HY,Wiltshire Council,18/02/2014,5106449097,272.93,ANGEL HOTEL CHIPPENHAM ,110150,SN15,Children & Education,EarlyIntrvenTeam,Premises Rental / Hire Charges,Premises Related,REVENUE
http://statistics.data.gov.uk/id/local-authority/00HY,Wiltshire Council,18/02/2014,5106449098,299.17,ANGEL HOTEL CHIPPENHAM ,110150,SN15,Children & Education,EarlyIntrvenTeam,Premises Rental / Hire Charges,Premises Related,REVENUE
http://statistics.data.gov.uk/id/local-authority/00HY,Wiltshire Council,28/02/2014,5106452713,582.72,ANGEL HOTEL CHIPPENHAM ,110150,SN15,Children & Education,EYLearnDevTm,Conference Fees,Supplies and Services,REVENUE
http://statistics.data.gov.uk/id/local-authority/00HY,Wiltshire Council,04/02/2014,5106427646,390.00,Annie's Catering ,125517,SN10,Resources,BusinsTransformLean,Hospitality,Supplies and Services,REVENUE
http://statistics.data.gov.uk/id/local-authority/00HY,Wiltshire Council,04/02/2014,5106434548,568.75,Annie's Catering ,125517,SN10,Children & Education,GeneralYDS,Catering,Supplies and Services,REVENUE
http://statistics.data.gov.uk/id/local-authority/00HY,Wiltshire Council,04/02/2014,5106437511,250.00,Annie's Catering ,125517,SN10,Children & Education,Fostering Budget,Carer Recruitment & Training,Third Party Payments,REVENUE
http://statistics.data.gov.uk/id/local-authority/00HY,Wiltshire Council,14/02/2014,1901216392,2212.22,Aon Limited ,113554,LE1 ,Neighbourhood & Planning,Admin Hsg Management,Tenants� Contents Insurance,Premises Related,REVENUE
http://statistics.data.gov.uk/id/local-authority/00HY,Wiltshire Council,03/02/2014,1901210930,1446.18,APL Travel Limited ,100596,SN4 ,Neighbourhood & Planning,Mainstream Secondary,Transport Contracts,Third Party Payments,REVENUE
http://statistics.data.gov.uk/id/local-authority/00HY,Wiltshire Council,03/02/2014,1901210930,2711.12,APL Travel Limited ,100596,SN4 ,Neighbourhood & Planning,Mainstream 16+ FE,Transport Contracts,Third Party Payments,REVENUE
http://statistics.data.gov.uk/id/local-authority/00HY,Wiltshire Council,03/02/2014,1901210930,4709.93,APL Travel Limited ,100596,SN4 ,Neighbourhood & Planning,Public Transport,Transport Contracts,Third Party Payments,REVENUE
http://statistics.data.gov.uk/id/local-authority/00HY,Wiltshire Council,03/02/2014,1901210931,1446.18,APL Travel Limited ,100596,SN4 ,Neighbourhood & Planning,Mainstream Secondary,Transport Contracts,Third Party Payments,REVENUE
http://statistics.data.gov.uk/id/local-authority/00HY,Wiltshire Council,03/02/2014,1901210931,2711.12,APL Travel Limited ,100596,SN4 ,Neighbourhood & Planning,Mainstream 16+ FE,Transport Contracts,Third Party Payments,REVENUE
http://statistics.data.gov.uk/id/local-authority/00HY,Wiltshire Council,03/02/2014,1901210931,4709.93,APL Travel Limited ,100596,SN4 ,Neighbourhood & Planning,Public Transport,Transport Contracts,Third Party Payments,REVENUE
http://statistics.data.gov.uk/id/local-authority/00HY,Wiltshire Council,03/02/2014,1901210932,1446.18,APL Travel Limited ,100596,SN4 ,Neighbourhood & Planning,Mainstream Secondary,Transport Contracts,Third Party Payments,REVENUE
http://statistics.data.gov.uk/id/local-authority/00HY,Wiltshire Council,03/02/2014,1901210932,2711.12,APL Travel Limited ,100596,SN4 ,Neighbourhood & Planning,Mainstream 16+ FE,Transport Contracts,Third Party Payments,REVENUE
http://statistics.data.gov.uk/id/local-authority/00HY,Wiltshire Council,03/02/2014,1901210932,4709.93,APL Travel Limited ,100596,SN4 ,Neighbourhood & Planning,Public Transport,Transport Contracts,Third Party Payments,REVENUE
http://statistics.data.gov.uk/id/local-authority/00HY,Wiltshire Council,03/02/2014,1901210933,1446.18,APL Travel Limited ,100596,SN4 ,Neighbourhood & Planning,Mainstream Secondary,Transport Contracts,Third Party Payments,REVENUE
http://statistics.data.gov.uk/id/local-authority/00HY,Wiltshire Council,03/02/2014,1901210933,2711.12,APL Travel Limited ,100596,SN4 ,Neighbourhood & Planning,Mainstream 16+ FE,Transport Contracts,Third Party Payments,REVENUE
http://statistics.data.gov.uk/id/local-authority/00HY,Wiltshire Council,03/02/2014,1901210933,4709.93,APL Travel Limited ,100596,SN4 ,Neighbourhood & Planning,Public Transport,Transport Contracts,Third Party Payments,REVENUE
http://statistics.data.gov.uk/id/local-authority/00HY,Wiltshire Council,03/02/2014,1901210934,1446.18,APL Travel Limited ,100596,SN4 ,Neighbourhood & Planning,Mainstream Secondary,Transport Contracts,Third Party Payments,REVENUE
http://statistics.data.gov.uk/id/local-authority/00HY,Wiltshire Council,03/02/2014,1901210934,2711.12,APL Travel Limited ,100596,SN4 ,Neighbourhood & Planning,Mainstream 16+ FE,Transport Contracts,Third Party Payments,REVENUE
http://statistics.data.gov.uk/id/local-authority/00HY,Wiltshire Council,03/02/2014,1901210934,4709.93,APL Travel Limited ,100596,SN4 ,Neighbourhood & Planning,Public Transport,Transport Contracts,Third Party Payments,REVENUE
http://statistics.data.gov.uk/id/local-authority/00HY,Wiltshire Council,04/02/2014,1901211267,1369.36,APL Travel Limited ,100596,SN4 ,Neighbourhood & Planning,Mainstream Secondary,Transport Contracts,Third Party Payments,REVENUE
http://statistics.data.gov.uk/id/local-authority/00HY,Wiltshire Council,04/02/2014,1901211267,6494.45,APL Travel Limited ,100596,SN4 ,Neighbourhood & Planning,Public Transport,Transport Contracts,Third Party Payments,REVENUE
http://statistics.data.gov.uk/id/local-authority/00HY,Wiltshire Council,04/02/2014,1901211268,1589.34,APL Travel Limited ,100596,SN4 ,Neighbourhood & Planning,Mainstream Secondary,Transport Contracts,Third Party Payments,REVENUE
http://statistics.data.gov.uk/id/local-authority/00HY,Wiltshire Council,04/02/2014,1901211268,5059.95,APL Travel Limited ,100596,SN4 ,Neighbourhood & Planning,Public Transport,Transport Contracts,Third Party Payments,REVENUE
http://statistics.data.gov.uk/id/local-authority/00HY,Wiltshire Council,04/02/2014,1901211269,5723.11,APL Travel Limited ,100596,SN4 ,Neighbourhood & Planning,Mainstream Secondary,Transport Contracts,Third Party Payments,REVENUE
http://statistics.data.gov.uk/id/local-authority/00HY,Wiltshire Council,04/02/2014,1901211271,310.08,APL Travel Limited ,100596,SN4 ,Neighbourhood & Planning,Mainstream 16+ Sec,Transport Contracts,Third Party Payments,REVENUE
http://statistics.data.gov.uk/id/local-authority/00HY,Wiltshire Council,04/02/2014,1901211271,2663.97,APL Travel Limited ,100596,SN4 ,Neighbourhood & Planning,Mainstream Secondary,Transport Contracts,Third Party Payments,REVENUE
http://statistics.data.gov.uk/id/local-authority/00HY,Wiltshire Council,04/02/2014,1901211277,301.36,APL Travel Limited ,100596,SN4 ,Neighbourhood & Planning,Mainstream 16+ Sec,Transport Contract -  Bus Season Tickets,Third Party Payments,REVENUE
http://statistics.data.gov.uk/id/local-authority/00HY,Wiltshire Council,04/02/2014,1901211277,3122.84,APL Travel Limited ,100596,SN4 ,Neighbourhood & Planning,Mainstream 16+ FE,Transport Contract -  Bus Season Tickets,Third Party Payments,REVENUE
http://statistics.data.gov.uk/id/local-authority/00HY,Wiltshire Council,04/02/2014,1901211280,381.25,APL Travel Limited ,100596,SN4 ,Neighbourhood & Planning,Public Transport,Transport Contracts,Third Party Payments,REVENUE
http://statistics.data.gov.uk/id/local-authority/00HY,Wiltshire Council,04/02/2014,1901211281,475.00,APL Travel Limited ,100596,SN4 ,Neighbourhood & Planning,Public Transport,Transport Contracts,Third Party Payments,REVENUE
http://statistics.data.gov.uk/id/local-authority/00HY,Wiltshire Council,25/02/2014,1901226871,9096.08,APL Travel Limited ,100596,SN4 ,Neighbourhood & Planning,Concessionary Fares,Compensation for Concessionary fares,Third Party Payments,REVENUE
http://statistics.data.gov.uk/id/local-authority/00HY,Wiltshire Council,07/02/2014,5106435110,304.00,Aquila Truck Centres (Italia) Ltd ,110369,SN1 ,Neighbourhood & Planning,Fleet Operations,Vehicle Parts,Transport Related,REVENUE
http://statistics.data.gov.uk/id/local-authority/00HY,Wiltshire Council,12/02/2014,5106443214,2626.00,Arbory Residential Home ,113587,SP11,Community Services,MH OP East Locality,Adult Residential Placements - Spot Purchase,Third Party Payments,REVENUE
http://statistics.data.gov.uk/id/local-authority/00HY,Wiltshire Council,18/02/2014,5106449225,17783.08,ARC HD Services Ltd ,135806,SO50,Children & Education,External Placements,Adult / Child Care Agency Placement,Third Party Payments,REVENUE
http://statistics.data.gov.uk/id/local-authority/00HY,Wiltshire Council,12/02/2014,5106441514,2094.92,Arch Care Services Ltd ,110169,BS21,Community Services,MH AOWA North,Adult Residential Placements - Spot Purchase,Third Party Payments,REVENUE
http://statistics.data.gov.uk/id/local-authority/00HY,Wiltshire Council,06/02/2014,5106434956,393.93,Arco Limited ,130295,HU1 ,Neighbourhood & Planning,Housg Mtc Trading Ac,Equipment Purchase,Supplies and Services,REVENUE
http://statistics.data.gov.uk/id/local-authority/00HY,Wiltshire Council,26/02/2014,5106444788,359.20,Arjo Limited ,100120,GL1 ,Neighbourhood & Planning,Five Rivers,Equipment Maintenance,Supplies and Services,REVENUE
http://statistics.data.gov.uk/id/local-authority/00HY,Wiltshire Council,18/02/2014,5106449289,292.99,Arjo Limited ,100120,GL1 ,Community Services,Bradbury Hse Respite,Equipment Maintenance,Supplies and Services,REVENUE
http://statistics.data.gov.uk/id/local-authority/00HY,Wiltshire Council,11/02/2014,1901213973,403.80,Arrow Private Hire ,100574,SN8 ,Neighbourhood & Planning,Mainstream 16+ FE,Transport Contracts,Third Party Payments,REVENUE
http://statistics.data.gov.uk/id/local-authority/00HY,Wiltshire Council,11/02/2014,1901213975,394.06,Arrow Private Hire ,100574,SN8 ,Neighbourhood & Planning,SEN Rechargable Exp,Transport Contracts,Third Party Payments,REVENUE
http://statistics.data.gov.uk/id/local-authority/00HY,Wiltshire Council,11/02/2014,1901213975,788.12,Arrow Private Hire ,100574,SN8 ,Children & Education,SENTransport,Transport Contracts,Third Party Payments,REVENUE
http://statistics.data.gov.uk/id/local-authority/00HY,Wiltshire Council,11/02/2014,1901213976,1403.80,Arrow Private Hire ,100574,SN8 ,Neighbourhood & Planning,Mainstream Secondary,Transport Contracts,Third Party Payments,REVENUE
http://statistics.data.gov.uk/id/local-authority/00HY,Wiltshire Council,26/02/2014,1901227388,540.00,Arrow Private Hire ,100574,SN8 ,Neighbourhood & Planning,Mainstream Primary,Transport Contracts,Third Party Payments,REVENUE
http://statistics.data.gov.uk/id/local-authority/00HY,Wiltshire Council,11/02/2014,5106445109,1075.00,Arthur Williams Consulting Ltd ,129581,BA14,Wiltshire Council,Wiltshire Council,Buildings Minor Alterations,Premises Related,CAPITAL
http://statistics.data.gov.uk/id/local-authority/00HY,Wiltshire Council,26/02/2014,5106450485,665.00,Arthur Williams Consulting Ltd ,129581,BA14,Wiltshire Council,Wiltshire Council,Buildings Minor Alterations,Premises Related,CAPITAL
http://statistics.data.gov.uk/id/local-authority/00HY,Wiltshire Council,26/02/2014,5106450486,960.00,Arthur Williams Consulting Ltd ,129581,BA14,Wiltshire Council,Wiltshire Council,Buildings Minor Alterations,Premises Related,CAPITAL
http://statistics.data.gov.uk/id/local-authority/00HY,Wiltshire Council,26/02/2014,5106450487,665.00,Arthur Williams Consulting Ltd ,129581,BA14,Wiltshire Council,Wiltshire Council,Buildings Minor Alterations,Premises Related,CAPITAL
http://statistics.data.gov.uk/id/local-authority/00HY,Wiltshire Council,26/02/2014,5106450488,960.00,Arthur Williams Consulting Ltd ,129581,BA14,Wiltshire Council,Wiltshire Council,Buildings Minor Alterations,Premises Related,CAPITAL
http://statistics.data.gov.uk/id/local-authority/00HY,Wiltshire Council,27/02/2014,5106452382,1075.00,Arthur Williams Consulting Ltd ,129581,BA14,Wiltshire Council,Wiltshire Council,Buildings Minor Alterations,Premises Related,CAPITAL
http://statistics.data.gov.uk/id/local-authority/00HY,Wiltshire Council,27/02/2014,5106452404,318.20,Asco Educational Supplies Ltd ,113627,LS11,Children & Education,WiltsLearnResources,Educational Aids,Supplies and Services,REVENUE
http://statistics.data.gov.uk/id/local-authority/00HY,Wiltshire Council,12/02/2014,5106441133,2065.64,Ashbourne Court Care Home ,133906,SP10,Community Services,OP East Locality,Adult Care Nursing Placements- Spot Purchase,Third Party Payments,REVENUE
http://statistics.data.gov.uk/id/local-authority/00HY,Wiltshire Council,12/02/2014,5106441281,1867.80,Ashbury Lodge ,113635,SN3 ,Community Services,MH OP North Locality,Adult Residential Placements - Spot Purchase,Third Party Payments,REVENUE
http://statistics.data.gov.uk/id/local-authority/00HY,Wiltshire Council,17/02/2014,5106448831,478.50,Ashbury Lodge ,113635,SN3 ,Community Services,MH OP North Locality,Adult Residential Respite contribution - Spot,Income,REVENUE
http://statistics.data.gov.uk/id/local-authority/00HY,Wiltshire Council,18/02/2014,5106449057,478.50,Ashbury Lodge ,113635,SN3 ,Community Services,MH OP North Locality,Adult Residential Respite - Spot,Third Party Payments,REVENUE
http://statistics.data.gov.uk/id/local-authority/00HY,Wiltshire Council,05/02/2014,5106440279,1630.00,Ashfords Solicitors ,113641,EX1 ,Resources,Capital Financing,Legal Fees,Supplies and Services,REVENUE
http://statistics.data.gov.uk/id/local-authority/00HY,Wiltshire Council,05/02/2014,5106440310,2140.00,Ashfords Solicitors ,113641,EX1 ,Resources,Capital Financing,Legal Fees,Supplies and Services,REVENUE
http://statistics.data.gov.uk/id/local-authority/00HY,Wiltshire Council,07/02/2014,1901213534,1466.40,Ashton Cabs ,101384,BA14,Children & Education,SENTransport,Transport Contracts,Third Party Payments,REVENUE
http://statistics.data.gov.uk/id/local-authority/00HY,Wiltshire Council,12/02/2014,5106443086,2590.84,Ashton House ,135013,RH16,Community Services,MH OP West Locality,Adult Care Nursing Placements- Spot Purchase,Third Party Payments,REVENUE
http://statistics.data.gov.uk/id/local-authority/00HY,Wiltshire Council,14/02/2014,1901215368,698.00,Ashton Keynes Youth FC ,138913,SN6 ,Wiltshire Council,Wiltshire Council,Area Board Grants,Supplies and Services,CAPITAL
http://statistics.data.gov.uk/id/local-authority/00HY,Wiltshire Council,03/02/2014,5106438849,10000.00,Ask ,110189,BA14,Children & Education,Family&Parenting Sup,Educational Fees,Supplies and Services,REVENUE
http://statistics.data.gov.uk/id/local-authority/00HY,Wiltshire Council,12/02/2014,5106443117,3907.08,Aspects and Milestones Trust ,131150,BS23,Community Services,CTPLD County CIC U65,Adult Residential Placements - Spot Purchase,Third Party Payments,REVENUE
http://statistics.data.gov.uk/id/local-authority/00HY,Wiltshire Council,17/02/2014,1901216628,340.00,Aspire Taxis ,101274,SP2 ,Children & Education,Safeguarding Ass Sth,Transport Contracts,Third Party Payments,REVENUE
http://statistics.data.gov.uk/id/local-authority/00HY,Wiltshire Council,17/02/2014,1901216629,292.66,Aspire Taxis ,101274,SP2 ,Community Services,PI South Locality,Transport Contracts,Third Party Payments,REVENUE
http://statistics.data.gov.uk/id/local-authority/00HY,Wiltshire Council,17/02/2014,1901216630,1787.80,Aspire Taxis ,101274,SP2 ,Children & Education,SENTransport,Transport Contracts,Third Party Payments,REVENUE
http://statistics.data.gov.uk/id/local-authority/00HY,Wiltshire Council,17/02/2014,1901216631,899.27,Aspire Taxis ,101274,SP2 ,Children & Education,SENTransport,Transport Contracts,Third Party Payments,REVENUE
http://statistics.data.gov.uk/id/local-authority/00HY,Wiltshire Council,17/02/2014,1901216642,399.90,Aspire Taxis ,101274,SP2 ,Neighbourhood & Planning,Mainstream Primary,Transport Contracts,Third Party Payments,REVENUE
http://statistics.data.gov.uk/id/local-authority/00HY,Wiltshire Council,26/02/2014,1901227391,1094.00,Aspire Taxis ,101274,SP2 ,Neighbourhood & Planning,Mainstream Primary,Transport Contracts,Third Party Payments,REVENUE
http://statistics.data.gov.uk/id/local-authority/00HY,Wiltshire Council,20/02/2014,5106449071,528.00,Assoc of Democratic Services Office ,121218,N1 2,Resources,DemocraticMemberSupp,Professional Subscriptions/Memberships,Employee Related,REVENUE
http://statistics.data.gov.uk/id/local-authority/00HY,Wiltshire Council,14/02/2014,5106437500,967.60,Assoc Of Electoral Administrators ,113675,SR2 ,Resources,RegistrationofElectr,Political Group Expenses,Supplies and Services,REVENUE
http://statistics.data.gov.uk/id/local-authority/00HY,Wiltshire Council,18/02/2014,1901216844,495.00,Assoc Of Town Centre Management ,113678,SE1 ,Neighbourhood & Planning,EconomicDevelopment,Corporate Memberships,Supplies and Services,REVENUE
http://statistics.data.gov.uk/id/local-authority/00HY,Wiltshire Council,18/02/2014,5106440394,3825.14,Aster ,135687,SN10,Health & Wellbeing,LPSA AntiSocialBehav,Grounds Maintenance,Premises Related,REVENUE
http://statistics.data.gov.uk/id/local-authority/00HY,Wiltshire Council,19/02/2014,5106438811,474.42,Aster Group Ltd  Ridgeway Care. ,113069,SN10,Community Services,MH AOWA North,Adult Domiciliary Care - Spot Contribution,Income,REVENUE
http://statistics.data.gov.uk/id/local-authority/00HY,Wiltshire Council,19/02/2014,5106438812,521.95,Aster Group Ltd  Ridgeway Care. ,113069,SN10,Community Services,MH OP East Locality,Adult Domiciliary Care - Spot,Third Party Payments,REVENUE
http://statistics.data.gov.uk/id/local-authority/00HY,Wiltshire Council,19/02/2014,5106438882,528.36,Aster Group Ltd  Ridgeway Care. ,113069,SN10,Community Services,MH OP East Locality,Adult Domiciliary Care - Spot Contribution,Income,REVENUE
http://statistics.data.gov.uk/id/local-authority/00HY,Wiltshire Council,03/02/2014,5106438883,313.44,Aster Group Ltd  Ridgeway Care. ,113069,SN10,Community Services,MH OP East Locality,Adult Domiciliary Care - Spot Contribution,Income,REVENUE
http://statistics.data.gov.uk/id/local-authority/00HY,Wiltshire Council,03/02/2014,5106438884,493.82,Aster Group Ltd  Ridgeway Care. ,113069,SN10,Community Services,MH OP East Locality,Adult Domiciliary Care - Spot Contribution,Income,REVENUE
http://statistics.data.gov.uk/id/local-authority/00HY,Wiltshire Council,18/02/2014,5106449131,625.16,Aster Group Ltd  Ridgeway Care. ,113069,SN10,Community Services,MH OP East Locality,Adult Domiciliary Care - Spot Contribution,Income,REVENUE
http://statistics.data.gov.uk/id/local-authority/00HY,Wiltshire Council,05/02/2014,1901211611,500.00,Aster Living ,112275,SN10,Wiltshire Council,Wiltshire Council,Other Professional Fees,Supplies and Services,CAPITAL
http://statistics.data.gov.uk/id/local-authority/00HY,Wiltshire Council,06/02/2014,1901212763,466.87,Aster Living ,112275,SN10,Wiltshire Council,Wiltshire Council,Other Professional Fees,Supplies and Services,CAPITAL
http://statistics.data.gov.uk/id/local-authority/00HY,Wiltshire Council,06/02/2014,1901212815,500.00,Aster Living ,112275,SN10,Wiltshire Council,Wiltshire Council,Other Professional Fees,Supplies and Services,CAPITAL
http://statistics.data.gov.uk/id/local-authority/00HY,Wiltshire Council,06/02/2014,1901212825,500.00,Aster Living ,112275,SN10,Wiltshire Council,Wiltshire Council,Other Professional Fees,Supplies and Services,CAPITAL
http://statistics.data.gov.uk/id/local-authority/00HY,Wiltshire Council,07/02/2014,1901213490,360.70,Aster Living ,112275,SN10,Wiltshire Council,Wiltshire Council,Other Professional Fees,Supplies and Services,CAPITAL
http://statistics.data.gov.uk/id/local-authority/00HY,Wiltshire Council,10/02/2014,1901213783,678.93,Aster Living ,112275,SN10,Children & Education,WestChildrenw/Dis,Miscellaneous Costs,Supplies and Services,REVENUE
http://statistics.data.gov.uk/id/local-authority/00HY,Wiltshire Council,10/02/2014,1901213783,1517.46,Aster Living ,112275,SN10,Community Services,PI West Locality,Miscellaneous Costs,Supplies and Services,REVENUE
http://statistics.data.gov.uk/id/local-authority/00HY,Wiltshire Council,10/02/2014,1901213783,2667.25,Aster Living ,112275,SN10,Community Services,CTPLD County CIC U65,Miscellaneous Costs,Supplies and Services,REVENUE
http://statistics.data.gov.uk/id/local-authority/00HY,Wiltshire Council,20/02/2014,1901213826,500.00,Aster Living ,112275,SN10,Wiltshire Council,Wiltshire Council,Other Professional Fees,Supplies and Services,CAPITAL
http://statistics.data.gov.uk/id/local-authority/00HY,Wiltshire Council,20/02/2014,1901213829,500.00,Aster Living ,112275,SN10,Wiltshire Council,Wiltshire Council,Other Professional Fees,Supplies and Services,CAPITAL
http://statistics.data.gov.uk/id/local-authority/00HY,Wiltshire Council,13/02/2014,1901215319,702.80,Aster Living ,112275,SN10,Wiltshire Council,Wiltshire Council,Other Professional Fees,Supplies and Services,CAPITAL
http://statistics.data.gov.uk/id/local-authority/00HY,Wiltshire Council,14/02/2014,1901216403,650.00,Aster Living ,112275,SN10,Wiltshire Council,Wiltshire Council,Other Professional Fees,Supplies and Services,CAPITAL
http://statistics.data.gov.uk/id/local-authority/00HY,Wiltshire Council,10/02/2014,5106442150,314.87,Aster Living ,112275,SN10,Community Services,OP East Locality,Adult Domiciliary Care - Spot,Third Party Payments,REVENUE
http://statistics.data.gov.uk/id/local-authority/00HY,Wiltshire Council,12/02/2014,5106441261,2087.12,Aston House Care Home ,132321,DL3 ,Community Services,MH OP North Locality,Adult Residential Placements - Spot Purchase,Third Party Payments,REVENUE
http://statistics.data.gov.uk/id/local-authority/00HY,Wiltshire Council,06/02/2014,5106440398,1920.00,ATECH COACHBUILDERS LTD ,110196,BA13,Community Services,CL&G Comm Govnce,Vehicle 3rd Party Repairs,Transport Related,REVENUE
http://statistics.data.gov.uk/id/local-authority/00HY,Wiltshire Council,13/02/2014,1901215118,307762.37,Atkins Ltd ,110197,KT18,Neighbourhood & Planning,Mouchel Contract,Highways Term - Consultant,Third Party Payments,REVENUE
http://statistics.data.gov.uk/id/local-authority/00HY,Wiltshire Council,19/02/2014,5106449379,22857.32,ATS Euromaster Limited ,110201,DN4 ,Neighbourhood & Planning,Fleet Operations,Vehicle 3rd Party Repairs,Transport Related,REVENUE
http://statistics.data.gov.uk/id/local-authority/00HY,Wiltshire Council,26/02/2014,5106450484,346.79,Audley Care White Horse ,121958,SN8 ,Community Services,OP East Locality,Adult Domiciliary Care - Spot,Third Party Payments,REVENUE
http://statistics.data.gov.uk/id/local-authority/00HY,Wiltshire Council,12/02/2014,5106441736,6660.00,Autism Care Wiltshire ,136507,SN25,Community Services,CTPLD County CIC U65,Adult Residential Placements - Spot Purchase,Third Party Payments,REVENUE
http://statistics.data.gov.uk/id/local-authority/00HY,Wiltshire Council,12/02/2014,5106441504,5882.68,Autism Specialised care Homes ,110205,BS10,Community Services,CTPLD County CIC U65,Adult Residential Placements - Spot Purchase,Third Party Payments,REVENUE
http://statistics.data.gov.uk/id/local-authority/00HY,Wiltshire Council,12/02/2014,5106441424,6086.08,Autism Wessex ,112911,BH23,Community Services,CTPLD County CIC U65,Adult Residential Placements - Spot Purchase,Third Party Payments,REVENUE
http://statistics.data.gov.uk/id/local-authority/00HY,Wiltshire Council,12/02/2014,5106441233,7180.12,Autism West Midlands ,110206,WR9 ,Community Services,CTPLD County CIC U65,Adult Residential Placements - Spot Purchase,Third Party Payments,REVENUE
http://statistics.data.gov.uk/id/local-authority/00HY,Wiltshire Council,21/02/2014,1901226367,1075.00,Auto Cabs ,137961,TR13,Children & Education,Safeguarding Ass Sth,Transport Contracts,Third Party Payments,REVENUE
http://statistics.data.gov.uk/id/local-authority/00HY,Wiltshire Council,06/02/2014,5106440490,360.00,Autocleanse Limited ,134616,SN11,Neighbourhood & Planning,Fleet Operations,Vehicle 3rd Party Repairs,Transport Related,REVENUE
http://statistics.data.gov.uk/id/local-authority/00HY,Wiltshire Council,07/02/2014,5106438492,266.49,Automotive Leasing Ltd ,113729,SL1 ,Neighbourhood & Planning,Fleet Operations,Commercial Leased Vehicles,Transport Related,REVENUE
http://statistics.data.gov.uk/id/local-authority/00HY,Wiltshire Council,07/02/2014,5106438514,250.14,Automotive Leasing Ltd ,113729,SL1 ,Neighbourhood & Planning,Fleet Operations,Commercial Leased Vehicles,Transport Related,REVENUE
http://statistics.data.gov.uk/id/local-authority/00HY,Wiltshire Council,07/02/2014,5106438515,300.08,Automotive Leasing Ltd ,113729,SL1 ,Neighbourhood & Planning,Fleet Operations,Commercial Leased Vehicles,Transport Related,REVENUE
http://statistics.data.gov.uk/id/local-authority/00HY,Wiltshire Council,07/02/2014,5106438516,300.08,Automotive Leasing Ltd ,113729,SL1 ,Neighbourhood & Planning,Fleet Operations,Commercial Leased Vehicles,Transport Related,REVENUE
http://statistics.data.gov.uk/id/local-authority/00HY,Wiltshire Council,14/02/2014,5106447565,347.48,Autonomy Care Limited ,126128,SN10,Community Services,CTPLD County CIC U65,Adult Domiciliary Care - Spot Contribution,Income,REVENUE
http://statistics.data.gov.uk/id/local-authority/00HY,Wiltshire Council,18/02/2014,5106449062,723.00,Autonomy Care Limited ,126128,SN10,Community Services,OP North Locality,Adult Domiciliary Care - Spot,Third Party Payments,REVENUE
http://statistics.data.gov.uk/id/local-authority/00HY,Wiltshire Council,19/02/2014,5106449368,529.31,Autonomy Care Limited ,126128,SN10,Community Services,PI East Locality,Adult Domiciliary Care - Spot Contribution,Income,REVENUE
http://statistics.data.gov.uk/id/local-authority/00HY,Wiltshire Council,27/02/2014,5106452424,300.00,Autotrak ,130850,BS31,Neighbourhood & Planning,Fleet Operations,Vehicle 3rd Party Repairs,Transport Related,REVENUE
http://statistics.data.gov.uk/id/local-authority/00HY,Wiltshire Council,12/02/2014,5106441247,1923.04,"Avenue House, Dorchester ",133778,DT1 ,Community Services,OP East Locality,Adult Residential Placements - Spot Purchase,Third Party Payments,REVENUE
http://statistics.data.gov.uk/id/local-authority/00HY,Wiltshire Council,05/02/2014,1901211505,665.17,Avenue Surgery ,110214,BA12,Neighbourhood & Planning,Sexual Health Commun,Public Health Commissioning,Supplies and Services,REVENUE
http://statistics.data.gov.uk/id/local-authority/00HY,Wiltshire Council,05/02/2014,1901211514,267.29,Avenue Surgery ,110214,BA12,Neighbourhood & Planning,Sexual Health Commun,Public Health Commissioning,Supplies and Services,REVENUE
http://statistics.data.gov.uk/id/local-authority/00HY,Wiltshire Council,12/02/2014,5106442349,2187.08,Avery Healthcare Cepen Lodge ,126733,DL1 ,Community Services,OP North Locality,Adult Residential Placements - Spot Purchase,Third Party Payments,REVENUE
http://statistics.data.gov.uk/id/local-authority/00HY,Wiltshire Council,12/02/2014,5106442376,2081.00,Avery Healthcare Cepen Lodge ,126733,DL1 ,Community Services,MH OP North Locality,Adult Residential Placements - Spot Purchase,Third Party Payments,REVENUE
http://statistics.data.gov.uk/id/local-authority/00HY,Wiltshire Council,12/02/2014,5106442425,1928.68,Avery Healthcare Cepen Lodge ,126733,DL1 ,Community Services,OP North Locality,Adult Residential Placements - Spot Purchase,Third Party Payments,REVENUE
http://statistics.data.gov.uk/id/local-authority/00HY,Wiltshire Council,12/02/2014,5106442644,2081.00,Avery Healthcare Cepen Lodge ,126733,DL1 ,Community Services,MH OP West Locality,Adult Residential Placements - Spot Purchase,Third Party Payments,REVENUE
http://statistics.data.gov.uk/id/local-authority/00HY,Wiltshire Council,12/02/2014,5106442652,2173.48,Avery Healthcare Cepen Lodge ,126733,DL1 ,Community Services,MH OP North Locality,Adult Residential Placements - Spot Purchase,Third Party Payments,REVENUE
http://statistics.data.gov.uk/id/local-authority/00HY,Wiltshire Council,12/02/2014,5106442792,2187.08,Avery Healthcare Cepen Lodge ,126733,DL1 ,Community Services,MH OP North Locality,Adult Residential Placements - Spot Purchase,Third Party Payments,REVENUE
http://statistics.data.gov.uk/id/local-authority/00HY,Wiltshire Council,12/02/2014,5106442825,2081.00,Avery Healthcare Cepen Lodge ,126733,DL1 ,Community Services,OP North Locality,Adult Residential Placements - Spot Purchase,Third Party Payments,REVENUE
http://statistics.data.gov.uk/id/local-authority/00HY,Wiltshire Council,12/02/2014,5106442827,2187.08,Avery Healthcare Cepen Lodge ,126733,DL1 ,Community Services,OP North Locality,Adult Residential Placements - Spot Purchase,Third Party Payments,REVENUE
http://statistics.data.gov.uk/id/local-authority/00HY,Wiltshire Council,12/02/2014,5106442831,2187.08,Avery Healthcare Cepen Lodge ,126733,DL1 ,Community Services,OP North Locality,Adult Residential Placements - Spot Purchase,Third Party Payments,REVENUE
http://statistics.data.gov.uk/id/local-authority/00HY,Wiltshire Council,12/02/2014,5106442900,2089.16,Avery Healthcare Cepen Lodge ,126733,DL1 ,Community Services,OP West Locality,Adult Residential Placements - Spot Purchase,Third Party Payments,REVENUE
http://statistics.data.gov.uk/id/local-authority/00HY,Wiltshire Council,12/02/2014,5106443481,2081.00,Avery Healthcare Cepen Lodge ,126733,DL1 ,Community Services,OP West Locality,Adult Residential Placements - Spot Purchase,Third Party Payments,REVENUE
http://statistics.data.gov.uk/id/local-authority/00HY,Wiltshire Council,12/02/2014,5106443873,2187.08,Avery Healthcare Cepen Lodge ,126733,DL1 ,Community Services,OP North Locality,Adult Residential Placements - Spot Purchase,Third Party Payments,REVENUE
http://statistics.data.gov.uk/id/local-authority/00HY,Wiltshire Council,12/02/2014,5106443909,2500.00,Avery Healthcare Cepen Lodge ,126733,DL1 ,Community Services,OP West Locality,Adult Residential Placements - Spot Purchase,Third Party Payments,REVENUE
http://statistics.data.gov.uk/id/local-authority/00HY,Wiltshire Council,12/02/2014,5106444065,2320.00,Avery Healthcare Cepen Lodge ,126733,DL1 ,Community Services,OP North Locality,Adult Residential Placements - Spot Purchase,Third Party Payments,REVENUE
http://statistics.data.gov.uk/id/local-authority/00HY,Wiltshire Council,12/02/2014,5106445160,3100.00,Avery Healthcare Cepen Lodge ,126733,DL1 ,Community Services,Home Loans,Adult Care Loans,Capital charges and Expenditure,REVENUE
http://statistics.data.gov.uk/id/local-authority/00HY,Wiltshire Council,12/02/2014,5106445302,3600.00,Avery Healthcare Cepen Lodge ,126733,DL1 ,Community Services,Home Loans,Adult Care Loans,Capital charges and Expenditure,REVENUE
http://statistics.data.gov.uk/id/local-authority/00HY,Wiltshire Council,12/02/2014,5106442462,2621.16,Avery Healthcare Ltd- Langford Sali ,112676,NN4 ,Community Services,OP South Locality,Adult Care Nursing Placements- Spot Purchase,Third Party Payments,REVENUE
http://statistics.data.gov.uk/id/local-authority/00HY,Wiltshire Council,12/02/2014,5106442463,439.16,Avery Healthcare Ltd- Langford Sali ,112676,NN4 ,Community Services,OP South FNC,Adult Care Funded Nursing Care - Loal Auth Clients,Third Party Payments,REVENUE
http://statistics.data.gov.uk/id/local-authority/00HY,Wiltshire Council,12/02/2014,5106442486,2417.52,Avery Healthcare Ltd- Langford Sali ,112676,NN4 ,Community Services,MH OP South Locality,Adult Care Nursing Placements- Spot Purchase,Third Party Payments,REVENUE
http://statistics.data.gov.uk/id/local-authority/00HY,Wiltshire Council,12/02/2014,5106442487,439.16,Avery Healthcare Ltd- Langford Sali ,112676,NN4 ,Community Services,MH OA South FNC,Adult Care Funded Nursing Care - Loal Auth Clients,Third Party Payments,REVENUE
http://statistics.data.gov.uk/id/local-authority/00HY,Wiltshire Council,12/02/2014,5106442557,2621.16,Avery Healthcare Ltd- Langford Sali ,112676,NN4 ,Community Services,OP South Locality,Adult Care Nursing Placements- Spot Purchase,Third Party Payments,REVENUE
http://statistics.data.gov.uk/id/local-authority/00HY,Wiltshire Council,12/02/2014,5106442558,439.16,Avery Healthcare Ltd- Langford Sali ,112676,NN4 ,Community Services,OP South FNC,Adult Care Funded Nursing Care - Loal Auth Clients,Third Party Payments,REVENUE
http://statistics.data.gov.uk/id/local-authority/00HY,Wiltshire Council,12/02/2014,5106442563,2460.76,Avery Healthcare Ltd- Langford Sali ,112676,NN4 ,Community Services,MH OP South Locality,Adult Care Nursing Placements- Spot Purchase,Third Party Payments,REVENUE
http://statistics.data.gov.uk/id/local-authority/00HY,Wiltshire Council,12/02/2014,5106442564,439.16,Avery Healthcare Ltd- Langford Sali ,112676,NN4 ,Community Services,MH OA South FNC,Adult Care Funded Nursing Care - Loal Auth Clients,Third Party Payments,REVENUE
http://statistics.data.gov.uk/id/local-authority/00HY,Wiltshire Council,12/02/2014,5106442962,2315.20,Avery Healthcare Ltd- Langford Sali ,112676,NN4 ,Community Services,OP South Locality,Adult Care Nursing Placements- Spot Purchase,Third Party Payments,REVENUE
http://statistics.data.gov.uk/id/local-authority/00HY,Wiltshire Council,12/02/2014,5106442963,439.16,Avery Healthcare Ltd- Langford Sali ,112676,NN4 ,Community Services,OP South FNC,Adult Care Funded Nursing Care - Loal Auth Clients,Third Party Payments,REVENUE
http://statistics.data.gov.uk/id/local-authority/00HY,Wiltshire Council,12/02/2014,5106443102,3319.44,Avery Healthcare Ltd- Langford Sali ,112676,NN4 ,Community Services,OP South Locality,Adult Residential Placements - Spot Purchase,Third Party Payments,REVENUE
http://statistics.data.gov.uk/id/local-authority/00HY,Wiltshire Council,12/02/2014,5106444015,2198.96,Avery Healthcare Ltd- Langford Sali ,112676,NN4 ,Community Services,OP South Locality,Adult Care Nursing Placements- Spot Purchase,Third Party Payments,REVENUE
http://statistics.data.gov.uk/id/local-authority/00HY,Wiltshire Council,12/02/2014,5106444017,439.16,Avery Healthcare Ltd- Langford Sali ,112676,NN4 ,Community Services,OP South FNC,Adult Care Funded Nursing Care - Loal Auth Clients,Third Party Payments,REVENUE
http://statistics.data.gov.uk/id/local-authority/00HY,Wiltshire Council,12/02/2014,5106444088,2590.84,Avery Healthcare Ltd- Langford Sali ,112676,NN4 ,Community Services,OP South Locality,Adult Care Nursing Placements- Spot Purchase,Third Party Payments,REVENUE
http://statistics.data.gov.uk/id/local-authority/00HY,Wiltshire Council,12/02/2014,5106444089,439.16,Avery Healthcare Ltd- Langford Sali ,112676,NN4 ,Community Services,OP South FNC,Adult Care Funded Nursing Care - Loal Auth Clients,Third Party Payments,REVENUE
http://statistics.data.gov.uk/id/local-authority/00HY,Wiltshire Council,12/02/2014,5106444214,2591.24,Avery Healthcare Ltd- Langford Sali ,112676,NN4 ,Community Services,OP South Locality,Adult Care Nursing Placements- Spot Purchase,Third Party Payments,REVENUE
http://statistics.data.gov.uk/id/local-authority/00HY,Wiltshire Council,12/02/2014,5106444215,439.16,Avery Healthcare Ltd- Langford Sali ,112676,NN4 ,Community Services,OP South FNC,Adult Care Funded Nursing Care - Loal Auth Clients,Third Party Payments,REVENUE
http://statistics.data.gov.uk/id/local-authority/00HY,Wiltshire Council,12/02/2014,5106444217,2100.80,Avery Healthcare Ltd- Langford Sali ,112676,NN4 ,Community Services,OP South Locality,Adult Residential Placements - Spot Purchase,Third Party Payments,REVENUE
http://statistics.data.gov.uk/id/local-authority/00HY,Wiltshire Council,12/02/2014,5106444640,462.65,Avery Healthcare Ltd- Langford Sali ,112676,NN4 ,Community Services,OP South Locality,Adult Care Nursing Placements- Spot Purchase,Third Party Payments,REVENUE
http://statistics.data.gov.uk/id/local-authority/00HY,Wiltshire Council,12/02/2014,5106444643,2590.84,Avery Healthcare Ltd- Langford Sali ,112676,NN4 ,Community Services,OP South Locality,Adult Care Nursing Placements- Spot Purchase,Third Party Payments,REVENUE
http://statistics.data.gov.uk/id/local-authority/00HY,Wiltshire Council,12/02/2014,5106444644,439.16,Avery Healthcare Ltd- Langford Sali ,112676,NN4 ,Community Services,OP South FNC,Adult Care Funded Nursing Care - Loal Auth Clients,Third Party Payments,REVENUE
http://statistics.data.gov.uk/id/local-authority/00HY,Wiltshire Council,12/02/2014,5106444646,2590.84,Avery Healthcare Ltd- Langford Sali ,112676,NN4 ,Community Services,OP South Locality,Adult Care Nursing Placements- Spot Purchase,Third Party Payments,REVENUE
http://statistics.data.gov.uk/id/local-authority/00HY,Wiltshire Council,12/02/2014,5106444647,439.16,Avery Healthcare Ltd- Langford Sali ,112676,NN4 ,Community Services,OP South FNC,Adult Care Funded Nursing Care - Loal Auth Clients,Third Party Payments,REVENUE
http://statistics.data.gov.uk/id/local-authority/00HY,Wiltshire Council,12/02/2014,5106444649,2590.84,Avery Healthcare Ltd- Langford Sali ,112676,NN4 ,Community Services,OP South Locality,Adult Care Nursing Placements- Spot Purchase,Third Party Payments,REVENUE
http://statistics.data.gov.uk/id/local-authority/00HY,Wiltshire Council,12/02/2014,5106444650,439.16,Avery Healthcare Ltd- Langford Sali ,112676,NN4 ,Community Services,OP South FNC,Adult Care Funded Nursing Care - Loal Auth Clients,Third Party Payments,REVENUE
http://statistics.data.gov.uk/id/local-authority/00HY,Wiltshire Council,12/02/2014,5106444652,2590.84,Avery Healthcare Ltd- Langford Sali ,112676,NN4 ,Community Services,OP South Locality,Adult Care Nursing Placements- Spot Purchase,Third Party Payments,REVENUE
http://statistics.data.gov.uk/id/local-authority/00HY,Wiltshire Council,12/02/2014,5106444653,439.16,Avery Healthcare Ltd- Langford Sali ,112676,NN4 ,Community Services,OP South FNC,Adult Care Funded Nursing Care - Loal Auth Clients,Third Party Payments,REVENUE
http://statistics.data.gov.uk/id/local-authority/00HY,Wiltshire Council,12/02/2014,5106444655,2590.84,Avery Healthcare Ltd- Langford Sali ,112676,NN4 ,Community Services,OP South Locality,Adult Care Nursing Placements- Spot Purchase,Third Party Payments,REVENUE
http://statistics.data.gov.uk/id/local-authority/00HY,Wiltshire Council,12/02/2014,5106444656,439.16,Avery Healthcare Ltd- Langford Sali ,112676,NN4 ,Community Services,OP South FNC,Adult Care Funded Nursing Care - Loal Auth Clients,Third Party Payments,REVENUE
http://statistics.data.gov.uk/id/local-authority/00HY,Wiltshire Council,25/02/2014,5106450344,3240.00,Avery Healthcare Ltd- Langford Sali ,112676,NN4 ,Community Services,Home Loans,Adult Care Loans,Capital charges and Expenditure,REVENUE
http://statistics.data.gov.uk/id/local-authority/00HY,Wiltshire Council,25/02/2014,5106450346,3360.00,Avery Healthcare Ltd- Langford Sali ,112676,NN4 ,Community Services,Home Loans,Adult Care Loans,Capital charges and Expenditure,REVENUE
http://statistics.data.gov.uk/id/local-authority/00HY,Wiltshire Council,25/02/2014,5106450348,3360.00,Avery Healthcare Ltd- Langford Sali ,112676,NN4 ,Community Services,Home Loans,Adult Care Loans,Capital charges and Expenditure,REVENUE
http://statistics.data.gov.uk/id/local-authority/00HY,Wiltshire Council,28/02/2014,1901226857,1625.00,Avon and W Wilts MHC NHS Trust ,110216,BA1 ,Community Services,MH Management Fee,Contribution to Approved Social Workers,Supplies and Services,REVENUE
http://statistics.data.gov.uk/id/local-authority/00HY,Wiltshire Council,28/02/2014,1901226858,7439.00,Avon and W Wilts MHC NHS Trust ,110216,BA1 ,Community Services,MH Management Fee,Contribution to Approved Social Workers,Supplies and Services,REVENUE
http://statistics.data.gov.uk/id/local-authority/00HY,Wiltshire Council,11/02/2014,1901213927,2989.29,Avon Care Homes Ltd - Sutton Veny H ,112612,BA5 ,Community Services,STARR Scheme,Adult Nursing Placements - transitional beds,Third Party Payments,REVENUE
http://statistics.data.gov.uk/id/local-authority/00HY,Wiltshire Council,11/02/2014,1901213944,1350.00,Avon Care Homes Ltd - Sutton Veny H ,112612,BA5 ,Community Services,STARR Scheme,Adult Nursing Placements - transitional beds,Third Party Payments,REVENUE
http://statistics.data.gov.uk/id/local-authority/00HY,Wiltshire Council,11/02/2014,1901213947,2900.71,Avon Care Homes Ltd - Sutton Veny H ,112612,BA5 ,Community Services,STARR Scheme,Adult Nursing Placements - transitional beds,Third Party Payments,REVENUE
http://statistics.data.gov.uk/id/local-authority/00HY,Wiltshire Council,11/02/2014,1901213955,2989.29,Avon Care Homes Ltd - Sutton Veny H ,112612,BA5 ,Community Services,STARR Scheme,Adult Nursing Placements - transitional beds,Third Party Payments,REVENUE
http://statistics.data.gov.uk/id/local-authority/00HY,Wiltshire Council,12/02/2014,5106442414,1624.56,Avon Care Homes Ltd - Sutton Veny H ,112612,BA5 ,Community Services,OP West Locality,Adult Care Nursing Placements- Spot Purchase,Third Party Payments,REVENUE
http://statistics.data.gov.uk/id/local-authority/00HY,Wiltshire Council,12/02/2014,5106442415,439.16,Avon Care Homes Ltd - Sutton Veny H ,112612,BA5 ,Community Services,OP West FNC,Adult Care Funded Nursing Care - Loal Auth Clients,Third Party Payments,REVENUE
http://statistics.data.gov.uk/id/local-authority/00HY,Wiltshire Council,12/02/2014,5106442468,2041.96,Avon Care Homes Ltd - Sutton Veny H ,112612,BA5 ,Community Services,OP West Locality,Adult Care Nursing Placements- Spot Purchase,Third Party Payments,REVENUE
http://statistics.data.gov.uk/id/local-authority/00HY,Wiltshire Council,12/02/2014,5106442469,439.16,Avon Care Homes Ltd - Sutton Veny H ,112612,BA5 ,Community Services,OP West FNC,Adult Care Funded Nursing Care - Loal Auth Clients,Third Party Payments,REVENUE
http://statistics.data.gov.uk/id/local-authority/00HY,Wiltshire Council,12/02/2014,5106442727,2009.08,Avon Care Homes Ltd - Sutton Veny H ,112612,BA5 ,Community Services,OP South Locality,Adult Care Nursing Placements- Spot Purchase,Third Party Payments,REVENUE
http://statistics.data.gov.uk/id/local-authority/00HY,Wiltshire Council,12/02/2014,5106442728,439.16,Avon Care Homes Ltd - Sutton Veny H ,112612,BA5 ,Community Services,OP West FNC,Adult Care Funded Nursing Care - Loal Auth Clients,Third Party Payments,REVENUE
http://statistics.data.gov.uk/id/local-authority/00HY,Wiltshire Council,12/02/2014,5106443003,2243.72,Avon Care Homes Ltd - Sutton Veny H ,112612,BA5 ,Community Services,OP West Locality,Adult Care Nursing Placements- Spot Purchase,Third Party Payments,REVENUE
http://statistics.data.gov.uk/id/local-authority/00HY,Wiltshire Council,12/02/2014,5106443004,439.16,Avon Care Homes Ltd - Sutton Veny H ,112612,BA5 ,Community Services,OP West FNC,Adult Care Funded Nursing Care - Loal Auth Clients,Third Party Payments,REVENUE
http://statistics.data.gov.uk/id/local-authority/00HY,Wiltshire Council,12/02/2014,5106444029,2040.84,Avon Care Homes Ltd - Sutton Veny H ,112612,BA5 ,Community Services,OP West Locality,Adult Care Nursing Placements- Spot Purchase,Third Party Payments,REVENUE
http://statistics.data.gov.uk/id/local-authority/00HY,Wiltshire Council,12/02/2014,5106444030,439.16,Avon Care Homes Ltd - Sutton Veny H ,112612,BA5 ,Community Services,OP West FNC,Adult Care Funded Nursing Care - Loal Auth Clients,Third Party Payments,REVENUE
http://statistics.data.gov.uk/id/local-authority/00HY,Wiltshire Council,12/02/2014,5106445243,2960.84,Avon Care Homes Ltd - Sutton Veny H ,112612,BA5 ,Community Services,Home Loans,Adult Care Loans,Capital charges and Expenditure,REVENUE
http://statistics.data.gov.uk/id/local-authority/00HY,Wiltshire Council,24/02/2014,5106449968,1157.55,Avon Care Homes Ltd - Sutton Veny H ,112612,BA5 ,Community Services,OP West Locality,Adult Care Nursing Placements- Spot Purchase,Third Party Payments,REVENUE
http://statistics.data.gov.uk/id/local-authority/00HY,Wiltshire Council,24/02/2014,5106449972,926.04,Avon Care Homes Ltd - Sutton Veny H ,112612,BA5 ,Community Services,OP West Locality,Adult Care Nursing Placements- Spot Purchase,Third Party Payments,REVENUE
http://statistics.data.gov.uk/id/local-authority/00HY,Wiltshire Council,24/02/2014,5106449976,1234.72,Avon Care Homes Ltd - Sutton Veny H ,112612,BA5 ,Community Services,OP West Locality,Adult Care Nursing Placements- Spot Purchase,Third Party Payments,REVENUE
http://statistics.data.gov.uk/id/local-authority/00HY,Wiltshire Council,24/02/2014,5106449977,250.88,Avon Care Homes Ltd - Sutton Veny H ,112612,BA5 ,Community Services,OP West FNC,Adult Care Funded Nursing Care - Loal Auth Clients,Third Party Payments,REVENUE
http://statistics.data.gov.uk/id/local-authority/00HY,Wiltshire Council,24/02/2014,5106449980,694.53,Avon Care Homes Ltd - Sutton Veny H ,112612,BA5 ,Community Services,OP West Locality,Adult Care Nursing Placements- Spot Purchase,Third Party Payments,REVENUE
http://statistics.data.gov.uk/id/local-authority/00HY,Wiltshire Council,05/02/2014,1901211578,352.42,Avon Valley Practice ,131697,SN6 ,Neighbourhood & Planning,Sexual Health Commun,Public Health Commissioning,Supplies and Services,REVENUE
http://statistics.data.gov.uk/id/local-authority/00HY,Wiltshire Council,19/02/2014,1901225170,3100.00,Avoncare Homes Ltd - Wells Nursing ,114326,BA5 ,Community Services,STARR Scheme,Adult Nursing Placements - transitional beds,Third Party Payments,REVENUE
http://statistics.data.gov.uk/id/local-authority/00HY,Wiltshire Council,19/02/2014,1901225171,900.00,Avoncare Homes Ltd - Wells Nursing ,114326,BA5 ,Community Services,STARR Scheme,Adult Nursing Placements - transitional beds,Third Party Payments,REVENUE
http://statistics.data.gov.uk/id/local-authority/00HY,Wiltshire Council,19/02/2014,1901225172,1500.00,Avoncare Homes Ltd - Wells Nursing ,114326,BA5 ,Community Services,STARR Scheme,Adult Nursing Placements - transitional beds,Third Party Payments,REVENUE
http://statistics.data.gov.uk/id/local-authority/00HY,Wiltshire Council,19/02/2014,1901225174,400.00,Avoncare Homes Ltd - Wells Nursing ,114326,BA5 ,Community Services,STARR Scheme,Adult Nursing Placements - transitional beds,Third Party Payments,REVENUE
http://statistics.data.gov.uk/id/local-authority/00HY,Wiltshire Council,19/02/2014,1901225175,2500.00,Avoncare Homes Ltd - Wells Nursing ,114326,BA5 ,Community Services,STARR Scheme,Adult Nursing Placements - transitional beds,Third Party Payments,REVENUE
http://statistics.data.gov.uk/id/local-authority/00HY,Wiltshire Council,12/02/2014,5106441108,819.39,Avoncare Homes Ltd - Wells Nursing ,114326,BA5 ,Community Services,OP North Locality,Adult Care Nursing Placements- Spot Purchase,Third Party Payments,REVENUE
http://statistics.data.gov.uk/id/local-authority/00HY,Wiltshire Council,12/02/2014,5106442337,2106.04,Avoncare Homes Ltd - Wells Nursing ,114326,BA5 ,Community Services,PI North Locality,Adult Care Nursing Placements- Spot Purchase,Third Party Payments,REVENUE
http://statistics.data.gov.uk/id/local-authority/00HY,Wiltshire Council,12/02/2014,5106442338,439.16,Avoncare Homes Ltd - Wells Nursing ,114326,BA5 ,Community Services,PI North FNC,Adult Care Funded Nursing Care - Loal Auth Clients,Third Party Payments,REVENUE
http://statistics.data.gov.uk/id/local-authority/00HY,Wiltshire Council,12/02/2014,5106444082,2960.84,Avoncare Homes Ltd - Wells Nursing ,114326,BA5 ,Community Services,OP North Locality,Adult Care Nursing Placements- Spot Purchase,Third Party Payments,REVENUE
http://statistics.data.gov.uk/id/local-authority/00HY,Wiltshire Council,12/02/2014,5106445308,2068.48,Avoncare Homes Ltd - Wells Nursing ,114326,BA5 ,Community Services,Home Loans,Adult Care Loans,Capital charges and Expenditure,REVENUE
http://statistics.data.gov.uk/id/local-authority/00HY,Wiltshire Council,12/02/2014,5106441739,2165.44,Avonpark Village (Care Homes) Limit ,110227,BA2 ,Community Services,MH OP West Locality,Adult Residential Placements - Spot Purchase,Third Party Payments,REVENUE
http://statistics.data.gov.uk/id/local-authority/00HY,Wiltshire Council,12/02/2014,5106442367,2040.20,Avonpark Village (Care Homes) Limit ,110227,BA2 ,Community Services,MH OP West Locality,Adult Residential Placements - Spot Purchase,Third Party Payments,REVENUE
http://statistics.data.gov.uk/id/local-authority/00HY,Wiltshire Council,12/02/2014,5106442412,1991.24,Avonpark Village (Care Homes) Limit ,110227,BA2 ,Community Services,MH OP West Locality,Adult Residential Placements - Spot Purchase,Third Party Payments,REVENUE
http://statistics.data.gov.uk/id/local-authority/00HY,Wiltshire Council,12/02/2014,5106442624,1991.24,Avonpark Village (Care Homes) Limit ,110227,BA2 ,Community Services,MH OP West Locality,Adult Residential Placements - Spot Purchase,Third Party Payments,REVENUE
http://statistics.data.gov.uk/id/local-authority/00HY,Wiltshire Council,12/02/2014,5106442632,1991.24,Avonpark Village (Care Homes) Limit ,110227,BA2 ,Community Services,OP West Locality,Adult Residential Placements - Spot Purchase,Third Party Payments,REVENUE
http://statistics.data.gov.uk/id/local-authority/00HY,Wiltshire Council,12/02/2014,5106442634,1991.24,Avonpark Village (Care Homes) Limit ,110227,BA2 ,Community Services,MH OP West Locality,Adult Residential Placements - Spot Purchase,Third Party Payments,REVENUE
http://statistics.data.gov.uk/id/local-authority/00HY,Wiltshire Council,12/02/2014,5106442694,1991.24,Avonpark Village (Care Homes) Limit ,110227,BA2 ,Community Services,MH OP West Locality,Adult Residential Placements - Spot Purchase,Third Party Payments,REVENUE
http://statistics.data.gov.uk/id/local-authority/00HY,Wiltshire Council,12/02/2014,5106442696,1991.24,Avonpark Village (Care Homes) Limit ,110227,BA2 ,Community Services,OP West Locality,Adult Residential Placements - Spot Purchase,Third Party Payments,REVENUE
http://statistics.data.gov.uk/id/local-authority/00HY,Wiltshire Council,12/02/2014,5106442704,1991.24,Avonpark Village (Care Homes) Limit ,110227,BA2 ,Community Services,OP West Locality,Adult Residential Placements - Spot Purchase,Third Party Payments,REVENUE
http://statistics.data.gov.uk/id/local-authority/00HY,Wiltshire Council,12/02/2014,5106442706,1897.40,Avonpark Village (Care Homes) Limit ,110227,BA2 ,Community Services,OP West Locality,Adult Residential Placements - Spot Purchase,Third Party Payments,REVENUE
http://statistics.data.gov.uk/id/local-authority/00HY,Wiltshire Council,12/02/2014,5106442708,1917.80,Avonpark Village (Care Homes) Limit ,110227,BA2 ,Community Services,OP West Locality,Adult Residential Placements - Spot Purchase,Third Party Payments,REVENUE
http://statistics.data.gov.uk/id/local-authority/00HY,Wiltshire Council,12/02/2014,5106442856,1991.24,Avonpark Village (Care Homes) Limit ,110227,BA2 ,Community Services,MH OP West Locality,Adult Residential Placements - Spot Purchase,Third Party Payments,REVENUE
http://statistics.data.gov.uk/id/local-authority/00HY,Wiltshire Council,12/02/2014,5106442948,2213.08,Avonpark Village (Care Homes) Limit ,110227,BA2 ,Community Services,OP East Locality,Adult Care Nursing Placements- Spot Purchase,Third Party Payments,REVENUE
http://statistics.data.gov.uk/id/local-authority/00HY,Wiltshire Council,12/02/2014,5106442949,602.80,Avonpark Village (Care Homes) Limit ,110227,BA2 ,Community Services,OP East FNC,Adult Care Funded Nursing Care - Loal Auth Clients,Third Party Payments,REVENUE
http://statistics.data.gov.uk/id/local-authority/00HY,Wiltshire Council,12/02/2014,5106443432,1527.12,Avonpark Village (Care Homes) Limit ,110227,BA2 ,Community Services,MH OP West Locality,Adult Residential Placements - Spot Purchase,Third Party Payments,REVENUE
http://statistics.data.gov.uk/id/local-authority/00HY,Wiltshire Council,12/02/2014,5106443433,1018.08,Avonpark Village (Care Homes) Limit ,110227,BA2 ,Community Services,Section 117-PCT Clnt,Adult Residential Placements - Spot Purchase,Third Party Payments,REVENUE
http://statistics.data.gov.uk/id/local-authority/00HY,Wiltshire Council,12/02/2014,5106445124,269.91,Avonpark Village (Care Homes) Limit ,110227,BA2 ,Community Services,OP West Locality,Adult Care Nursing Placements- Spot Purchase,Third Party Payments,REVENUE
http://statistics.data.gov.uk/id/local-authority/00HY,Wiltshire Council,27/02/2014,1901227494,788.00,Awdry Bailey  and  Douglas ,110231,SN10,Wiltshire Council,Wiltshire Council,Misc Legal Fees Income,Income,CAPITAL
http://statistics.data.gov.uk/id/local-authority/00HY,Wiltshire Council,20/02/2014,5106449641,350.00,Azzurri Communications Ltd ,101309,WS9 ,Resources,ICT Corporate Networ,ICT - Support arrangements,Supplies and Services,REVENUE
http://statistics.data.gov.uk/id/local-authority/00HY,Wiltshire Council,25/02/2014,5106450104,102906.96,Azzurri Communications Ltd ,101309,WS9 ,Resources,Main xchg phon lines,ICT - Support arrangements,Supplies and Services,REVENUE
http://statistics.data.gov.uk/id/local-authority/00HY,Wiltshire Council,18/02/2014,5106449282,374.34,B & M Windows  and  Doors Ltd ,101694,SP2 ,Neighbourhood & Planning,Housg Mtc Trading Ac,Equipment Purchase,Supplies and Services,REVENUE
http://statistics.data.gov.uk/id/local-authority/00HY,Wiltshire Council,04/02/2014,1901211245,4825.49,B Y B Travel Ltd ,101145,SN12,Neighbourhood & Planning,Mainstream 16+ FE,Transport Contracts,Third Party Payments,REVENUE
http://statistics.data.gov.uk/id/local-authority/00HY,Wiltshire Council,04/02/2014,1901211249,5196.50,B Y B Travel Ltd ,101145,SN12,Neighbourhood & Planning,Mainstream 16+ FE,Transport Contract -  Bus Season Tickets,Third Party Payments,REVENUE
http://statistics.data.gov.uk/id/local-authority/00HY,Wiltshire Council,04/02/2014,1901211250,4189.50,B Y B Travel Ltd ,101145,SN12,Neighbourhood & Planning,Mainstream 16+ FE,Transport Contract -  Bus Season Tickets,Third Party Payments,REVENUE
http://statistics.data.gov.uk/id/local-authority/00HY,Wiltshire Council,04/02/2014,1901211251,576.00,B Y B Travel Ltd ,101145,SN12,Neighbourhood & Planning,Mainstream Secondary,Transport Contract -  Bus Season Tickets,Third Party Payments,REVENUE
http://statistics.data.gov.uk/id/local-authority/00HY,Wiltshire Council,12/02/2014,5106441819,1470.80,B&M Care ,110236,HP2 ,Community Services,OP West Locality,Adult Residential Placements - Spot Purchase,Third Party Payments,REVENUE
http://statistics.data.gov.uk/id/local-authority/00HY,Wiltshire Council,25/02/2014,1901213941,1755.89,B3Burgess Ltd ,134322,CF10,Wiltshire Council,Wiltshire Council,Buildings Minor Alterations,Premises Related,CAPITAL
http://statistics.data.gov.uk/id/local-authority/00HY,Wiltshire Council,03/02/2014,5106438840,1500.00,B3Burgess Ltd ,134322,CF10,Wiltshire Council,Wiltshire Council,Buildings Minor Alterations,Premises Related,CAPITAL
http://statistics.data.gov.uk/id/local-authority/00HY,Wiltshire Council,26/02/2014,5106439237,2761.75,B3Burgess Ltd ,134322,CF10,Wiltshire Council,Wiltshire Council,Buildings Minor Alterations,Premises Related,CAPITAL
http://statistics.data.gov.uk/id/local-authority/00HY,Wiltshire Council,26/02/2014,5106442200,6262.50,B3Burgess Ltd ,134322,CF10,Wiltshire Council,Wiltshire Council,Buildings Minor Alterations,Premises Related,CAPITAL
http://statistics.data.gov.uk/id/local-authority/00HY,Wiltshire Council,20/02/2014,5106449662,2143.39,B3Burgess Ltd ,134322,CF10,Wiltshire Council,Wiltshire Council,Buildings Minor Alterations,Premises Related,CAPITAL
http://statistics.data.gov.uk/id/local-authority/00HY,Wiltshire Council,25/02/2014,5106449762,8000.00,B3Burgess Ltd ,134322,CF10,Wiltshire Council,Wiltshire Council,Buildings Minor Alterations,Premises Related,CAPITAL
http://statistics.data.gov.uk/id/local-authority/00HY,Wiltshire Council,24/02/2014,5106449799,950.00,B3Burgess Ltd ,134322,CF10,Wiltshire Council,Wiltshire Council,Buildings Minor Alterations,Premises Related,CAPITAL
http://statistics.data.gov.uk/id/local-authority/00HY,Wiltshire Council,25/02/2014,1901226835,788.00,BA14 Culture ,138997,BA14,Community Services,Area Boards Revenue,Area Board Grants,Supplies and Services,REVENUE
http://statistics.data.gov.uk/id/local-authority/00HY,Wiltshire Council,18/02/2014,1901217059,11590.00,BAC Construction Limited ,129161,SN11,Wiltshire Council,Wiltshire Council,Buildings Minor Alterations,Premises Related,CAPITAL
http://statistics.data.gov.uk/id/local-authority/00HY,Wiltshire Council,19/02/2014,5106449278,479.95,Badgemaster Ltd ,113851,NG15,Children & Education,VoiceInfluenceTeam,Children's Welfare Activities,Capital charges and Expenditure,REVENUE
http://statistics.data.gov.uk/id/local-authority/00HY,Wiltshire Council,05/02/2014,5106440309,444.27,Bailey Employment Services Ltd ,100204,SN12,Community Services,Riverbank,Adult / Child Care Agency Placement,Third Party Payments,REVENUE
http://statistics.data.gov.uk/id/local-authority/00HY,Wiltshire Council,06/02/2014,5106440410,410.39,Bailey Employment Services Ltd ,100204,SN12,Community Services,Chippenham Respite,Agency Staff,Employee Related,REVENUE
http://statistics.data.gov.uk/id/local-authority/00HY,Wiltshire Council,06/02/2014,5106440412,1986.42,Bailey Employment Services Ltd ,100204,SN12,Community Services,Chippenham Respite,Agency Staff,Employee Related,REVENUE
http://statistics.data.gov.uk/id/local-authority/00HY,Wiltshire Council,10/02/2014,5106442120,272.58,Bailey Employment Services Ltd ,100204,SN12,Community Services,CTPLD County CIC U65,Adult Day Care - Spot,Third Party Payments,REVENUE
http://statistics.data.gov.uk/id/local-authority/00HY,Wiltshire Council,10/02/2014,5106442125,319.14,Bailey Employment Services Ltd ,100204,SN12,Community Services,CTPLD County CIC U65,Supported Living - Without SP payments,Third Party Payments,REVENUE
http://statistics.data.gov.uk/id/local-authority/00HY,Wiltshire Council,10/02/2014,5106442178,368.97,Bailey Employment Services Ltd ,100204,SN12,Community Services,Chippenham Respite,Agency Staff,Employee Related,REVENUE
http://statistics.data.gov.uk/id/local-authority/00HY,Wiltshire Council,10/02/2014,5106442215,267.32,Bailey Employment Services Ltd ,100204,SN12,Community Services,Ashton St Day Care,Agency Staff,Employee Related,REVENUE
http://statistics.data.gov.uk/id/local-authority/00HY,Wiltshire Council,12/02/2014,5106445513,323.64,Bailey Employment Services Ltd ,100204,SN12,Community Services,CTPLD County CIC U65,Supported Living - Without SP payments,Third Party Payments,REVENUE
http://statistics.data.gov.uk/id/local-authority/00HY,Wiltshire Council,14/02/2014,5106446285,701.60,Bailey Employment Services Ltd ,100204,SN12,Community Services,Chippenham Respite,Agency Staff,Employee Related,REVENUE
http://statistics.data.gov.uk/id/local-authority/00HY,Wiltshire Council,14/02/2014,5106448712,272.58,Bailey Employment Services Ltd ,100204,SN12,Community Services,CTPLD County CIC U65,Adult Day Care - Spot,Third Party Payments,REVENUE
http://statistics.data.gov.uk/id/local-authority/00HY,Wiltshire Council,19/02/2014,5106449328,551.00,Bailey Employment Services Ltd ,100204,SN12,Community Services,Chippenham Respite,Agency Staff,Employee Related,REVENUE
http://statistics.data.gov.uk/id/local-authority/00HY,Wiltshire Council,19/02/2014,5106449331,1605.00,Bailey Employment Services Ltd ,100204,SN12,Community Services,Bradbury Manor Resp,Agency Staff,Employee Related,REVENUE
http://statistics.data.gov.uk/id/local-authority/00HY,Wiltshire Council,20/02/2014,5106449523,432.98,Bailey Employment Services Ltd ,100204,SN12,Community Services,Riverbank,Adult / Child Care Agency Placement,Third Party Payments,REVENUE
http://statistics.data.gov.uk/id/local-authority/00HY,Wiltshire Council,20/02/2014,5106449524,357.68,Bailey Employment Services Ltd ,100204,SN12,Community Services,Riverbank,Adult / Child Care Agency Placement,Third Party Payments,REVENUE
http://statistics.data.gov.uk/id/local-authority/00HY,Wiltshire Council,20/02/2014,5106449564,361.44,Bailey Employment Services Ltd ,100204,SN12,Community Services,Riverbank,Adult / Child Care Agency Placement,Third Party Payments,REVENUE
http://statistics.data.gov.uk/id/local-authority/00HY,Wiltshire Council,06/02/2014,1901212800,1532487.57,Balfour Beatty Infrastructure Ltd ,113860,RG23,Neighbourhood & Planning,Ringway Contract,Highways Term - Maintenance Contracts,Third Party Payments,REVENUE
http://statistics.data.gov.uk/id/local-authority/00HY,Wiltshire Council,12/02/2014,5106442783,1708.92,Barchester Healthcare - The White L ,121961,SN5 ,Community Services,OP North Locality,Adult Residential Placements - Spot Purchase,Third Party Payments,REVENUE
http://statistics.data.gov.uk/id/local-authority/00HY,Wiltshire Council,12/02/2014,5106442817,1417.52,Barchester Healthcare - The White L ,121961,SN5 ,Community Services,OP North Locality,Adult Care Nursing Placements- Spot Purchase,Third Party Payments,REVENUE
http://statistics.data.gov.uk/id/local-authority/00HY,Wiltshire Council,12/02/2014,5106442818,439.16,Barchester Healthcare - The White L ,121961,SN5 ,Community Services,OP North FNC,Adult Care Funded Nursing Care - Loal Auth Clients,Third Party Payments,REVENUE
http://statistics.data.gov.uk/id/local-authority/00HY,Wiltshire Council,12/02/2014,5106442898,3055.44,Barchester Healthcare - The White L ,121961,SN5 ,Community Services,OP North Locality,Adult Care Nursing Placements- Spot Purchase,Third Party Payments,REVENUE
http://statistics.data.gov.uk/id/local-authority/00HY,Wiltshire Council,12/02/2014,5106442908,3494.60,Barchester Healthcare - The White L ,121961,SN5 ,Community Services,MH OP West Locality,Adult Care Nursing Placements- Spot Purchase,Third Party Payments,REVENUE
http://statistics.data.gov.uk/id/local-authority/00HY,Wiltshire Council,12/02/2014,5106442930,2901.72,Barchester Healthcare - The White L ,121961,SN5 ,Community Services,MH OP North Locality,Adult Care Nursing Placements- Spot Purchase,Third Party Payments,REVENUE
http://statistics.data.gov.uk/id/local-authority/00HY,Wiltshire Council,12/02/2014,5106442931,512.08,Barchester Healthcare - The White L ,121961,SN5 ,Community Services,Section 117-PCT Clnt,Adult Care Nursing Placements- Spot Purchase,Third Party Payments,REVENUE
http://statistics.data.gov.uk/id/local-authority/00HY,Wiltshire Council,12/02/2014,5106442933,2999.20,Barchester Healthcare - The White L ,121961,SN5 ,Community Services,PI East Locality,Adult Care Nursing Placements- Spot Purchase,Third Party Payments,REVENUE
http://statistics.data.gov.uk/id/local-authority/00HY,Wiltshire Council,12/02/2014,5106443034,2543.88,Barchester Healthcare - The White L ,121961,SN5 ,Community Services,MH OP South Locality,Adult Care Nursing Placements- Spot Purchase,Third Party Payments,REVENUE
http://statistics.data.gov.uk/id/local-authority/00HY,Wiltshire Council,12/02/2014,5106443121,3055.44,Barchester Healthcare - The White L ,121961,SN5 ,Community Services,MH OP North Locality,Adult Residential Placements - Spot Purchase,Third Party Payments,REVENUE
http://statistics.data.gov.uk/id/local-authority/00HY,Wiltshire Council,12/02/2014,5106443430,1787.20,Barchester Healthcare - The White L ,121961,SN5 ,Community Services,MH OP East Locality,Adult Care Nursing Placements- Spot Purchase,Third Party Payments,REVENUE
http://statistics.data.gov.uk/id/local-authority/00HY,Wiltshire Council,12/02/2014,5106443431,1191.48,Barchester Healthcare - The White L ,121961,SN5 ,Community Services,Section 117-PCT Clnt,Adult Care Nursing Placements- Spot Purchase,Third Party Payments,REVENUE
http://statistics.data.gov.uk/id/local-authority/00HY,Wiltshire Council,12/02/2014,5106443867,2920.00,Barchester Healthcare - The White L ,121961,SN5 ,Community Services,MH OP North Locality,Adult Care Nursing Placements- Spot Purchase,Third Party Payments,REVENUE
http://statistics.data.gov.uk/id/local-authority/00HY,Wiltshire Council,12/02/2014,5106443897,2480.84,Barchester Healthcare - The White L ,121961,SN5 ,Community Services,OP North Locality,Adult Care Nursing Placements- Spot Purchase,Third Party Payments,REVENUE
http://statistics.data.gov.uk/id/local-authority/00HY,Wiltshire Council,12/02/2014,5106444000,2565.44,Barchester Healthcare - The White L ,121961,SN5 ,Community Services,OP North Locality,Adult Residential Placements - Spot Purchase,Third Party Payments,REVENUE
http://statistics.data.gov.uk/id/local-authority/00HY,Wiltshire Council,12/02/2014,5106444248,2760.84,Barchester Healthcare - The White L ,121961,SN5 ,Community Services,OP North Locality,Adult Care Nursing Placements- Spot Purchase,Third Party Payments,REVENUE
http://statistics.data.gov.uk/id/local-authority/00HY,Wiltshire Council,12/02/2014,5106444340,2480.84,Barchester Healthcare - The White L ,121961,SN5 ,Community Services,MH OP North Locality,Adult Care Nursing Placements- Spot Purchase,Third Party Payments,REVENUE
http://statistics.data.gov.uk/id/local-authority/00HY,Wiltshire Council,12/02/2014,5106444346,2480.84,Barchester Healthcare - The White L ,121961,SN5 ,Community Services,OP North Locality,Adult Care Nursing Placements- Spot Purchase,Third Party Payments,REVENUE
http://statistics.data.gov.uk/id/local-authority/00HY,Wiltshire Council,12/02/2014,5106445186,4800.00,Barchester Healthcare - The White L ,121961,SN5 ,Community Services,Home Loans,Adult Care Loans,Capital charges and Expenditure,REVENUE
http://statistics.data.gov.uk/id/local-authority/00HY,Wiltshire Council,12/02/2014,5106445244,4800.00,Barchester Healthcare - The White L ,121961,SN5 ,Community Services,Home Loans,Adult Care Loans,Capital charges and Expenditure,REVENUE
http://statistics.data.gov.uk/id/local-authority/00HY,Wiltshire Council,12/02/2014,5106443031,4085.64,Barchester Healthcare Ltd - Rothsay Grange,127635,SP11,Community Services,MH OP South Locality,Adult Care Nursing Placements- Spot Purchase,Third Party Payments,REVENUE
http://statistics.data.gov.uk/id/local-authority/00HY,Wiltshire Council,12/02/2014,5106443032,439.16,Barchester Healthcare Ltd - Rothsay Grange,127635,SP11,Community Services,OP South FNC,Adult Care Funded Nursing Care - Loal Auth Clients,Third Party Payments,REVENUE
http://statistics.data.gov.uk/id/local-authority/00HY,Wiltshire Council,05/02/2014,1901211617,685.71,Barchester Healthcare Ltd (Henford ,111113,BA12,Community Services,STARR Scheme,Adult Nursing Placements - transitional beds,Third Party Payments,REVENUE
http://statistics.data.gov.uk/id/local-authority/00HY,Wiltshire Council,05/02/2014,1901211634,3542.86,Barchester Healthcare Ltd (Henford ,111113,BA12,Community Services,STARR Scheme,Adult Nursing Placements - transitional beds,Third Party Payments,REVENUE
http://statistics.data.gov.uk/id/local-authority/00HY,Wiltshire Council,19/02/2014,1901225161,3200.00,Barchester Healthcare Ltd (Henford ,111113,BA12,Community Services,STARR Scheme,Adult Nursing Placements - transitional beds,Third Party Payments,REVENUE
http://statistics.data.gov.uk/id/local-authority/00HY,Wiltshire Council,19/02/2014,1901225162,3200.00,Barchester Healthcare Ltd (Henford ,111113,BA12,Community Services,STARR Scheme,Adult Nursing Placements - transitional beds,Third Party Payments,REVENUE
http://statistics.data.gov.uk/id/local-authority/00HY,Wiltshire Council,19/02/2014,1901225163,3200.00,Barchester Healthcare Ltd (Henford ,111113,BA12,Community Services,STARR Scheme,Adult Nursing Placements - transitional beds,Third Party Payments,REVENUE
http://statistics.data.gov.uk/id/local-authority/00HY,Wiltshire Council,19/02/2014,1901225164,3200.00,Barchester Healthcare Ltd (Henford ,111113,BA12,Community Services,STARR Scheme,Adult Nursing Placements - transitional beds,Third Party Payments,REVENUE
http://statistics.data.gov.uk/id/local-authority/00HY,Wiltshire Council,12/02/2014,5106441113,2041.72,Barchester Healthcare Ltd (Henford ,111113,BA12,Community Services,MH OP West Locality,Adult Care Nursing Placements- Spot Purchase,Third Party Payments,REVENUE
http://statistics.data.gov.uk/id/local-authority/00HY,Wiltshire Council,12/02/2014,5106441114,439.16,Barchester Healthcare Ltd (Henford ,111113,BA12,Community Services,MH OA West FNC,Adult Care Funded Nursing Care - Loal Auth Clients,Third Party Payments,REVENUE
http://statistics.data.gov.uk/id/local-authority/00HY,Wiltshire Council,12/02/2014,5106441126,2243.72,Barchester Healthcare Ltd (Henford ,111113,BA12,Community Services,MH OP West Locality,Adult Care Nursing Placements- Spot Purchase,Third Party Payments,REVENUE
http://statistics.data.gov.uk/id/local-authority/00HY,Wiltshire Council,12/02/2014,5106441127,439.16,Barchester Healthcare Ltd (Henford ,111113,BA12,Community Services,MH OA West FNC,Adult Care Funded Nursing Care - Loal Auth Clients,Third Party Payments,REVENUE
http://statistics.data.gov.uk/id/local-authority/00HY,Wiltshire Council,12/02/2014,5106441130,2041.72,Barchester Healthcare Ltd (Henford ,111113,BA12,Community Services,OP West Locality,Adult Care Nursing Placements- Spot Purchase,Third Party Payments,REVENUE
http://statistics.data.gov.uk/id/local-authority/00HY,Wiltshire Council,12/02/2014,5106441131,439.16,Barchester Healthcare Ltd (Henford ,111113,BA12,Community Services,OP West FNC,Adult Care Funded Nursing Care - Loal Auth Clients,Third Party Payments,REVENUE
http://statistics.data.gov.uk/id/local-authority/00HY,Wiltshire Council,12/02/2014,5106441141,2041.72,Barchester Healthcare Ltd (Henford ,111113,BA12,Community Services,OP West Locality,Adult Care Nursing Placements- Spot Purchase,Third Party Payments,REVENUE
http://statistics.data.gov.uk/id/local-authority/00HY,Wiltshire Council,12/02/2014,5106441142,439.16,Barchester Healthcare Ltd (Henford ,111113,BA12,Community Services,OP West FNC,Adult Care Funded Nursing Care - Loal Auth Clients,Third Party Payments,REVENUE
http://statistics.data.gov.uk/id/local-authority/00HY,Wiltshire Council,12/02/2014,5106441144,2829.52,Barchester Healthcare Ltd (Henford ,111113,BA12,Community Services,MH AOWA North,Adult Care Nursing Placements- Spot Purchase,Third Party Payments,REVENUE
http://statistics.data.gov.uk/id/local-authority/00HY,Wiltshire Council,12/02/2014,5106441145,439.16,Barchester Healthcare Ltd (Henford ,111113,BA12,Community Services,MH AOWA North FNC,Adult Care Funded Nursing Care - Loal Auth Clients,Third Party Payments,REVENUE
http://statistics.data.gov.uk/id/local-authority/00HY,Wiltshire Council,12/02/2014,5106441193,2041.72,Barchester Healthcare Ltd (Henford ,111113,BA12,Community Services,OP West Locality,Adult Care Nursing Placements- Spot Purchase,Third Party Payments,REVENUE
http://statistics.data.gov.uk/id/local-authority/00HY,Wiltshire Council,12/02/2014,5106441194,439.16,Barchester Healthcare Ltd (Henford ,111113,BA12,Community Services,OP West FNC,Adult Care Funded Nursing Care - Loal Auth Clients,Third Party Payments,REVENUE
http://statistics.data.gov.uk/id/local-authority/00HY,Wiltshire Council,12/02/2014,5106442921,2519.12,Barchester Healthcare Ltd (Henford ,111113,BA12,Community Services,MH OP West Locality,Adult Care Nursing Placements- Spot Purchase,Third Party Payments,REVENUE
http://statistics.data.gov.uk/id/local-authority/00HY,Wiltshire Council,12/02/2014,5106442922,439.16,Barchester Healthcare Ltd (Henford ,111113,BA12,Community Services,MH OA West FNC,Adult Care Funded Nursing Care - Loal Auth Clients,Third Party Payments,REVENUE
http://statistics.data.gov.uk/id/local-authority/00HY,Wiltshire Council,12/02/2014,5106442974,3029.16,Barchester Healthcare Ltd (Henford ,111113,BA12,Community Services,OP West Locality,Adult Care Nursing Placements- Spot Purchase,Third Party Payments,REVENUE
http://statistics.data.gov.uk/id/local-authority/00HY,Wiltshire Council,12/02/2014,5106442975,439.16,Barchester Healthcare Ltd (Henford ,111113,BA12,Community Services,OP West FNC,Adult Care Funded Nursing Care - Loal Auth Clients,Third Party Payments,REVENUE
http://statistics.data.gov.uk/id/local-authority/00HY,Wiltshire Council,12/02/2014,5106442981,2041.72,Barchester Healthcare Ltd (Henford ,111113,BA12,Community Services,OP West Locality,Adult Care Nursing Placements- Spot Purchase,Third Party Payments,REVENUE
http://statistics.data.gov.uk/id/local-authority/00HY,Wiltshire Council,12/02/2014,5106442982,439.16,Barchester Healthcare Ltd (Henford ,111113,BA12,Community Services,OP West FNC,Adult Care Funded Nursing Care - Loal Auth Clients,Third Party Payments,REVENUE
http://statistics.data.gov.uk/id/local-authority/00HY,Wiltshire Council,12/02/2014,5106443028,2041.72,Barchester Healthcare Ltd (Henford ,111113,BA12,Community Services,OP West Locality,Adult Care Nursing Placements- Spot Purchase,Third Party Payments,REVENUE
http://statistics.data.gov.uk/id/local-authority/00HY,Wiltshire Council,12/02/2014,5106443029,439.16,Barchester Healthcare Ltd (Henford ,111113,BA12,Community Services,OP West FNC,Adult Care Funded Nursing Care - Loal Auth Clients,Third Party Payments,REVENUE
http://statistics.data.gov.uk/id/local-authority/00HY,Wiltshire Council,12/02/2014,5106443036,2760.84,Barchester Healthcare Ltd (Henford ,111113,BA12,Community Services,OP West Locality,Adult Care Nursing Placements- Spot Purchase,Third Party Payments,REVENUE
http://statistics.data.gov.uk/id/local-authority/00HY,Wiltshire Council,12/02/2014,5106443037,439.16,Barchester Healthcare Ltd (Henford ,111113,BA12,Community Services,OP West FNC,Adult Care Funded Nursing Care - Loal Auth Clients,Third Party Payments,REVENUE
http://statistics.data.gov.uk/id/local-authority/00HY,Wiltshire Council,12/02/2014,5106444134,2480.84,Barchester Healthcare Ltd (Henford ,111113,BA12,Community Services,OP South Locality,Adult Care Nursing Placements- Spot Purchase,Third Party Payments,REVENUE
http://statistics.data.gov.uk/id/local-authority/00HY,Wiltshire Council,12/02/2014,5106444136,439.16,Barchester Healthcare Ltd (Henford ,111113,BA12,Community Services,OP South FNC,Adult Care Funded Nursing Care - Loal Auth Clients,Third Party Payments,REVENUE
http://statistics.data.gov.uk/id/local-authority/00HY,Wiltshire Council,12/02/2014,5106444466,2480.84,Barchester Healthcare Ltd (Henford ,111113,BA12,Community Services,MH OP South Locality,Adult Care Nursing Placements- Spot Purchase,Third Party Payments,REVENUE
http://statistics.data.gov.uk/id/local-authority/00HY,Wiltshire Council,12/02/2014,5106444467,439.16,Barchester Healthcare Ltd (Henford ,111113,BA12,Community Services,MH OA South FNC,Adult Care Funded Nursing Care - Loal Auth Clients,Third Party Payments,REVENUE
http://statistics.data.gov.uk/id/local-authority/00HY,Wiltshire Council,12/02/2014,5106445166,3360.84,Barchester Healthcare Ltd (Henford ,111113,BA12,Community Services,Home Loans,Adult Care Loans,Capital charges and Expenditure,REVENUE
http://statistics.data.gov.uk/id/local-authority/00HY,Wiltshire Council,12/02/2014,5106445349,3000.00,Barchester Healthcare Ltd (Henford ,111113,BA12,Community Services,Home Loans,Adult Care Loans,Capital charges and Expenditure,REVENUE
http://statistics.data.gov.uk/id/local-authority/00HY,Wiltshire Council,25/02/2014,5106450312,2560.84,Barchester Healthcare Ltd (Henford ,111113,BA12,Community Services,Home Loans,Adult Care Loans,Capital charges and Expenditure,REVENUE
